Organisation Code,Organisation Label,Effective Date,Organisational Unit,Service Division Label,Category Internal Name,Purpose,Detailed Expenditure Code,Payment Date,Transaction Number,Irrecoverable VAT Amount,Amount,Capital Or Revenue,Beneficiary Name,Procurement Card
Http://opendatacommunities.org/id/metropolitan-district-council/leeds,Leeds City Council,31/12/2020,Resources and Housing,Leeds Building Services,Supplies and Services,Operational Materials,205,18/12/2020,2012-00001 ,0.00,102.00,R,A & A ELECTRICAL DISTRIBUTORS LTD,No
Http://opendatacommunities.org/id/metropolitan-district-council/leeds,Leeds City Council,31/12/2020,Adults and Health,Services For Older People Under 65 P/Dis,Third Party Payments,Sheltered Accommodation,569,09/12/2020,2012-00002,0.00,5400.00,R,A & V TRANSITIONAL HOMES,No
Http://opendatacommunities.org/id/metropolitan-district-council/leeds,Leeds City Council,31/12/2020,Adults and Health,Services For Older People Under 65 P/Dis,Third Party Payments,Sheltered Accommodation,569,30/12/2020,2012-00003,0.00,5400.00,R,A & V TRANSITIONAL HOMES,No
Http://opendatacommunities.org/id/metropolitan-district-council/leeds,Leeds City Council,31/12/2020,Resources and Housing,HRA Housing Leeds,Capital,OTHER COSTS,7,08/12/2020,2012-00004,0.00,100.00,C,REDACTED PERSONAL DATA,No
Http://opendatacommunities.org/id/metropolitan-district-council/leeds,Leeds City Council,31/12/2020,Children and Families,Partnerships & Health,Transport,Private Hire,360,08/12/2020,2012-00005,0.00,50.00,R,REDACTED PERSONAL DATA,No
Http://opendatacommunities.org/id/metropolitan-district-council/leeds,Leeds City Council,31/12/2020,Children and Families,Social Care,Third Party Payments,Services Rendered By Other Organisations,511,04/12/2020,2012-00006,0.00,873.31,R,REDACTED PERSONAL DATA,No
Http://opendatacommunities.org/id/metropolitan-district-council/leeds,Leeds City Council,31/12/2020,Children and Families,Social Care,Third Party Payments,Services Rendered By Other Organisations,511,31/12/2020,2012-00007,0.00,262.80,R,REDACTED PERSONAL DATA,No
Http://opendatacommunities.org/id/metropolitan-district-council/leeds,Leeds City Council,31/12/2020,Resources and Housing,HRA Housing Leeds,Capital,OTHER COSTS,7,22/12/2020,2012-00008,0.00,60.00,C,REDACTED PERSONAL DATA,No
Http://opendatacommunities.org/id/metropolitan-district-council/leeds,Leeds City Council,31/12/2020,Children and Families,Social Care,Third Party Payments,Services Rendered By Other Organisations,511,04/12/2020,2012-00009,0.00,937.32,R,REDACTED PERSONAL DATA,No
Http://opendatacommunities.org/id/metropolitan-district-council/leeds,Leeds City Council,31/12/2020,Children and Families,Social Care,Third Party Payments,Services Rendered By Other Organisations,511,31/12/2020,2012-00010,0.00,528.52,R,REDACTED PERSONAL DATA,No
Http://opendatacommunities.org/id/metropolitan-district-council/leeds,Leeds City Council,31/12/2020,Children and Families,Social Care,Third Party Payments,Services Rendered By Other Organisations,511,02/12/2020,2012-00011,0.00,526.68,R,REDACTED PERSONAL DATA,No
Http://opendatacommunities.org/id/metropolitan-district-council/leeds,Leeds City Council,31/12/2020,Children and Families,Social Care,Third Party Payments,Services Rendered By Other Organisations,511,04/12/2020,2012-00012,0.00,873.81,R,REDACTED PERSONAL DATA,No
Http://opendatacommunities.org/id/metropolitan-district-council/leeds,Leeds City Council,31/12/2020,Resources and Housing,HRA Housing Leeds,Capital,CONSTRUCTION,3,23/12/2020,2012-00013,0.00,177613.62,C,A Connolly Limited,No
Http://opendatacommunities.org/id/metropolitan-district-council/leeds,Leeds City Council,31/12/2020,Resources and Housing,Leeds Building Services,Supplies and Services,Other Hired And Contracted Services,265,03/12/2020,2012-00014,0.00,85.00,R,A Coole Electrical Ltd,No
Http://opendatacommunities.org/id/metropolitan-district-council/leeds,Leeds City Council,31/12/2020,Resources and Housing,Leeds Building Services,Supplies and Services,Other Hired And Contracted Services,265,03/12/2020,2012-00015,0.00,2008.00,R,A Coole Electrical Ltd,No
Http://opendatacommunities.org/id/metropolitan-district-council/leeds,Leeds City Council,31/12/2020,Resources and Housing,Leeds Building Services,Supplies and Services,Other Hired And Contracted Services,265,03/12/2020,2012-00016,0.00,2325.00,R,A Coole Electrical Ltd,No
Http://opendatacommunities.org/id/metropolitan-district-council/leeds,Leeds City Council,31/12/2020,Resources and Housing,Leeds Building Services,Supplies and Services,Other Hired And Contracted Services,265,03/12/2020,2012-00017,0.00,2398.00,R,A Coole Electrical Ltd,No
Http://opendatacommunities.org/id/metropolitan-district-council/leeds,Leeds City Council,31/12/2020,Resources and Housing,Leeds Building Services,Supplies and Services,Other Hired And Contracted Services,265,03/12/2020,2012-00018,0.00,2221.00,R,A Coole Electrical Ltd,No
Http://opendatacommunities.org/id/metropolitan-district-council/leeds,Leeds City Council,31/12/2020,Resources and Housing,Leeds Building Services,Supplies and Services,Other Hired And Contracted Services,265,03/12/2020,2012-00019,0.00,2263.00,R,A Coole Electrical Ltd,No
Http://opendatacommunities.org/id/metropolitan-district-council/leeds,Leeds City Council,31/12/2020,Resources and Housing,Leeds Building Services,Supplies and Services,Other Hired And Contracted Services,265,09/12/2020,2012-00020,0.00,2353.00,R,A Coole Electrical Ltd,No
Http://opendatacommunities.org/id/metropolitan-district-council/leeds,Leeds City Council,31/12/2020,Resources and Housing,Leeds Building Services,Supplies and Services,Other Hired And Contracted Services,265,10/12/2020,2012-00021,0.00,2353.00,R,A Coole Electrical Ltd,No
Http://opendatacommunities.org/id/metropolitan-district-council/leeds,Leeds City Council,31/12/2020,Resources and Housing,Leeds Building Services,Supplies and Services,Other Hired And Contracted Services,265,10/12/2020,2012-00022,0.00,2168.00,R,A Coole Electrical Ltd,No
Http://opendatacommunities.org/id/metropolitan-district-council/leeds,Leeds City Council,31/12/2020,Resources and Housing,Leeds Building Services,Supplies and Services,Other Hired And Contracted Services,265,10/12/2020,2012-00023,0.00,2398.00,R,A Coole Electrical Ltd,No
Http://opendatacommunities.org/id/metropolitan-district-council/leeds,Leeds City Council,31/12/2020,Resources and Housing,Leeds Building Services,Supplies and Services,Other Hired And Contracted Services,265,10/12/2020,2012-00024,0.00,2263.00,R,A Coole Electrical Ltd,No
Http://opendatacommunities.org/id/metropolitan-district-council/leeds,Leeds City Council,31/12/2020,Resources and Housing,Leeds Building Services,Supplies and Services,Other Hired And Contracted Services,265,17/12/2020,2012-00025,0.00,2263.00,R,A Coole Electrical Ltd,No
Http://opendatacommunities.org/id/metropolitan-district-council/leeds,Leeds City Council,31/12/2020,Resources and Housing,Leeds Building Services,Supplies and Services,Other Hired And Contracted Services,265,17/12/2020,2012-00026,0.00,2398.00,R,A Coole Electrical Ltd,No
Http://opendatacommunities.org/id/metropolitan-district-council/leeds,Leeds City Council,31/12/2020,Resources and Housing,Leeds Building Services,Supplies and Services,Other Hired And Contracted Services,265,17/12/2020,2012-00027,0.00,2398.00,R,A Coole Electrical Ltd,No
Http://opendatacommunities.org/id/metropolitan-district-council/leeds,Leeds City Council,31/12/2020,Resources and Housing,Leeds Building Services,Supplies and Services,Other Hired And Contracted Services,265,17/12/2020,2012-00028,0.00,2548.00,R,A Coole Electrical Ltd,No
Http://opendatacommunities.org/id/metropolitan-district-council/leeds,Leeds City Council,31/12/2020,Resources and Housing,Leeds Building Services,Supplies and Services,Other Hired And Contracted Services,265,17/12/2020,2012-00029,0.00,2443.00,R,A Coole Electrical Ltd,No
Http://opendatacommunities.org/id/metropolitan-district-council/leeds,Leeds City Council,31/12/2020,Resources and Housing,Leeds Building Services,Supplies and Services,Other Hired And Contracted Services,265,17/12/2020,2012-00030,0.00,2443.00,R,A Coole Electrical Ltd,No
Http://opendatacommunities.org/id/metropolitan-district-council/leeds,Leeds City Council,31/12/2020,Resources and Housing,Leeds Building Services,Supplies and Services,Other Hired And Contracted Services,265,17/12/2020,2012-00031,0.00,2303.00,R,A Coole Electrical Ltd,No
Http://opendatacommunities.org/id/metropolitan-district-council/leeds,Leeds City Council,31/12/2020,Resources and Housing,Leeds Building Services,Supplies and Services,Other Hired And Contracted Services,265,17/12/2020,2012-00032,0.00,2258.00,R,A Coole Electrical Ltd,No
Http://opendatacommunities.org/id/metropolitan-district-council/leeds,Leeds City Council,31/12/2020,Resources and Housing,Leeds Building Services,Supplies and Services,Other Hired And Contracted Services,265,24/12/2020,2012-00033,0.00,2393.00,R,A Coole Electrical Ltd,No
Http://opendatacommunities.org/id/metropolitan-district-council/leeds,Leeds City Council,31/12/2020,Resources and Housing,Leeds Building Services,Supplies and Services,Other Hired And Contracted Services,265,24/12/2020,2012-00034,0.00,2443.00,R,A Coole Electrical Ltd,No
Http://opendatacommunities.org/id/metropolitan-district-council/leeds,Leeds City Council,31/12/2020,Resources and Housing,Leeds Building Services,Supplies and Services,Other Hired And Contracted Services,265,24/12/2020,2012-00035,0.00,2473.00,R,A Coole Electrical Ltd,No
Http://opendatacommunities.org/id/metropolitan-district-council/leeds,Leeds City Council,31/12/2020,Resources and Housing,Leeds Building Services,Supplies and Services,Other Hired And Contracted Services,265,24/12/2020,2012-00036,0.00,2518.00,R,A Coole Electrical Ltd,No
Http://opendatacommunities.org/id/metropolitan-district-council/leeds,Leeds City Council,31/12/2020,Resources and Housing,Leeds Building Services,Supplies and Services,Other Hired And Contracted Services,265,24/12/2020,2012-00037,0.00,2383.00,R,A Coole Electrical Ltd,No
Http://opendatacommunities.org/id/metropolitan-district-council/leeds,Leeds City Council,31/12/2020,Resources and Housing,Leeds Building Services,Supplies and Services,Other Hired And Contracted Services,265,24/12/2020,2012-00038,0.00,2428.00,R,A Coole Electrical Ltd,No
Http://opendatacommunities.org/id/metropolitan-district-council/leeds,Leeds City Council,31/12/2020,Resources and Housing,Leeds Building Services,Supplies and Services,Other Hired And Contracted Services,265,24/12/2020,2012-00039,0.00,2338.00,R,A Coole Electrical Ltd,No
Http://opendatacommunities.org/id/metropolitan-district-council/leeds,Leeds City Council,31/12/2020,Resources and Housing,Leeds Building Services,Supplies and Services,Other Hired And Contracted Services,265,24/12/2020,2012-00040,0.00,2428.00,R,A Coole Electrical Ltd,No
Http://opendatacommunities.org/id/metropolitan-district-council/leeds,Leeds City Council,31/12/2020,Communities and Environment,Customer Access,Supplies and Services,Bought In Professional Services,277,02/12/2020,2012-00041,0.00,18.00,R,A D Dumitru,No
Http://opendatacommunities.org/id/metropolitan-district-council/leeds,Leeds City Council,31/12/2020,Communities and Environment,Communities,Supplies and Services,Other Hired And Contracted Services,265,04/12/2020,2012-00042,0.00,120.00,R,A D Dumitru,No
Http://opendatacommunities.org/id/metropolitan-district-council/leeds,Leeds City Council,31/12/2020,Communities and Environment,Customer Access,Supplies and Services,Bought In Professional Services,277,09/12/2020,2012-00043,0.00,18.00,R,A D Dumitru,No
Http://opendatacommunities.org/id/metropolitan-district-council/leeds,Leeds City Council,31/12/2020,Communities and Environment,Customer Access,Supplies and Services,Bought In Professional Services,277,16/12/2020,2012-00044,0.00,16.50,R,A D Dumitru,No
Http://opendatacommunities.org/id/metropolitan-district-council/leeds,Leeds City Council,31/12/2020,Communities and Environment,Customer Access,Supplies and Services,Bought In Professional Services,277,23/12/2020,2012-00045,0.00,27.00,R,A D Dumitru,No
Http://opendatacommunities.org/id/metropolitan-district-council/leeds,Leeds City Council,31/12/2020,Communities and Environment,Customer Access,Supplies and Services,Bought In Professional Services,277,23/12/2020,2012-00046,0.00,22.50,R,A D Dumitru,No
Http://opendatacommunities.org/id/metropolitan-district-council/leeds,Leeds City Council,31/12/2020,Communities and Environment,Customer Access,Supplies and Services,Bought In Professional Services,277,23/12/2020,2012-00047,0.00,9.00,R,A D Dumitru,No
Http://opendatacommunities.org/id/metropolitan-district-council/leeds,Leeds City Council,31/12/2020,Communities and Environment,Customer Access,Supplies and Services,Bought In Professional Services,277,23/12/2020,2012-00048,0.00,18.00,R,A D Dumitru,No
Http://opendatacommunities.org/id/metropolitan-district-council/leeds,Leeds City Council,31/12/2020,Communities and Environment,Communities,Supplies and Services,Other Hired And Contracted Services,265,23/12/2020,2012-00049,0.00,280.00,R,A D Dumitru,No
Http://opendatacommunities.org/id/metropolitan-district-council/leeds,Leeds City Council,31/12/2020,Children and Families,Social Care,Third Party Payments,Services Rendered By Voluntary Sector,505,02/12/2020,2012-00050,0.00,7745.76,R,REDACTED PERSONAL DATA,No
Http://opendatacommunities.org/id/metropolitan-district-council/leeds,Leeds City Council,31/12/2020,Children and Families,Social Care,Third Party Payments,Services Rendered By Voluntary Sector,505,04/12/2020,2012-00051,0.00,5252.71,R,REDACTED PERSONAL DATA,No
Http://opendatacommunities.org/id/metropolitan-district-council/leeds,Leeds City Council,31/12/2020,Children and Families,Social Care,Third Party Payments,Services Rendered By Other Organisations,511,04/12/2020,2012-00052,0.00,216.45,R,REDACTED PERSONAL DATA,No
Http://opendatacommunities.org/id/metropolitan-district-council/leeds,Leeds City Council,31/12/2020,Children and Families,Social Care,Third Party Payments,Services Rendered By Other Organisations,511,04/12/2020,2012-00053,0.00,422.94,R,REDACTED PERSONAL DATA,No
Http://opendatacommunities.org/id/metropolitan-district-council/leeds,Leeds City Council,31/12/2020,Children and Families,Social Care,Third Party Payments,Services Rendered By Voluntary Sector,505,31/12/2020,2012-00054,0.00,7621.20,R,REDACTED PERSONAL DATA,No
Http://opendatacommunities.org/id/metropolitan-district-council/leeds,Leeds City Council,31/12/2020,Children and Families,Social Care,Third Party Payments,Services Rendered By Other Organisations,511,02/12/2020,2012-00055,0.00,514.80,R,REDACTED PERSONAL DATA,No
Http://opendatacommunities.org/id/metropolitan-district-council/leeds,Leeds City Council,31/12/2020,Children and Families,Social Care,Third Party Payments,Services Rendered By Other Organisations,511,04/12/2020,2012-00056,0.00,2076.12,R,REDACTED PERSONAL DATA,No
Http://opendatacommunities.org/id/metropolitan-district-council/leeds,Leeds City Council,31/12/2020,Children and Families,Social Care,Third Party Payments,Services Rendered By Other Organisations,511,04/12/2020,2012-00057,0.00,115.44,R,REDACTED PERSONAL DATA,No
Http://opendatacommunities.org/id/metropolitan-district-council/leeds,Leeds City Council,31/12/2020,Children and Families,Social Care,Third Party Payments,Services Rendered By Other Organisations,511,31/12/2020,2012-00058,0.00,367.92,R,REDACTED PERSONAL DATA,No
Http://opendatacommunities.org/id/metropolitan-district-council/leeds,Leeds City Council,31/12/2020,City Development,Libraries Arts & Heritage,Supplies and Services,Other Hired And Contracted Services,265,18/12/2020,2012-00059,0.00,8231.00,R,A G Design Studio,No
Http://opendatacommunities.org/id/metropolitan-district-council/leeds,Leeds City Council,31/12/2020,Children and Families,Social Care,Third Party Payments,Services Rendered By Other Organisations,511,04/12/2020,2012-00060,0.00,213.52,R,REDACTED PERSONAL DATA,No
Http://opendatacommunities.org/id/metropolitan-district-council/leeds,Leeds City Council,31/12/2020,Children and Families,Social Care,Third Party Payments,Services Rendered By Other Organisations,511,31/12/2020,2012-00061,0.00,262.80,R,REDACTED PERSONAL DATA,No
Http://opendatacommunities.org/id/metropolitan-district-council/leeds,Leeds City Council,31/12/2020,Children and Families,Social Care,Third Party Payments,Contact,548,22/12/2020,2012-00062,0.00,15.00,R,REDACTED PERSONAL DATA,No
Http://opendatacommunities.org/id/metropolitan-district-council/leeds,Leeds City Council,31/12/2020,Children and Families,Social Care,Third Party Payments,Contact,548,29/12/2020,2012-00063,0.00,15.00,R,REDACTED PERSONAL DATA,No
Http://opendatacommunities.org/id/metropolitan-district-council/leeds,Leeds City Council,31/12/2020,Resources and Housing,HRA Housing Leeds,Capital,OTHER COSTS,7,24/12/2020,2012-00064,0.00,170.09,C,REDACTED PERSONAL DATA,No
Http://opendatacommunities.org/id/metropolitan-district-council/leeds,Leeds City Council,31/12/2020,Children and Families,Social Care,Third Party Payments,Services Rendered By Other Organisations,511,04/12/2020,2012-00065,0.00,361.35,R,REDACTED PERSONAL DATA,No
Http://opendatacommunities.org/id/metropolitan-district-council/leeds,Leeds City Council,31/12/2020,Children and Families,Social Care,Third Party Payments,Services Rendered By Other Organisations,511,31/12/2020,2012-00066,0.00,525.60,R,REDACTED PERSONAL DATA,No
Http://opendatacommunities.org/id/metropolitan-district-council/leeds,Leeds City Council,31/12/2020,Children and Families,Social Care,Third Party Payments,Services Rendered By Other Organisations,511,02/12/2020,2012-00067,0.00,514.80,R,REDACTED PERSONAL DATA,No
Http://opendatacommunities.org/id/metropolitan-district-council/leeds,Leeds City Council,31/12/2020,Children and Families,Social Care,Third Party Payments,Services Rendered By Other Organisations,511,04/12/2020,2012-00068,0.00,213.52,R,REDACTED PERSONAL DATA,No
Http://opendatacommunities.org/id/metropolitan-district-council/leeds,Leeds City Council,31/12/2020,Children and Families,Social Care,Third Party Payments,Services Rendered By Other Organisations,511,31/12/2020,2012-00069,0.00,578.16,R,REDACTED PERSONAL DATA,No
Http://opendatacommunities.org/id/metropolitan-district-council/leeds,Leeds City Council,31/12/2020,Resources and Housing,Commercial Services,Supplies and Services,Other Hired And Contracted Services,265,17/12/2020,2012-00070,0.00,111.00,R,REDACTED PERSONAL DATA,No
Http://opendatacommunities.org/id/metropolitan-district-council/leeds,Leeds City Council,31/12/2020,Resources and Housing,Commercial Services,Supplies and Services,Other Hired And Contracted Services,265,29/12/2020,2012-00071,0.00,74.00,R,REDACTED PERSONAL DATA,No
Http://opendatacommunities.org/id/metropolitan-district-council/leeds,Leeds City Council,31/12/2020,Adults and Health,Other Generic Services,Third Party Payments,Fees To Carers,563,16/12/2020,2012-00072,0.00,468.18,R,REDACTED PERSONAL DATA,No
Http://opendatacommunities.org/id/metropolitan-district-council/leeds,Leeds City Council,31/12/2020,Adults and Health,Other Generic Services,Third Party Payments,Fees To Carers,563,16/12/2020,2012-00073,0.00,56.70,R,REDACTED PERSONAL DATA,No
Http://opendatacommunities.org/id/metropolitan-district-council/leeds,Leeds City Council,31/12/2020,Resources and Housing,Leeds Building Services,Supplies and Services,Operational Materials,205,01/12/2020,2012-00074,0.00,46.85,R,A J H  Pump Supply & Repair Ltd,No
Http://opendatacommunities.org/id/metropolitan-district-council/leeds,Leeds City Council,31/12/2020,Resources and Housing,Leeds Building Services,Supplies and Services,Operational Materials,205,01/12/2020,2012-00075,0.00,189.85,R,A J H  Pump Supply & Repair Ltd,No
Http://opendatacommunities.org/id/metropolitan-district-council/leeds,Leeds City Council,31/12/2020,Resources and Housing,Leeds Building Services,Supplies and Services,Operational Materials,205,01/12/2020,2012-00076,0.00,89.50,R,A J H  Pump Supply & Repair Ltd,No
Http://opendatacommunities.org/id/metropolitan-district-council/leeds,Leeds City Council,31/12/2020,Resources and Housing,Leeds Building Services,Supplies and Services,Operational Materials,205,01/12/2020,2012-00077,0.00,7791.00,R,A J H  Pump Supply & Repair Ltd,No
Http://opendatacommunities.org/id/metropolitan-district-council/leeds,Leeds City Council,31/12/2020,Resources and Housing,Leeds Building Services,Supplies and Services,Operational Materials,205,03/12/2020,2012-00078,0.00,117.00,R,A J H  Pump Supply & Repair Ltd,No
Http://opendatacommunities.org/id/metropolitan-district-council/leeds,Leeds City Council,31/12/2020,Resources and Housing,Leeds Building Services,Supplies and Services,Operational Materials,205,03/12/2020,2012-00079,0.00,350.80,R,A J H  Pump Supply & Repair Ltd,No
Http://opendatacommunities.org/id/metropolitan-district-council/leeds,Leeds City Council,31/12/2020,Resources and Housing,Leeds Building Services,Supplies and Services,Operational Materials,205,03/12/2020,2012-00080,0.00,108.00,R,A J H  Pump Supply & Repair Ltd,No
Http://opendatacommunities.org/id/metropolitan-district-council/leeds,Leeds City Council,31/12/2020,Resources and Housing,Leeds Building Services,Supplies and Services,Operational Materials,205,03/12/2020,2012-00081,0.00,185.00,R,A J H  Pump Supply & Repair Ltd,No
Http://opendatacommunities.org/id/metropolitan-district-council/leeds,Leeds City Council,31/12/2020,Resources and Housing,Leeds Building Services,Supplies and Services,Operational Materials,205,03/12/2020,2012-00082,0.00,45.79,R,A J H  Pump Supply & Repair Ltd,No
Http://opendatacommunities.org/id/metropolitan-district-council/leeds,Leeds City Council,31/12/2020,Resources and Housing,Leeds Building Services,Supplies and Services,Operational Materials,205,03/12/2020,2012-00083,0.00,234.67,R,A J H  Pump Supply & Repair Ltd,No
Http://opendatacommunities.org/id/metropolitan-district-council/leeds,Leeds City Council,31/12/2020,Resources and Housing,Leeds Building Services,Supplies and Services,Operational Materials,205,03/12/2020,2012-00084,0.00,143.00,R,A J H  Pump Supply & Repair Ltd,No
Http://opendatacommunities.org/id/metropolitan-district-council/leeds,Leeds City Council,31/12/2020,Resources and Housing,Leeds Building Services,Supplies and Services,Operational Materials,205,03/12/2020,2012-00085,0.00,48.58,R,A J H  Pump Supply & Repair Ltd,No
Http://opendatacommunities.org/id/metropolitan-district-council/leeds,Leeds City Council,31/12/2020,Resources and Housing,Leeds Building Services,Supplies and Services,Other Hired And Contracted Services,265,17/12/2020,2012-00086,0.00,1137.50,R,A J H  Pump Supply & Repair Ltd,No
Http://opendatacommunities.org/id/metropolitan-district-council/leeds,Leeds City Council,31/12/2020,Resources and Housing,Leeds Building Services,Supplies and Services,Operational Materials,205,17/12/2020,2012-00087,0.00,27.88,R,A J H  Pump Supply & Repair Ltd,No
Http://opendatacommunities.org/id/metropolitan-district-council/leeds,Leeds City Council,31/12/2020,Resources and Housing,Leeds Building Services,Supplies and Services,Operational Materials,205,17/12/2020,2012-00088,0.00,20.47,R,A J H  Pump Supply & Repair Ltd,No
Http://opendatacommunities.org/id/metropolitan-district-council/leeds,Leeds City Council,31/12/2020,Resources and Housing,Leeds Building Services,Supplies and Services,Operational Materials,205,17/12/2020,2012-00089,0.00,38.50,R,A J H  Pump Supply & Repair Ltd,No
Http://opendatacommunities.org/id/metropolitan-district-council/leeds,Leeds City Council,31/12/2020,Resources and Housing,Leeds Building Services,Supplies and Services,Operational Materials,205,17/12/2020,2012-00090,0.00,9.99,R,A J H  Pump Supply & Repair Ltd,No
Http://opendatacommunities.org/id/metropolitan-district-council/leeds,Leeds City Council,31/12/2020,Resources and Housing,Leeds Building Services,Supplies and Services,Operational Materials,205,17/12/2020,2012-00091,0.00,214.49,R,A J H  Pump Supply & Repair Ltd,No
Http://opendatacommunities.org/id/metropolitan-district-council/leeds,Leeds City Council,31/12/2020,Resources and Housing,Leeds Building Services,Supplies and Services,Operational Materials,205,17/12/2020,2012-00092,0.00,30.00,R,A J H  Pump Supply & Repair Ltd,No
Http://opendatacommunities.org/id/metropolitan-district-council/leeds,Leeds City Council,31/12/2020,Resources and Housing,Leeds Building Services,Supplies and Services,Operational Materials,205,17/12/2020,2012-00093,0.00,126.00,R,A J H  Pump Supply & Repair Ltd,No
Http://opendatacommunities.org/id/metropolitan-district-council/leeds,Leeds City Council,31/12/2020,Resources and Housing,Leeds Building Services,Supplies and Services,Operational Materials,205,17/12/2020,2012-00094,0.00,2523.35,R,A J H  Pump Supply & Repair Ltd,No
Http://opendatacommunities.org/id/metropolitan-district-council/leeds,Leeds City Council,31/12/2020,Resources and Housing,Leeds Building Services,Supplies and Services,Operational Materials,205,17/12/2020,2012-00095,0.00,741.25,R,A J H  Pump Supply & Repair Ltd,No
Http://opendatacommunities.org/id/metropolitan-district-council/leeds,Leeds City Council,31/12/2020,Resources and Housing,Leeds Building Services,Supplies and Services,Operational Materials,205,17/12/2020,2012-00096,0.00,213.60,R,A J H  Pump Supply & Repair Ltd,No
Http://opendatacommunities.org/id/metropolitan-district-council/leeds,Leeds City Council,31/12/2020,Resources and Housing,Leeds Building Services,Supplies and Services,Operational Materials,205,17/12/2020,2012-00097,0.00,245.87,R,A J H  Pump Supply & Repair Ltd,No
Http://opendatacommunities.org/id/metropolitan-district-council/leeds,Leeds City Council,31/12/2020,Resources and Housing,Leeds Building Services,Supplies and Services,Operational Materials,205,17/12/2020,2012-00098,0.00,40.00,R,A J H  Pump Supply & Repair Ltd,No
Http://opendatacommunities.org/id/metropolitan-district-council/leeds,Leeds City Council,31/12/2020,Resources and Housing,Leeds Building Services,Supplies and Services,Operational Materials,205,17/12/2020,2012-00099,0.00,48.85,R,A J H  Pump Supply & Repair Ltd,No
Http://opendatacommunities.org/id/metropolitan-district-council/leeds,Leeds City Council,31/12/2020,Resources and Housing,Leeds Building Services,Supplies and Services,Operational Materials,205,17/12/2020,2012-00100,0.00,81.85,R,A J H  Pump Supply & Repair Ltd,No
Http://opendatacommunities.org/id/metropolitan-district-council/leeds,Leeds City Council,31/12/2020,Resources and Housing,Leeds Building Services,Supplies and Services,Operational Materials,205,17/12/2020,2012-00101,0.00,24.50,R,A J H  Pump Supply & Repair Ltd,No
Http://opendatacommunities.org/id/metropolitan-district-council/leeds,Leeds City Council,31/12/2020,Resources and Housing,Leeds Building Services,Supplies and Services,Operational Materials,205,17/12/2020,2012-00102,0.00,450.78,R,A J H  Pump Supply & Repair Ltd,No
Http://opendatacommunities.org/id/metropolitan-district-council/leeds,Leeds City Council,31/12/2020,Resources and Housing,Leeds Building Services,Supplies and Services,Operational Materials,205,17/12/2020,2012-00103,0.00,150.00,R,A J H  Pump Supply & Repair Ltd,No
Http://opendatacommunities.org/id/metropolitan-district-council/leeds,Leeds City Council,31/12/2020,Resources and Housing,Leeds Building Services,Supplies and Services,Operational Materials,205,17/12/2020,2012-00104,0.00,60.38,R,A J H  Pump Supply & Repair Ltd,No
Http://opendatacommunities.org/id/metropolitan-district-council/leeds,Leeds City Council,31/12/2020,Resources and Housing,Leeds Building Services,Supplies and Services,Operational Materials,205,17/12/2020,2012-00105,0.00,512.00,R,A J H  Pump Supply & Repair Ltd,No
Http://opendatacommunities.org/id/metropolitan-district-council/leeds,Leeds City Council,31/12/2020,Resources and Housing,Leeds Building Services,Supplies and Services,Operational Materials,205,17/12/2020,2012-00106,0.00,20.41,R,A J H  Pump Supply & Repair Ltd,No
Http://opendatacommunities.org/id/metropolitan-district-council/leeds,Leeds City Council,31/12/2020,Resources and Housing,Leeds Building Services,Supplies and Services,Operational Materials,205,17/12/2020,2012-00107,0.00,113.69,R,A J H  Pump Supply & Repair Ltd,No
Http://opendatacommunities.org/id/metropolitan-district-council/leeds,Leeds City Council,31/12/2020,Resources and Housing,Leeds Building Services,Supplies and Services,Operational Materials,205,17/12/2020,2012-00108,0.00,163.00,R,A J H  Pump Supply & Repair Ltd,No
Http://opendatacommunities.org/id/metropolitan-district-council/leeds,Leeds City Council,31/12/2020,Resources and Housing,Leeds Building Services,Supplies and Services,Operational Materials,205,17/12/2020,2012-00109,0.00,325.00,R,A J H  Pump Supply & Repair Ltd,No
Http://opendatacommunities.org/id/metropolitan-district-council/leeds,Leeds City Council,31/12/2020,Resources and Housing,Leeds Building Services,Supplies and Services,Operational Materials,205,17/12/2020,2012-00110,0.00,89.75,R,A J H  Pump Supply & Repair Ltd,No
Http://opendatacommunities.org/id/metropolitan-district-council/leeds,Leeds City Council,31/12/2020,Resources and Housing,Leeds Building Services,Supplies and Services,Operational Materials,205,18/12/2020,2012-00111,0.00,294.00,R,A J H  Pump Supply & Repair Ltd,No
Http://opendatacommunities.org/id/metropolitan-district-council/leeds,Leeds City Council,31/12/2020,Resources and Housing,Leeds Building Services,Supplies and Services,Operational Materials,205,23/12/2020,2012-00112,0.00,6.50,R,A J H  Pump Supply & Repair Ltd,No
Http://opendatacommunities.org/id/metropolitan-district-council/leeds,Leeds City Council,31/12/2020,Resources and Housing,Leeds Building Services,Supplies and Services,Operational Materials,205,23/12/2020,2012-00113,0.00,34.50,R,A J H  Pump Supply & Repair Ltd,No
Http://opendatacommunities.org/id/metropolitan-district-council/leeds,Leeds City Council,31/12/2020,Resources and Housing,Leeds Building Services,Supplies and Services,Operational Materials,205,23/12/2020,2012-00114,0.00,210.06,R,A J H  Pump Supply & Repair Ltd,No
Http://opendatacommunities.org/id/metropolitan-district-council/leeds,Leeds City Council,31/12/2020,Resources and Housing,Leeds Building Services,Supplies and Services,Operational Materials,205,24/12/2020,2012-00115,0.00,58.95,R,A J H  Pump Supply & Repair Ltd,No
Http://opendatacommunities.org/id/metropolitan-district-council/leeds,Leeds City Council,31/12/2020,Resources and Housing,Leeds Building Services,Supplies and Services,Operational Materials,205,24/12/2020,2012-00116,0.00,491.00,R,A J H  Pump Supply & Repair Ltd,No
Http://opendatacommunities.org/id/metropolitan-district-council/leeds,Leeds City Council,31/12/2020,Resources and Housing,Leeds Building Services,Supplies and Services,Operational Materials,205,24/12/2020,2012-00117,0.00,90.90,R,A J H  Pump Supply & Repair Ltd,No
Http://opendatacommunities.org/id/metropolitan-district-council/leeds,Leeds City Council,31/12/2020,Resources and Housing,Leeds Building Services,Supplies and Services,Operational Materials,205,24/12/2020,2012-00118,0.00,294.75,R,A J H  Pump Supply & Repair Ltd,No
Http://opendatacommunities.org/id/metropolitan-district-council/leeds,Leeds City Council,31/12/2020,Resources and Housing,Leeds Building Services,Supplies and Services,Operational Materials,205,24/12/2020,2012-00119,0.00,198.50,R,A J H  Pump Supply & Repair Ltd,No
Http://opendatacommunities.org/id/metropolitan-district-council/leeds,Leeds City Council,31/12/2020,Resources and Housing,Leeds Building Services,Supplies and Services,Operational Materials,205,24/12/2020,2012-00120,0.00,121.65,R,A J H  Pump Supply & Repair Ltd,No
Http://opendatacommunities.org/id/metropolitan-district-council/leeds,Leeds City Council,31/12/2020,Resources and Housing,Leeds Building Services,Supplies and Services,Operational Materials,205,24/12/2020,2012-00121,0.00,154.61,R,A J H  Pump Supply & Repair Ltd,No
Http://opendatacommunities.org/id/metropolitan-district-council/leeds,Leeds City Council,31/12/2020,Resources and Housing,Leeds Building Services,Supplies and Services,Operational Materials,205,24/12/2020,2012-00122,0.00,145.00,R,A J H  Pump Supply & Repair Ltd,No
Http://opendatacommunities.org/id/metropolitan-district-council/leeds,Leeds City Council,31/12/2020,Resources and Housing,Leeds Building Services,Supplies and Services,Operational Materials,205,24/12/2020,2012-00123,0.00,295.60,R,A J H  Pump Supply & Repair Ltd,No
Http://opendatacommunities.org/id/metropolitan-district-council/leeds,Leeds City Council,31/12/2020,Resources and Housing,Leeds Building Services,Supplies and Services,Operational Materials,205,24/12/2020,2012-00124,0.00,116.33,R,A J H  Pump Supply & Repair Ltd,No
Http://opendatacommunities.org/id/metropolitan-district-council/leeds,Leeds City Council,31/12/2020,Resources and Housing,Leeds Building Services,Supplies and Services,Operational Materials,205,24/12/2020,2012-00125,0.00,1280.00,R,A J H  Pump Supply & Repair Ltd,No
Http://opendatacommunities.org/id/metropolitan-district-council/leeds,Leeds City Council,31/12/2020,Resources and Housing,Leeds Building Services,Supplies and Services,Operational Materials,205,24/12/2020,2012-00126,0.00,936.00,R,A J H  Pump Supply & Repair Ltd,No
Http://opendatacommunities.org/id/metropolitan-district-council/leeds,Leeds City Council,31/12/2020,Resources and Housing,Leeds Building Services,Supplies and Services,Operational Materials,205,24/12/2020,2012-00127,0.00,80.20,R,A J H  Pump Supply & Repair Ltd,No
Http://opendatacommunities.org/id/metropolitan-district-council/leeds,Leeds City Council,31/12/2020,Resources and Housing,Leeds Building Services,Supplies and Services,Operational Materials,205,24/12/2020,2012-00128,0.00,658.80,R,A J H  Pump Supply & Repair Ltd,No
Http://opendatacommunities.org/id/metropolitan-district-council/leeds,Leeds City Council,31/12/2020,Resources and Housing,Leeds Building Services,Supplies and Services,Operational Materials,205,24/12/2020,2012-00129,0.00,278.00,R,A J H  Pump Supply & Repair Ltd,No
Http://opendatacommunities.org/id/metropolitan-district-council/leeds,Leeds City Council,31/12/2020,Resources and Housing,Leeds Building Services,Supplies and Services,Operational Materials,205,24/12/2020,2012-00130,0.00,25.30,R,A J H  Pump Supply & Repair Ltd,No
Http://opendatacommunities.org/id/metropolitan-district-council/leeds,Leeds City Council,31/12/2020,Resources and Housing,Leeds Building Services,Supplies and Services,Operational Materials,205,24/12/2020,2012-00131,0.00,85.88,R,A J H  Pump Supply & Repair Ltd,No
Http://opendatacommunities.org/id/metropolitan-district-council/leeds,Leeds City Council,31/12/2020,Resources and Housing,Leeds Building Services,Supplies and Services,Operational Materials,205,24/12/2020,2012-00132,0.00,245.60,R,A J H  Pump Supply & Repair Ltd,No
Http://opendatacommunities.org/id/metropolitan-district-council/leeds,Leeds City Council,31/12/2020,Resources and Housing,Leeds Building Services,Supplies and Services,Operational Materials,205,24/12/2020,2012-00133,0.00,20.76,R,A J H  Pump Supply & Repair Ltd,No
Http://opendatacommunities.org/id/metropolitan-district-council/leeds,Leeds City Council,31/12/2020,Resources and Housing,Leeds Building Services,Supplies and Services,Operational Materials,205,24/12/2020,2012-00134,0.00,62.42,R,A J H  Pump Supply & Repair Ltd,No
Http://opendatacommunities.org/id/metropolitan-district-council/leeds,Leeds City Council,31/12/2020,Resources and Housing,Leeds Building Services,Supplies and Services,Operational Materials,205,24/12/2020,2012-00135,0.00,38.89,R,A J H  Pump Supply & Repair Ltd,No
Http://opendatacommunities.org/id/metropolitan-district-council/leeds,Leeds City Council,31/12/2020,Resources and Housing,Leeds Building Services,Supplies and Services,Other Hired And Contracted Services,265,31/12/2020,2012-00136,0.00,935.00,R,A J H  Pump Supply & Repair Ltd,No
Http://opendatacommunities.org/id/metropolitan-district-council/leeds,Leeds City Council,31/12/2020,Resources and Housing,Leeds Building Services,Supplies and Services,Other Hired And Contracted Services,265,31/12/2020,2012-00137,0.00,935.00,R,A J H  Pump Supply & Repair Ltd,No
Http://opendatacommunities.org/id/metropolitan-district-council/leeds,Leeds City Council,31/12/2020,Resources and Housing,Leeds Building Services,Supplies and Services,Operational Materials,205,31/12/2020,2012-00138,0.00,154.95,R,A J H  Pump Supply & Repair Ltd,No
Http://opendatacommunities.org/id/metropolitan-district-council/leeds,Leeds City Council,31/12/2020,Resources and Housing,Leeds Building Services,Supplies and Services,Operational Materials,205,31/12/2020,2012-00139,0.00,51.89,R,A J H  Pump Supply & Repair Ltd,No
Http://opendatacommunities.org/id/metropolitan-district-council/leeds,Leeds City Council,31/12/2020,Resources and Housing,Leeds Building Services,Supplies and Services,Operational Materials,205,31/12/2020,2012-00140,0.00,1695.00,R,A J H  Pump Supply & Repair Ltd,No
Http://opendatacommunities.org/id/metropolitan-district-council/leeds,Leeds City Council,31/12/2020,Resources and Housing,Leeds Building Services,Supplies and Services,Operational Materials,205,31/12/2020,2012-00141,0.00,230.00,R,A J H  Pump Supply & Repair Ltd,No
Http://opendatacommunities.org/id/metropolitan-district-council/leeds,Leeds City Council,31/12/2020,Resources and Housing,Leeds Building Services,Supplies and Services,Operational Materials,205,31/12/2020,2012-00142,0.00,25.00,R,A J H  Pump Supply & Repair Ltd,No
Http://opendatacommunities.org/id/metropolitan-district-council/leeds,Leeds City Council,31/12/2020,Resources and Housing,Leeds Building Services,Supplies and Services,Operational Materials,205,31/12/2020,2012-00143,0.00,300.00,R,A J H  Pump Supply & Repair Ltd,No
Http://opendatacommunities.org/id/metropolitan-district-council/leeds,Leeds City Council,31/12/2020,Resources and Housing,Leeds Building Services,Supplies and Services,Operational Materials,205,31/12/2020,2012-00144,0.00,35.76,R,A J H  Pump Supply & Repair Ltd,No
Http://opendatacommunities.org/id/metropolitan-district-council/leeds,Leeds City Council,31/12/2020,Resources and Housing,Leeds Building Services,Supplies and Services,Operational Materials,205,31/12/2020,2012-00145,0.00,258.23,R,A J H  Pump Supply & Repair Ltd,No
Http://opendatacommunities.org/id/metropolitan-district-council/leeds,Leeds City Council,31/12/2020,Resources and Housing,Leeds Building Services,Supplies and Services,Operational Materials,205,31/12/2020,2012-00146,0.00,95.00,R,A J H  Pump Supply & Repair Ltd,No
Http://opendatacommunities.org/id/metropolitan-district-council/leeds,Leeds City Council,31/12/2020,Resources and Housing,Leeds Building Services,Supplies and Services,Operational Materials,205,31/12/2020,2012-00147,0.00,157.95,R,A J H  Pump Supply & Repair Ltd,No
Http://opendatacommunities.org/id/metropolitan-district-council/leeds,Leeds City Council,31/12/2020,Communities and Environment,Parks and Countryside,Supplies and Services,Resaleable Materials,204,31/12/2020,2012-00148,0.00,1510.95,R,A J PROMOTIONS,No
Http://opendatacommunities.org/id/metropolitan-district-council/leeds,Leeds City Council,31/12/2020,City Development,Libraries Arts & Heritage,Supplies and Services,ART GALLERIES TOTAL STORES,003,31/12/2020,2012-00149,0.00,115.37,R,A J PROMOTIONS,No
Http://opendatacommunities.org/id/metropolitan-district-council/leeds,Leeds City Council,31/12/2020,City Development,Economic Development,Supplies and Services,Grant Related Expenditure,298,16/12/2020,2012-00150,0.00,4140.00,R,A J Yeadon,No
Http://opendatacommunities.org/id/metropolitan-district-council/leeds,Leeds City Council,31/12/2020,Children and Families,Social Care,Third Party Payments,Services Rendered By Other Organisations,511,02/12/2020,2012-00151,0.00,1248.72,R,REDACTED PERSONAL DATA,No
Http://opendatacommunities.org/id/metropolitan-district-council/leeds,Leeds City Council,31/12/2020,Children and Families,Social Care,Third Party Payments,Services Rendered By Other Organisations,511,04/12/2020,2012-00152,0.00,1494.67,R,REDACTED PERSONAL DATA,No
Http://opendatacommunities.org/id/metropolitan-district-council/leeds,Leeds City Council,31/12/2020,Children and Families,Social Care,Third Party Payments,Services Rendered By Other Organisations,511,31/12/2020,2012-00153,0.00,2102.40,R,REDACTED PERSONAL DATA,No
Http://opendatacommunities.org/id/metropolitan-district-council/leeds,Leeds City Council,31/12/2020,Children and Families,Social Care,Third Party Payments,Contact,548,17/12/2020,2012-00154,0.00,32.00,R,REDACTED PERSONAL DATA,No
Http://opendatacommunities.org/id/metropolitan-district-council/leeds,Leeds City Council,31/12/2020,Resources and Housing,HRA Housing Leeds,Capital,OTHER COSTS,7,10/12/2020,2012-00155,0.00,100.00,C,REDACTED PERSONAL DATA,No
Http://opendatacommunities.org/id/metropolitan-district-council/leeds,Leeds City Council,31/12/2020,Communities and Environment,Customer Access,Supplies and Services,Bought In Professional Services,277,02/12/2020,2012-00156,0.00,18.00,R,A MOHAMMED,No
Http://opendatacommunities.org/id/metropolitan-district-council/leeds,Leeds City Council,31/12/2020,Communities and Environment,Customer Access,Supplies and Services,Bought In Professional Services,277,02/12/2020,2012-00157,0.00,18.00,R,A MOHAMMED,No
Http://opendatacommunities.org/id/metropolitan-district-council/leeds,Leeds City Council,31/12/2020,Communities and Environment,Customer Access,Supplies and Services,Bought In Professional Services,277,02/12/2020,2012-00158,0.00,18.00,R,A MOHAMMED,No
Http://opendatacommunities.org/id/metropolitan-district-council/leeds,Leeds City Council,31/12/2020,Communities and Environment,Customer Access,Supplies and Services,Bought In Professional Services,277,02/12/2020,2012-00159,0.00,27.00,R,A MOHAMMED,No
Http://opendatacommunities.org/id/metropolitan-district-council/leeds,Leeds City Council,31/12/2020,Communities and Environment,Customer Access,Supplies and Services,Bought In Professional Services,277,16/12/2020,2012-00160,0.00,18.00,R,A MOHAMMED,No
Http://opendatacommunities.org/id/metropolitan-district-council/leeds,Leeds City Council,31/12/2020,Communities and Environment,Customer Access,Supplies and Services,Bought In Professional Services,277,16/12/2020,2012-00161,0.00,9.00,R,A MOHAMMED,No
Http://opendatacommunities.org/id/metropolitan-district-council/leeds,Leeds City Council,31/12/2020,Communities and Environment,Customer Access,Supplies and Services,Bought In Professional Services,277,16/12/2020,2012-00162,0.00,18.00,R,A MOHAMMED,No
Http://opendatacommunities.org/id/metropolitan-district-council/leeds,Leeds City Council,31/12/2020,Communities and Environment,Customer Access,Supplies and Services,Bought In Professional Services,277,16/12/2020,2012-00163,0.00,18.00,R,A MOHAMMED,No
Http://opendatacommunities.org/id/metropolitan-district-council/leeds,Leeds City Council,31/12/2020,Communities and Environment,Customer Access,Supplies and Services,Bought In Professional Services,277,16/12/2020,2012-00164,0.00,18.00,R,A MOHAMMED,No
Http://opendatacommunities.org/id/metropolitan-district-council/leeds,Leeds City Council,31/12/2020,Communities and Environment,Customer Access,Supplies and Services,Bought In Professional Services,277,16/12/2020,2012-00165,0.00,18.00,R,A MOHAMMED,No
Http://opendatacommunities.org/id/metropolitan-district-council/leeds,Leeds City Council,31/12/2020,Communities and Environment,Customer Access,Supplies and Services,Bought In Professional Services,277,16/12/2020,2012-00166,0.00,9.00,R,A MOHAMMED,No
Http://opendatacommunities.org/id/metropolitan-district-council/leeds,Leeds City Council,31/12/2020,Communities and Environment,Customer Access,Supplies and Services,Bought In Professional Services,277,16/12/2020,2012-00167,0.00,18.00,R,A MOHAMMED,No
Http://opendatacommunities.org/id/metropolitan-district-council/leeds,Leeds City Council,31/12/2020,Communities and Environment,Customer Access,Supplies and Services,Bought In Professional Services,277,16/12/2020,2012-00168,0.00,18.00,R,A MOHAMMED,No
Http://opendatacommunities.org/id/metropolitan-district-council/leeds,Leeds City Council,31/12/2020,Communities and Environment,Customer Access,Supplies and Services,Bought In Professional Services,277,23/12/2020,2012-00169,0.00,18.00,R,A MOHAMMED,No
Http://opendatacommunities.org/id/metropolitan-district-council/leeds,Leeds City Council,31/12/2020,Communities and Environment,Customer Access,Supplies and Services,Bought In Professional Services,277,23/12/2020,2012-00170,0.00,18.00,R,A MOHAMMED,No
Http://opendatacommunities.org/id/metropolitan-district-council/leeds,Leeds City Council,31/12/2020,Communities and Environment,Customer Access,Supplies and Services,Bought In Professional Services,277,23/12/2020,2012-00171,0.00,13.50,R,A MOHAMMED,No
Http://opendatacommunities.org/id/metropolitan-district-council/leeds,Leeds City Council,31/12/2020,Communities and Environment,Customer Access,Supplies and Services,Bought In Professional Services,277,23/12/2020,2012-00172,0.00,18.00,R,A MOHAMMED,No
Http://opendatacommunities.org/id/metropolitan-district-council/leeds,Leeds City Council,31/12/2020,Communities and Environment,Customer Access,Supplies and Services,Bought In Professional Services,277,23/12/2020,2012-00173,0.00,27.00,R,A MOHAMMED,No
Http://opendatacommunities.org/id/metropolitan-district-council/leeds,Leeds City Council,31/12/2020,Communities and Environment,Customer Access,Supplies and Services,Bought In Professional Services,277,23/12/2020,2012-00174,0.00,36.00,R,A MOHAMMED,No
Http://opendatacommunities.org/id/metropolitan-district-council/leeds,Leeds City Council,31/12/2020,Children and Families,Social Care,Third Party Payments,Services Rendered By Other Organisations,511,02/12/2020,2012-00175,0.00,1544.40,R,REDACTED PERSONAL DATA,No
Http://opendatacommunities.org/id/metropolitan-district-council/leeds,Leeds City Council,31/12/2020,Children and Families,Social Care,Third Party Payments,Services Rendered By Other Organisations,511,04/12/2020,2012-00176,0.00,2800.24,R,REDACTED PERSONAL DATA,No
Http://opendatacommunities.org/id/metropolitan-district-council/leeds,Leeds City Council,31/12/2020,Children and Families,Social Care,Third Party Payments,Services Rendered By Other Organisations,511,04/12/2020,2012-00177,0.00,109.20,R,REDACTED PERSONAL DATA,No
Http://opendatacommunities.org/id/metropolitan-district-council/leeds,Leeds City Council,31/12/2020,Children and Families,Social Care,Third Party Payments,Services Rendered By Other Organisations,511,04/12/2020,2012-00178,0.00,211.47,R,REDACTED PERSONAL DATA,No
Http://opendatacommunities.org/id/metropolitan-district-council/leeds,Leeds City Council,31/12/2020,Children and Families,Social Care,Third Party Payments,Services Rendered By Other Organisations,511,31/12/2020,2012-00179,0.00,1314.00,R,REDACTED PERSONAL DATA,No
Http://opendatacommunities.org/id/metropolitan-district-council/leeds,Leeds City Council,31/12/2020,Communities and Environment,Customer Access,Supplies and Services,Bought In Professional Services,277,09/12/2020,2012-00180,0.00,13.50,R,A NAMAKI,No
Http://opendatacommunities.org/id/metropolitan-district-council/leeds,Leeds City Council,31/12/2020,Communities and Environment,Customer Access,Supplies and Services,Bought In Professional Services,277,09/12/2020,2012-00181,0.00,18.00,R,A NAMAKI,No
Http://opendatacommunities.org/id/metropolitan-district-council/leeds,Leeds City Council,31/12/2020,Communities and Environment,Customer Access,Supplies and Services,Bought In Professional Services,277,09/12/2020,2012-00182,0.00,18.00,R,A NAMAKI,No
Http://opendatacommunities.org/id/metropolitan-district-council/leeds,Leeds City Council,31/12/2020,Communities and Environment,Customer Access,Supplies and Services,Bought In Professional Services,277,16/12/2020,2012-00183,0.00,18.00,R,A NAMAKI,No
Http://opendatacommunities.org/id/metropolitan-district-council/leeds,Leeds City Council,31/12/2020,Communities and Environment,Customer Access,Supplies and Services,Bought In Professional Services,277,16/12/2020,2012-00184,0.00,18.00,R,A NAMAKI,No
Http://opendatacommunities.org/id/metropolitan-district-council/leeds,Leeds City Council,31/12/2020,Communities and Environment,Customer Access,Supplies and Services,Bought In Professional Services,277,16/12/2020,2012-00185,0.00,18.00,R,A NAMAKI,No
Http://opendatacommunities.org/id/metropolitan-district-council/leeds,Leeds City Council,31/12/2020,Children and Families,Social Care,Third Party Payments,Services Rendered By Other Organisations,511,04/12/2020,2012-00186,0.00,164.25,R,REDACTED PERSONAL DATA,No
Http://opendatacommunities.org/id/metropolitan-district-council/leeds,Leeds City Council,31/12/2020,Children and Families,Social Care,Third Party Payments,Services Rendered By Other Organisations,511,31/12/2020,2012-00187,0.00,262.80,R,REDACTED PERSONAL DATA,No
Http://opendatacommunities.org/id/metropolitan-district-council/leeds,Leeds City Council,31/12/2020,Communities and Environment,Parks and Countryside,Supplies and Services,Other Hired And Contracted Services,265,04/12/2020,2012-00188,0.00,999.84,R,A NICHOLLS,No
Http://opendatacommunities.org/id/metropolitan-district-council/leeds,Leeds City Council,31/12/2020,Children and Families,Social Care,Support Services,Legal Disbursements,411,07/12/2020,2012-00189,0.00,1711.25,R,A R Markos,No
Http://opendatacommunities.org/id/metropolitan-district-council/leeds,Leeds City Council,31/12/2020,Children and Families,Social Care,Support Services,Legal Disbursements,411,11/12/2020,2012-00190,0.00,4070.00,R,A R Markos,No
Http://opendatacommunities.org/id/metropolitan-district-council/leeds,Leeds City Council,31/12/2020,Children and Families,Social Care,Third Party Payments,Services Rendered By Other Organisations,511,02/12/2020,2012-00191,0.00,257.40,R,REDACTED PERSONAL DATA,No
Http://opendatacommunities.org/id/metropolitan-district-council/leeds,Leeds City Council,31/12/2020,Children and Families,Social Care,Third Party Payments,Services Rendered By Other Organisations,511,04/12/2020,2012-00192,0.00,304.41,R,REDACTED PERSONAL DATA,No
Http://opendatacommunities.org/id/metropolitan-district-council/leeds,Leeds City Council,31/12/2020,Children and Families,Social Care,Third Party Payments,Services Rendered By Other Organisations,511,31/12/2020,2012-00193,0.00,788.40,R,REDACTED PERSONAL DATA,No
Http://opendatacommunities.org/id/metropolitan-district-council/leeds,Leeds City Council,31/12/2020,Children and Families,Social Care,Third Party Payments,Independent Fostering Agencies,509,21/12/2020,2012-00194,0.00,1224.00,R,A Taxis,No
Http://opendatacommunities.org/id/metropolitan-district-council/leeds,Leeds City Council,31/12/2020,Children and Families,Social Care,Third Party Payments,Services Rendered By Other Organisations,511,04/12/2020,2012-00195,0.00,1747.62,R,REDACTED PERSONAL DATA,No
Http://opendatacommunities.org/id/metropolitan-district-council/leeds,Leeds City Council,31/12/2020,City Development,Libraries Arts & Heritage,Supplies and Services,Operational Furniture And Equipment,203,17/12/2020,2012-00196,0.00,508.44,R,A V Parts Master Ltd,No
Http://opendatacommunities.org/id/metropolitan-district-council/leeds,Leeds City Council,31/12/2020,Children and Families,Social Care,Third Party Payments,Services Rendered By Other Organisations,511,02/12/2020,2012-00197,0.00,343.20,R,REDACTED PERSONAL DATA,No
Http://opendatacommunities.org/id/metropolitan-district-council/leeds,Leeds City Council,31/12/2020,Children and Families,Social Care,Third Party Payments,Services Rendered By Other Organisations,511,04/12/2020,2012-00198,0.00,2621.43,R,REDACTED PERSONAL DATA,No
Http://opendatacommunities.org/id/metropolitan-district-council/leeds,Leeds City Council,31/12/2020,Children and Families,Social Care,Third Party Payments,Services Rendered By Other Organisations,511,04/12/2020,2012-00199,0.00,427.05,R,REDACTED PERSONAL DATA,No
Http://opendatacommunities.org/id/metropolitan-district-council/leeds,Leeds City Council,31/12/2020,Children and Families,Social Care,Third Party Payments,Services Rendered By Other Organisations,511,04/12/2020,2012-00200,0.00,132.60,R,REDACTED PERSONAL DATA,No
Http://opendatacommunities.org/id/metropolitan-district-council/leeds,Leeds City Council,31/12/2020,Children and Families,Social Care,Third Party Payments,Services Rendered By Other Organisations,511,31/12/2020,2012-00201,0.00,525.60,R,REDACTED PERSONAL DATA,No
Http://opendatacommunities.org/id/metropolitan-district-council/leeds,Leeds City Council,31/12/2020,Children and Families,Social Care,Third Party Payments,General External Residential Placements,507,02/12/2020,2012-00202,0.00,229.50,R,A Wilderness Way Ltd,No
Http://opendatacommunities.org/id/metropolitan-district-council/leeds,Leeds City Council,31/12/2020,Children and Families,Social Care,Third Party Payments,General External Residential Placements,507,03/12/2020,2012-00203,0.00,32511.30,R,A Wilderness Way Ltd,No
Http://opendatacommunities.org/id/metropolitan-district-council/leeds,Leeds City Council,31/12/2020,Children and Families,Social Care,Third Party Payments,General External Residential Placements,507,03/12/2020,2012-00204,0.00,32511.30,R,A Wilderness Way Ltd,No
Http://opendatacommunities.org/id/metropolitan-district-council/leeds,Leeds City Council,31/12/2020,Children and Families,Social Care,Third Party Payments,General External Residential Placements,507,03/12/2020,2012-00205,0.00,2940.00,R,A Wilderness Way Ltd,No
Http://opendatacommunities.org/id/metropolitan-district-council/leeds,Leeds City Council,31/12/2020,Children and Families,Social Care,Third Party Payments,General External Residential Placements,507,24/12/2020,2012-00206,0.00,229.50,R,A Wilderness Way Ltd,No
Http://opendatacommunities.org/id/metropolitan-district-council/leeds,Leeds City Council,31/12/2020,Children and Families,Social Care,Third Party Payments,General External Residential Placements,507,31/12/2020,2012-00207,0.00,33595.01,R,A Wilderness Way Ltd,No
Http://opendatacommunities.org/id/metropolitan-district-council/leeds,Leeds City Council,31/12/2020,Children and Families,Social Care,Third Party Payments,General External Residential Placements,507,31/12/2020,2012-00208,0.00,33595.01,R,A Wilderness Way Ltd,No
Http://opendatacommunities.org/id/metropolitan-district-council/leeds,Leeds City Council,31/12/2020,Children and Families,Social Care,Third Party Payments,General External Residential Placements,507,31/12/2020,2012-00209,0.00,1960.00,R,A Wilderness Way Ltd,No
Http://opendatacommunities.org/id/metropolitan-district-council/leeds,Leeds City Council,31/12/2020,Communities and Environment,Waste Management,Capital,FURNITURE AND EQUIPMENT,5,04/12/2020,2012-00210,0.00,11800.00,C,A&C Weber Uk Ltd,No
Http://opendatacommunities.org/id/metropolitan-district-council/leeds,Leeds City Council,31/12/2020,Resources and Housing,Leeds Building Services,Supplies and Services,Other Hired And Contracted Services,265,09/12/2020,2012-00211,0.00,1480.00,R,A1 STAIR LIFT SERVICES,No
Http://opendatacommunities.org/id/metropolitan-district-council/leeds,Leeds City Council,31/12/2020,Resources and Housing,Leeds Building Services,Supplies and Services,Other Hired And Contracted Services,265,18/12/2020,2012-00212,0.00,1520.00,R,A1 STAIR LIFT SERVICES,No
Http://opendatacommunities.org/id/metropolitan-district-council/leeds,Leeds City Council,31/12/2020,City Development,Libraries Arts & Heritage,Supplies and Services,Other Hired And Contracted Services,265,18/12/2020,2012-00213,0.00,150.00,R,AARDVARK ART SERVICES LTD,No
Http://opendatacommunities.org/id/metropolitan-district-council/leeds,Leeds City Council,31/12/2020,Children and Families,Social Care,Transfer Payments,Leaving Care Allowances,634,03/12/2020,2012-00214,0.00,50.00,R,REDACTED PERSONAL DATA,No
Http://opendatacommunities.org/id/metropolitan-district-council/leeds,Leeds City Council,31/12/2020,Children and Families,Social Care,Transfer Payments,Leaving Care Allowances,634,03/12/2020,2012-00215,0.00,50.00,R,REDACTED PERSONAL DATA,No
Http://opendatacommunities.org/id/metropolitan-district-council/leeds,Leeds City Council,31/12/2020,Communities and Environment,Customer Access,Supplies and Services,Bought In Professional Services,277,16/12/2020,2012-00216,0.00,18.00,R,Abadit Kiros,No
Http://opendatacommunities.org/id/metropolitan-district-council/leeds,Leeds City Council,31/12/2020,Communities and Environment,Customer Access,Supplies and Services,Bought In Professional Services,277,16/12/2020,2012-00217,0.00,18.00,R,Abadit Kiros,No
Http://opendatacommunities.org/id/metropolitan-district-council/leeds,Leeds City Council,31/12/2020,Communities and Environment,Customer Access,Supplies and Services,Bought In Professional Services,277,16/12/2020,2012-00218,0.00,13.50,R,Abadit Kiros,No
Http://opendatacommunities.org/id/metropolitan-district-council/leeds,Leeds City Council,31/12/2020,Communities and Environment,Customer Access,Supplies and Services,Bought In Professional Services,277,16/12/2020,2012-00219,0.00,18.00,R,Abadit Kiros,No
Http://opendatacommunities.org/id/metropolitan-district-council/leeds,Leeds City Council,31/12/2020,Communities and Environment,Customer Access,Supplies and Services,Bought In Professional Services,277,16/12/2020,2012-00220,0.00,31.50,R,Abadit Kiros,No
Http://opendatacommunities.org/id/metropolitan-district-council/leeds,Leeds City Council,31/12/2020,Communities and Environment,Customer Access,Supplies and Services,Bought In Professional Services,277,16/12/2020,2012-00221,0.00,9.00,R,Abadit Kiros,No
Http://opendatacommunities.org/id/metropolitan-district-council/leeds,Leeds City Council,31/12/2020,Communities and Environment,Customer Access,Supplies and Services,Bought In Professional Services,277,16/12/2020,2012-00222,0.00,18.00,R,Abadit Kiros,No
Http://opendatacommunities.org/id/metropolitan-district-council/leeds,Leeds City Council,31/12/2020,Communities and Environment,Customer Access,Supplies and Services,Bought In Professional Services,277,16/12/2020,2012-00223,0.00,18.00,R,Abadit Kiros,No
Http://opendatacommunities.org/id/metropolitan-district-council/leeds,Leeds City Council,31/12/2020,Communities and Environment,Customer Access,Supplies and Services,Bought In Professional Services,277,16/12/2020,2012-00224,0.00,18.00,R,Abadit Kiros,No
Http://opendatacommunities.org/id/metropolitan-district-council/leeds,Leeds City Council,31/12/2020,Communities and Environment,Customer Access,Supplies and Services,Bought In Professional Services,277,16/12/2020,2012-00225,0.00,18.00,R,Abadit Kiros,No
Http://opendatacommunities.org/id/metropolitan-district-council/leeds,Leeds City Council,31/12/2020,Communities and Environment,Customer Access,Supplies and Services,Bought In Professional Services,277,16/12/2020,2012-00226,0.00,13.50,R,Abadit Kiros,No
Http://opendatacommunities.org/id/metropolitan-district-council/leeds,Leeds City Council,31/12/2020,Communities and Environment,Customer Access,Supplies and Services,Bought In Professional Services,277,23/12/2020,2012-00227,0.00,9.00,R,Abadit Kiros,No
Http://opendatacommunities.org/id/metropolitan-district-council/leeds,Leeds City Council,31/12/2020,Communities and Environment,Customer Access,Supplies and Services,Bought In Professional Services,277,23/12/2020,2012-00228,0.00,18.00,R,Abadit Kiros,No
Http://opendatacommunities.org/id/metropolitan-district-council/leeds,Leeds City Council,31/12/2020,Strategic Landlord,Housing Management,Supplies and Services,Compensation Claims,200,14/12/2020,2012-00229,0.00,500.00,R,REDACTED PERSONAL DATA,No
Http://opendatacommunities.org/id/metropolitan-district-council/leeds,Leeds City Council,31/12/2020,Children and Families,Social Care,Third Party Payments,Services Rendered By Other Organisations,511,18/12/2020,2012-00230,0.00,1029.60,R,Abbey Multi Academy Trust,No
Http://opendatacommunities.org/id/metropolitan-district-council/leeds,Leeds City Council,31/12/2020,Children and Families,Social Care,Third Party Payments,Services Rendered By Other Organisations,511,18/12/2020,2012-00231,0.00,27451.20,R,Abbey Multi Academy Trust,No
Http://opendatacommunities.org/id/metropolitan-district-council/leeds,Leeds City Council,31/12/2020,Children and Families,Social Care,Third Party Payments,Services Rendered By Other Organisations,511,18/12/2020,2012-00232,0.00,1886.79,R,Abbey Multi Academy Trust,No
Http://opendatacommunities.org/id/metropolitan-district-council/leeds,Leeds City Council,31/12/2020,Children and Families,Social Care,Third Party Payments,Services Rendered By Other Organisations,511,18/12/2020,2012-00233,0.00,2038.35,R,Abbey Multi Academy Trust,No
Http://opendatacommunities.org/id/metropolitan-district-council/leeds,Leeds City Council,31/12/2020,Children and Families,Social Care,Third Party Payments,Services Rendered By Other Organisations,511,18/12/2020,2012-00234,0.00,206.70,R,Abbey Multi Academy Trust,No
Http://opendatacommunities.org/id/metropolitan-district-council/leeds,Leeds City Council,31/12/2020,Communities and Environment,Benefits Wlefare and Poverty,Supplies and Services,Schools related grant expenditure,299,23/12/2020,2012-00235,0.00,11400.00,R,Abbey Multi Academy Trust,No
Http://opendatacommunities.org/id/metropolitan-district-council/leeds,Leeds City Council,31/12/2020,Children and Families,Learning,Supplies and Services,Other Hired And Contracted Services,265,30/12/2020,2012-00236,0.00,2601.48,R,Abbey Multi Academy Trust,No
Http://opendatacommunities.org/id/metropolitan-district-council/leeds,Leeds City Council,31/12/2020,Children and Families,Social Care,Third Party Payments,Services Rendered By Other Organisations,511,02/12/2020,2012-00237,0.00,290.40,R,REDACTED PERSONAL DATA,No
Http://opendatacommunities.org/id/metropolitan-district-council/leeds,Leeds City Council,31/12/2020,Communities and Environment,Parks and Countryside,Supplies and Services,Other Hired And Contracted Services,265,24/12/2020,2012-00238,0.00,550.00,R,Abbotts Memorials,No
Http://opendatacommunities.org/id/metropolitan-district-council/leeds,Leeds City Council,31/12/2020,Communities and Environment,Parks and Countryside,Supplies and Services,Other Hired And Contracted Services,265,24/12/2020,2012-00239,0.00,550.00,R,Abbotts Memorials,No
Http://opendatacommunities.org/id/metropolitan-district-council/leeds,Leeds City Council,31/12/2020,Communities and Environment,Parks and Countryside,Supplies and Services,Other Hired And Contracted Services,265,24/12/2020,2012-00240,0.00,550.00,R,Abbotts Memorials,No
Http://opendatacommunities.org/id/metropolitan-district-council/leeds,Leeds City Council,31/12/2020,Children and Families,Social Care,Third Party Payments,Services Rendered By Voluntary Sector,505,02/12/2020,2012-00241,0.00,4026.00,R,Abc Daycare And Ozone Out Of School,No
Http://opendatacommunities.org/id/metropolitan-district-council/leeds,Leeds City Council,31/12/2020,Children and Families,Social Care,Third Party Payments,Services Rendered By Other Organisations,511,04/12/2020,2012-00242,0.00,9908.65,R,Abc Daycare And Ozone Out Of School,No
Http://opendatacommunities.org/id/metropolitan-district-council/leeds,Leeds City Council,31/12/2020,Children and Families,Social Care,Third Party Payments,Services Rendered By Other Organisations,511,04/12/2020,2012-00243,0.00,498.00,R,Abc Daycare And Ozone Out Of School,No
Http://opendatacommunities.org/id/metropolitan-district-council/leeds,Leeds City Council,31/12/2020,Children and Families,Social Care,Third Party Payments,Services Rendered By Other Organisations,511,04/12/2020,2012-00244,0.00,206.70,R,Abc Daycare And Ozone Out Of School,No
Http://opendatacommunities.org/id/metropolitan-district-council/leeds,Leeds City Council,31/12/2020,Children and Families,Social Care,Third Party Payments,Services Rendered By Other Organisations,511,31/12/2020,2012-00245,0.00,7621.20,R,Abc Daycare And Ozone Out Of School,No
Http://opendatacommunities.org/id/metropolitan-district-council/leeds,Leeds City Council,31/12/2020,Children and Families,Social Care,Third Party Payments,Services Rendered By Other Organisations,511,02/12/2020,2012-00246,0.00,4884.00,R,ABC NURSERY AT LUFC,No
Http://opendatacommunities.org/id/metropolitan-district-council/leeds,Leeds City Council,31/12/2020,Children and Families,Social Care,Third Party Payments,Services Rendered By Other Organisations,511,04/12/2020,2012-00247,0.00,10265.31,R,ABC NURSERY AT LUFC,No
Http://opendatacommunities.org/id/metropolitan-district-council/leeds,Leeds City Council,31/12/2020,Children and Families,Social Care,Third Party Payments,Services Rendered By Other Organisations,511,04/12/2020,2012-00248,0.00,915.90,R,ABC NURSERY AT LUFC,No
Http://opendatacommunities.org/id/metropolitan-district-council/leeds,Leeds City Council,31/12/2020,Children and Families,Social Care,Third Party Payments,Services Rendered By Other Organisations,511,08/12/2020,2012-00249,0.00,377.63,R,ABC NURSERY AT LUFC,No
Http://opendatacommunities.org/id/metropolitan-district-council/leeds,Leeds City Council,31/12/2020,Children and Families,Social Care,Third Party Payments,Services Rendered By Other Organisations,511,31/12/2020,2012-00250,0.00,7621.20,R,ABC NURSERY AT LUFC,No
Http://opendatacommunities.org/id/metropolitan-district-council/leeds,Leeds City Council,31/12/2020,Children and Families,Social Care,Third Party Payments,Services Rendered By Other Organisations,511,02/12/2020,2012-00251,0.00,6276.60,R,Abc@D'S Childcare,No
Http://opendatacommunities.org/id/metropolitan-district-council/leeds,Leeds City Council,31/12/2020,Children and Families,Social Care,Third Party Payments,Services Rendered By Other Organisations,511,04/12/2020,2012-00252,0.00,10700.47,R,Abc@D'S Childcare,No
Http://opendatacommunities.org/id/metropolitan-district-council/leeds,Leeds City Council,31/12/2020,Children and Families,Social Care,Third Party Payments,Services Rendered By Other Organisations,511,04/12/2020,2012-00253,0.00,733.65,R,Abc@D'S Childcare,No
Http://opendatacommunities.org/id/metropolitan-district-council/leeds,Leeds City Council,31/12/2020,Children and Families,Social Care,Third Party Payments,Services Rendered By Other Organisations,511,04/12/2020,2012-00254,0.00,211.47,R,Abc@D'S Childcare,No
Http://opendatacommunities.org/id/metropolitan-district-council/leeds,Leeds City Council,31/12/2020,Children and Families,Social Care,Third Party Payments,Services Rendered By Other Organisations,511,31/12/2020,2012-00255,0.00,7358.40,R,Abc@D'S Childcare,No
Http://opendatacommunities.org/id/metropolitan-district-council/leeds,Leeds City Council,31/12/2020,Communities and Environment,Benefits Wlefare and Poverty,Supplies and Services,Grant Related Expenditure,290,07/12/2020,2012-00256,0.00,500.00,R,Abdoul Hakeem Ramadhan,No
Http://opendatacommunities.org/id/metropolitan-district-council/leeds,Leeds City Council,31/12/2020,Communities and Environment,Customer Access,Supplies and Services,Bought In Professional Services,277,02/12/2020,2012-00257,0.00,18.00,R,Abdul Kalam,No
Http://opendatacommunities.org/id/metropolitan-district-council/leeds,Leeds City Council,31/12/2020,Communities and Environment,Customer Access,Supplies and Services,Bought In Professional Services,277,02/12/2020,2012-00258,0.00,27.00,R,Abdul Kalam,No
Http://opendatacommunities.org/id/metropolitan-district-council/leeds,Leeds City Council,31/12/2020,Communities and Environment,Customer Access,Supplies and Services,Bought In Professional Services,277,09/12/2020,2012-00259,0.00,27.00,R,Abdul Kalam,No
Http://opendatacommunities.org/id/metropolitan-district-council/leeds,Leeds City Council,31/12/2020,Communities and Environment,Customer Access,Supplies and Services,Bought In Professional Services,277,09/12/2020,2012-00260,0.00,18.00,R,Abdul Kalam,No
Http://opendatacommunities.org/id/metropolitan-district-council/leeds,Leeds City Council,31/12/2020,Communities and Environment,Customer Access,Supplies and Services,Bought In Professional Services,277,16/12/2020,2012-00261,0.00,18.00,R,Abdul Kalam,No
Http://opendatacommunities.org/id/metropolitan-district-council/leeds,Leeds City Council,31/12/2020,Communities and Environment,Customer Access,Supplies and Services,Bought In Professional Services,277,16/12/2020,2012-00262,0.00,18.00,R,Abdul Kalam,No
Http://opendatacommunities.org/id/metropolitan-district-council/leeds,Leeds City Council,31/12/2020,Communities and Environment,Customer Access,Supplies and Services,Bought In Professional Services,277,23/12/2020,2012-00263,0.00,36.00,R,Abdul Kalam,No
Http://opendatacommunities.org/id/metropolitan-district-council/leeds,Leeds City Council,31/12/2020,Communities and Environment,Benefits Wlefare and Poverty,Supplies and Services,Grant Related Expenditure,290,01/12/2020,2012-00264,0.00,500.00,R,REDACTED PERSONAL DATA,No
Http://opendatacommunities.org/id/metropolitan-district-council/leeds,Leeds City Council,31/12/2020,Communities and Environment,Benefits Wlefare and Poverty,Supplies and Services,Grant Related Expenditure,290,16/12/2020,2012-00265,0.00,500.00,R,REDACTED PERSONAL DATA,No
Http://opendatacommunities.org/id/metropolitan-district-council/leeds,Leeds City Council,31/12/2020,Communities and Environment,Benefits Wlefare and Poverty,Supplies and Services,Grant Related Expenditure,290,11/12/2020,2012-00266,0.00,500.00,R,REDACTED PERSONAL DATA,No
Http://opendatacommunities.org/id/metropolitan-district-council/leeds,Leeds City Council,31/12/2020,Communities and Environment,Customer Access,Supplies and Services,Bought In Professional Services,277,09/12/2020,2012-00267,0.00,27.00,R,Abdulrahim Dastyar,No
Http://opendatacommunities.org/id/metropolitan-district-council/leeds,Leeds City Council,31/12/2020,Communities and Environment,Customer Access,Supplies and Services,Bought In Professional Services,277,16/12/2020,2012-00268,0.00,27.00,R,Abdulrahim Dastyar,No
Http://opendatacommunities.org/id/metropolitan-district-council/leeds,Leeds City Council,31/12/2020,Communities and Environment,Customer Access,Supplies and Services,Bought In Professional Services,277,16/12/2020,2012-00269,0.00,9.00,R,Abdulrahim Dastyar,No
Http://opendatacommunities.org/id/metropolitan-district-council/leeds,Leeds City Council,31/12/2020,Communities and Environment,Customer Access,Supplies and Services,Bought In Professional Services,277,16/12/2020,2012-00270,0.00,27.00,R,Abdulrahim Dastyar,No
Http://opendatacommunities.org/id/metropolitan-district-council/leeds,Leeds City Council,31/12/2020,Communities and Environment,Customer Access,Supplies and Services,Bought In Professional Services,277,16/12/2020,2012-00271,0.00,27.00,R,Abdulrahim Dastyar,No
Http://opendatacommunities.org/id/metropolitan-district-council/leeds,Leeds City Council,31/12/2020,Communities and Environment,Customer Access,Supplies and Services,Bought In Professional Services,277,16/12/2020,2012-00272,0.00,27.00,R,Abdulrahim Dastyar,No
Http://opendatacommunities.org/id/metropolitan-district-council/leeds,Leeds City Council,31/12/2020,Communities and Environment,Customer Access,Supplies and Services,Bought In Professional Services,277,23/12/2020,2012-00273,0.00,27.00,R,Abdulrahim Dastyar,No
Http://opendatacommunities.org/id/metropolitan-district-council/leeds,Leeds City Council,31/12/2020,Communities and Environment,Customer Access,Supplies and Services,Bought In Professional Services,277,23/12/2020,2012-00274,0.00,18.00,R,Abdulrahim Dastyar,No
Http://opendatacommunities.org/id/metropolitan-district-council/leeds,Leeds City Council,31/12/2020,Communities and Environment,Customer Access,Supplies and Services,Bought In Professional Services,277,23/12/2020,2012-00275,0.00,27.00,R,Abdulrahim Dastyar,No
Http://opendatacommunities.org/id/metropolitan-district-council/leeds,Leeds City Council,31/12/2020,Communities and Environment,Customer Access,Supplies and Services,Bought In Professional Services,277,23/12/2020,2012-00276,0.00,18.00,R,Abdulrahim Dastyar,No
Http://opendatacommunities.org/id/metropolitan-district-council/leeds,Leeds City Council,31/12/2020,Children and Families,Social Care,Transfer Payments,Leaving Care Allowances,634,03/12/2020,2012-00277,0.00,50.00,R,REDACTED PERSONAL DATA,No
Http://opendatacommunities.org/id/metropolitan-district-council/leeds,Leeds City Council,31/12/2020,Adults and Health,Services For Older People - 65 And Over,Third Party Payments,Nursing Home,570,09/12/2020,2012-00278,0.00,21409.47,R,Aberford Hall,No
Http://opendatacommunities.org/id/metropolitan-district-council/leeds,Leeds City Council,31/12/2020,Adults and Health,Services For Older People - 65 And Over,Third Party Payments,Nursing Care Dementia,574,09/12/2020,2012-00279,0.00,1868.60,R,Aberford Hall,No
Http://opendatacommunities.org/id/metropolitan-district-council/leeds,Leeds City Council,31/12/2020,Adults and Health,Services For Older People - 65 And Over,Third Party Payments,Nursing Home,570,30/12/2020,2012-00280,0.00,33955.84,R,Aberford Hall,No
Http://opendatacommunities.org/id/metropolitan-district-council/leeds,Leeds City Council,31/12/2020,Adults and Health,Services For Older People - 65 And Over,Third Party Payments,Nursing Care Dementia,574,30/12/2020,2012-00281,0.00,1868.60,R,Aberford Hall,No
Http://opendatacommunities.org/id/metropolitan-district-council/leeds,Leeds City Council,31/12/2020,Resources and Housing,Leeds Building Services,Supplies and Services,Operational Materials,205,11/12/2020,2012-00282,0.00,281.04,R,ABI GARAGE DOORS LTD,No
Http://opendatacommunities.org/id/metropolitan-district-council/leeds,Leeds City Council,31/12/2020,Resources and Housing,Leeds Building Services,Supplies and Services,Operational Materials,205,11/12/2020,2012-00283,0.00,12.00,R,ABI GARAGE DOORS LTD,No
Http://opendatacommunities.org/id/metropolitan-district-council/leeds,Leeds City Council,31/12/2020,Resources and Housing,Leeds Building Services,Supplies and Services,Operational Materials,205,17/12/2020,2012-00284,0.00,15.00,R,ABI GARAGE DOORS LTD,No
Http://opendatacommunities.org/id/metropolitan-district-council/leeds,Leeds City Council,31/12/2020,Children and Families,Social Care,Transfer Payments,Leaving Care Allowances,634,04/12/2020,2012-00285,0.00,70.00,R,REDACTED PERSONAL DATA,No
Http://opendatacommunities.org/id/metropolitan-district-council/leeds,Leeds City Council,31/12/2020,Children and Families,Social Care,Transfer Payments,Leaving Care Allowances,634,11/12/2020,2012-00286,0.00,70.00,R,REDACTED PERSONAL DATA,No
Http://opendatacommunities.org/id/metropolitan-district-council/leeds,Leeds City Council,31/12/2020,Children and Families,Social Care,Transfer Payments,Leaving Care Allowances,634,18/12/2020,2012-00287,0.00,70.00,R,REDACTED PERSONAL DATA,No
Http://opendatacommunities.org/id/metropolitan-district-council/leeds,Leeds City Council,31/12/2020,Children and Families,Social Care,Transfer Payments,Leaving Care Allowances,634,18/12/2020,2012-00288,0.00,50.00,R,REDACTED PERSONAL DATA,No
Http://opendatacommunities.org/id/metropolitan-district-council/leeds,Leeds City Council,31/12/2020,Communities and Environment,Benefits Wlefare and Poverty,Supplies and Services,Grant Related Expenditure,290,03/12/2020,2012-00289,0.00,500.00,R,REDACTED PERSONAL DATA,No
Http://opendatacommunities.org/id/metropolitan-district-council/leeds,Leeds City Council,31/12/2020,City Development,Recreation,Income,Sporting & Other Recreational Fees,928,04/12/2020,2012-00290,0.00,33.40,R,REDACTED PERSONAL DATA,No
Http://opendatacommunities.org/id/metropolitan-district-council/leeds,Leeds City Council,31/12/2020,Communities and Environment,Benefits Wlefare and Poverty,Supplies and Services,Grant Related Expenditure,298,07/12/2020,2012-00291,0.00,500.00,R,REDACTED PERSONAL DATA,No
Http://opendatacommunities.org/id/metropolitan-district-council/leeds,Leeds City Council,31/12/2020,Children and Families,Social Care,Third Party Payments,Placement Support,550,24/12/2020,2012-00292,0.00,23.69,R,REDACTED PERSONAL DATA,No
Http://opendatacommunities.org/id/metropolitan-district-council/leeds,Leeds City Council,31/12/2020,Children and Families,Social Care,Third Party Payments,Placement Support,550,29/12/2020,2012-00293,0.00,1.25,R,REDACTED PERSONAL DATA,No
Http://opendatacommunities.org/id/metropolitan-district-council/leeds,Leeds City Council,31/12/2020,Communities and Environment,Benefits Wlefare and Poverty,Supplies and Services,Grant Related Expenditure,298,01/12/2020,2012-00294,0.00,500.00,R,REDACTED PERSONAL DATA,No
Http://opendatacommunities.org/id/metropolitan-district-council/leeds,Leeds City Council,31/12/2020,Children and Families,Social Care ,Supplies and Services,Food & Drink,231,16/11/2020,2012-00295,0.00,19.67,R,Abu Bakar,Yes
Http://opendatacommunities.org/id/metropolitan-district-council/leeds,Leeds City Council,31/12/2020,Adults and Health,Services For Adults Under 65 Mental/Dis,Third Party Payments,Fees - Level 4,520,16/12/2020,2012-00296,0.00,175.00,R,Abubaker Denja Mohammed,No
Http://opendatacommunities.org/id/metropolitan-district-council/leeds,Leeds City Council,31/12/2020,Adults and Health,Services For Adults Under 65 Mental/Dis,Third Party Payments,Fees - Level 4,520,16/12/2020,2012-00297,0.00,175.00,R,Abubaker Denja Mohammed,No
Http://opendatacommunities.org/id/metropolitan-district-council/leeds,Leeds City Council,31/12/2020,Adults and Health,Services For Adults Under 65 Mental/Dis,Third Party Payments,Fees - Level 4,520,18/12/2020,2012-00298,0.00,175.00,R,Abubaker Denja Mohammed,No
Http://opendatacommunities.org/id/metropolitan-district-council/leeds,Leeds City Council,31/12/2020,Adults and Health,Services For Adults Under 65 Mental/Dis,Third Party Payments,Fees - Level 4,520,31/12/2020,2012-00299,0.00,175.00,R,Abubaker Denja Mohammed,No
Http://opendatacommunities.org/id/metropolitan-district-council/leeds,Leeds City Council,31/12/2020,Adults and Health,Services For Adults Under 65 Mental/Dis,Third Party Payments,Fees - Level 4,520,31/12/2020,2012-00300,0.00,175.00,R,Abubaker Denja Mohammed,No
Http://opendatacommunities.org/id/metropolitan-district-council/leeds,Leeds City Council,31/12/2020,Children and Families,Social Care,Third Party Payments,Services Rendered By Other Organisations,511,02/12/2020,2012-00301,0.00,13701.60,R,Academies Enterprise Trust (AET),No
Http://opendatacommunities.org/id/metropolitan-district-council/leeds,Leeds City Council,31/12/2020,Children and Families,Social Care,Third Party Payments,Services Rendered By Other Organisations,511,04/12/2020,2012-00302,0.00,27922.50,R,Academies Enterprise Trust (AET),No
Http://opendatacommunities.org/id/metropolitan-district-council/leeds,Leeds City Council,31/12/2020,Children and Families,Social Care,Third Party Payments,Services Rendered By Other Organisations,511,04/12/2020,2012-00303,0.00,3916.80,R,Academies Enterprise Trust (AET),No
Http://opendatacommunities.org/id/metropolitan-district-council/leeds,Leeds City Council,31/12/2020,Children and Families,Social Care,Third Party Payments,Services Rendered By Other Organisations,511,04/12/2020,2012-00304,0.00,95.40,R,Academies Enterprise Trust (AET),No
Http://opendatacommunities.org/id/metropolitan-district-council/leeds,Leeds City Council,31/12/2020,Children and Families,Social Care,Third Party Payments,Services Rendered By Other Organisations,511,18/12/2020,2012-00305,0.00,396.01,R,Academies Enterprise Trust (AET),No
Http://opendatacommunities.org/id/metropolitan-district-council/leeds,Leeds City Council,31/12/2020,Children and Families,Social Care,Third Party Payments,Services Rendered By Other Organisations,511,18/12/2020,2012-00306,0.00,1822.99,R,Academies Enterprise Trust (AET),No
Http://opendatacommunities.org/id/metropolitan-district-council/leeds,Leeds City Council,31/12/2020,Children and Families,Social Care,Third Party Payments,Services Rendered By Other Organisations,511,18/12/2020,2012-00307,0.00,6200.88,R,Academies Enterprise Trust (AET),No
Http://opendatacommunities.org/id/metropolitan-district-council/leeds,Leeds City Council,31/12/2020,Children and Families,Social Care,Third Party Payments,Services Rendered By Other Organisations,511,18/12/2020,2012-00308,0.00,539.01,R,Academies Enterprise Trust (AET),No
Http://opendatacommunities.org/id/metropolitan-district-council/leeds,Leeds City Council,31/12/2020,Communities and Environment,Benefits Wlefare and Poverty,Supplies and Services,Schools related grant expenditure,299,23/12/2020,2012-00309,0.00,4440.00,R,Academies Enterprise Trust (AET),No
Http://opendatacommunities.org/id/metropolitan-district-council/leeds,Leeds City Council,31/12/2020,Children and Families,Learning,Supplies and Services,Other Hired And Contracted Services,265,30/12/2020,2012-00310,0.00,3821.33,R,Academies Enterprise Trust (AET),No
Http://opendatacommunities.org/id/metropolitan-district-council/leeds,Leeds City Council,31/12/2020,Adults and Health,Services For Older People - 65 And Over,Third Party Payments,Home Care,568,09/12/2020,2012-00311,0.00,780.78,R,Academy Care Ltd,No
Http://opendatacommunities.org/id/metropolitan-district-council/leeds,Leeds City Council,31/12/2020,Adults and Health,Services For Older People - 65 And Over,Third Party Payments,Home Care,568,09/12/2020,2012-00312,0.00,1338.48,R,Academy Care Ltd,No
Http://opendatacommunities.org/id/metropolitan-district-council/leeds,Leeds City Council,31/12/2020,Resources and Housing,Strategic Housing Partnership & Support ,Supplies and Services,Other Hired And Contracted Services,265,20/11/2020,2012-00313,0.00,60.00,R,Access Locksmiths,Yes
Http://opendatacommunities.org/id/metropolitan-district-council/leeds,Leeds City Council,31/12/2020,Resources and Housing,Strategic Housing Partnership & Support ,Supplies and Services,Other Hired And Contracted Services,265,25/11/2020,2012-00314,0.00,50.50,R,Access Locksmiths,Yes
Http://opendatacommunities.org/id/metropolitan-district-council/leeds,Leeds City Council,31/12/2020,Resources and Housing,Leeds Building Services,Supplies and Services,Operational Materials,205,03/12/2020,2012-00315,0.00,56.66,R,ACCESS LOCKSMITHS (LEEDS) LIMITED,No
Http://opendatacommunities.org/id/metropolitan-district-council/leeds,Leeds City Council,31/12/2020,Resources and Housing,Leeds Building Services,Supplies and Services,Operational Materials,205,03/12/2020,2012-00316,0.00,59.30,R,ACCESS LOCKSMITHS (LEEDS) LIMITED,No
Http://opendatacommunities.org/id/metropolitan-district-council/leeds,Leeds City Council,31/12/2020,Resources and Housing,Leeds Building Services,Supplies and Services,Operational Materials,205,03/12/2020,2012-00317,0.00,124.79,R,ACCESS LOCKSMITHS (LEEDS) LIMITED,No
Http://opendatacommunities.org/id/metropolitan-district-council/leeds,Leeds City Council,31/12/2020,Resources and Housing,Leeds Building Services,Supplies and Services,Operational Materials,205,03/12/2020,2012-00318,0.00,139.28,R,ACCESS LOCKSMITHS (LEEDS) LIMITED,No
Http://opendatacommunities.org/id/metropolitan-district-council/leeds,Leeds City Council,31/12/2020,Resources and Housing,Leeds Building Services,Supplies and Services,Operational Materials,205,03/12/2020,2012-00319,0.00,139.28,R,ACCESS LOCKSMITHS (LEEDS) LIMITED,No
Http://opendatacommunities.org/id/metropolitan-district-council/leeds,Leeds City Council,31/12/2020,Resources and Housing,Leeds Building Services,Supplies and Services,Operational Materials,205,03/12/2020,2012-00320,0.00,139.28,R,ACCESS LOCKSMITHS (LEEDS) LIMITED,No
Http://opendatacommunities.org/id/metropolitan-district-council/leeds,Leeds City Council,31/12/2020,Resources and Housing,Leeds Building Services,Supplies and Services,Operational Materials,205,03/12/2020,2012-00321,0.00,45.88,R,ACCESS LOCKSMITHS (LEEDS) LIMITED,No
Http://opendatacommunities.org/id/metropolitan-district-council/leeds,Leeds City Council,31/12/2020,Resources and Housing,Leeds Building Services,Supplies and Services,Operational Materials,205,03/12/2020,2012-00322,0.00,12.43,R,ACCESS LOCKSMITHS (LEEDS) LIMITED,No
Http://opendatacommunities.org/id/metropolitan-district-council/leeds,Leeds City Council,31/12/2020,Resources and Housing,Leeds Building Services,Supplies and Services,Operational Materials,205,03/12/2020,2012-00323,0.00,6.63,R,ACCESS LOCKSMITHS (LEEDS) LIMITED,No
Http://opendatacommunities.org/id/metropolitan-district-council/leeds,Leeds City Council,31/12/2020,Resources and Housing,Leeds Building Services,Supplies and Services,Operational Materials,205,03/12/2020,2012-00324,0.00,58.07,R,ACCESS LOCKSMITHS (LEEDS) LIMITED,No
Http://opendatacommunities.org/id/metropolitan-district-council/leeds,Leeds City Council,31/12/2020,Resources and Housing,Leeds Building Services,Supplies and Services,Operational Materials,205,03/12/2020,2012-00325,0.00,278.56,R,ACCESS LOCKSMITHS (LEEDS) LIMITED,No
Http://opendatacommunities.org/id/metropolitan-district-council/leeds,Leeds City Council,31/12/2020,Resources and Housing,Leeds Building Services,Supplies and Services,Operational Materials,205,03/12/2020,2012-00326,0.00,6.63,R,ACCESS LOCKSMITHS (LEEDS) LIMITED,No
Http://opendatacommunities.org/id/metropolitan-district-council/leeds,Leeds City Council,31/12/2020,Resources and Housing,Leeds Building Services,Supplies and Services,Operational Materials,205,03/12/2020,2012-00327,0.00,6.63,R,ACCESS LOCKSMITHS (LEEDS) LIMITED,No
Http://opendatacommunities.org/id/metropolitan-district-council/leeds,Leeds City Council,31/12/2020,Resources and Housing,Leeds Building Services,Supplies and Services,Operational Materials,205,03/12/2020,2012-00328,0.00,6.63,R,ACCESS LOCKSMITHS (LEEDS) LIMITED,No
Http://opendatacommunities.org/id/metropolitan-district-council/leeds,Leeds City Council,31/12/2020,Resources and Housing,Leeds Building Services,Supplies and Services,Operational Materials,205,03/12/2020,2012-00329,0.00,13.66,R,ACCESS LOCKSMITHS (LEEDS) LIMITED,No
Http://opendatacommunities.org/id/metropolitan-district-council/leeds,Leeds City Council,31/12/2020,Resources and Housing,Leeds Building Services,Supplies and Services,Operational Materials,205,03/12/2020,2012-00330,0.00,139.28,R,ACCESS LOCKSMITHS (LEEDS) LIMITED,No
Http://opendatacommunities.org/id/metropolitan-district-council/leeds,Leeds City Council,31/12/2020,Resources and Housing,Leeds Building Services,Supplies and Services,Operational Materials,205,03/12/2020,2012-00331,0.00,44.65,R,ACCESS LOCKSMITHS (LEEDS) LIMITED,No
Http://opendatacommunities.org/id/metropolitan-district-council/leeds,Leeds City Council,31/12/2020,Resources and Housing,Leeds Building Services,Supplies and Services,Operational Materials,205,03/12/2020,2012-00332,0.00,10.40,R,ACCESS LOCKSMITHS (LEEDS) LIMITED,No
Http://opendatacommunities.org/id/metropolitan-district-council/leeds,Leeds City Council,31/12/2020,Resources and Housing,Leeds Building Services,Supplies and Services,Operational Materials,205,03/12/2020,2012-00333,0.00,8.00,R,ACCESS LOCKSMITHS (LEEDS) LIMITED,No
Http://opendatacommunities.org/id/metropolitan-district-council/leeds,Leeds City Council,31/12/2020,Resources and Housing,Leeds Building Services,Supplies and Services,Operational Materials,205,03/12/2020,2012-00334,0.00,557.13,R,ACCESS LOCKSMITHS (LEEDS) LIMITED,No
Http://opendatacommunities.org/id/metropolitan-district-council/leeds,Leeds City Council,31/12/2020,Resources and Housing,Leeds Building Services,Supplies and Services,Operational Materials,205,03/12/2020,2012-00335,0.00,75.65,R,ACCESS LOCKSMITHS (LEEDS) LIMITED,No
Http://opendatacommunities.org/id/metropolitan-district-council/leeds,Leeds City Council,31/12/2020,Resources and Housing,Leeds Building Services,Supplies and Services,Operational Materials,205,03/12/2020,2012-00336,0.00,25.07,R,ACCESS LOCKSMITHS (LEEDS) LIMITED,No
Http://opendatacommunities.org/id/metropolitan-district-council/leeds,Leeds City Council,31/12/2020,Resources and Housing,Leeds Building Services,Supplies and Services,Operational Materials,205,03/12/2020,2012-00337,0.00,12.00,R,ACCESS LOCKSMITHS (LEEDS) LIMITED,No
Http://opendatacommunities.org/id/metropolitan-district-council/leeds,Leeds City Council,31/12/2020,Resources and Housing,Leeds Building Services,Supplies and Services,Operational Materials,205,03/12/2020,2012-00338,0.00,7.11,R,ACCESS LOCKSMITHS (LEEDS) LIMITED,No
Http://opendatacommunities.org/id/metropolitan-district-council/leeds,Leeds City Council,31/12/2020,Resources and Housing,Leeds Building Services,Supplies and Services,Operational Materials,205,03/12/2020,2012-00339,0.00,21.18,R,ACCESS LOCKSMITHS (LEEDS) LIMITED,No
Http://opendatacommunities.org/id/metropolitan-district-council/leeds,Leeds City Council,31/12/2020,Resources and Housing,Leeds Building Services,Supplies and Services,Operational Materials,205,03/12/2020,2012-00340,0.00,21.18,R,ACCESS LOCKSMITHS (LEEDS) LIMITED,No
Http://opendatacommunities.org/id/metropolitan-district-council/leeds,Leeds City Council,31/12/2020,Resources and Housing,Leeds Building Services,Supplies and Services,Operational Materials,205,03/12/2020,2012-00341,0.00,21.18,R,ACCESS LOCKSMITHS (LEEDS) LIMITED,No
Http://opendatacommunities.org/id/metropolitan-district-council/leeds,Leeds City Council,31/12/2020,Resources and Housing,Leeds Building Services,Supplies and Services,Operational Materials,205,03/12/2020,2012-00342,0.00,14.72,R,ACCESS LOCKSMITHS (LEEDS) LIMITED,No
Http://opendatacommunities.org/id/metropolitan-district-council/leeds,Leeds City Council,31/12/2020,Resources and Housing,Leeds Building Services,Supplies and Services,Operational Materials,205,03/12/2020,2012-00343,0.00,12.48,R,ACCESS LOCKSMITHS (LEEDS) LIMITED,No
Http://opendatacommunities.org/id/metropolitan-district-council/leeds,Leeds City Council,31/12/2020,Resources and Housing,Leeds Building Services,Supplies and Services,Operational Materials,205,03/12/2020,2012-00344,0.00,178.34,R,ACCESS LOCKSMITHS (LEEDS) LIMITED,No
Http://opendatacommunities.org/id/metropolitan-district-council/leeds,Leeds City Council,31/12/2020,Resources and Housing,Leeds Building Services,Supplies and Services,Operational Materials,205,03/12/2020,2012-00345,0.00,61.98,R,ACCESS LOCKSMITHS (LEEDS) LIMITED,No
Http://opendatacommunities.org/id/metropolitan-district-council/leeds,Leeds City Council,31/12/2020,Resources and Housing,Leeds Building Services,Supplies and Services,Operational Materials,205,03/12/2020,2012-00346,0.00,67.90,R,ACCESS LOCKSMITHS (LEEDS) LIMITED,No
Http://opendatacommunities.org/id/metropolitan-district-council/leeds,Leeds City Council,31/12/2020,Resources and Housing,Leeds Building Services,Supplies and Services,Operational Materials,205,03/12/2020,2012-00347,0.00,30.19,R,ACCESS LOCKSMITHS (LEEDS) LIMITED,No
Http://opendatacommunities.org/id/metropolitan-district-council/leeds,Leeds City Council,31/12/2020,Resources and Housing,Leeds Building Services,Supplies and Services,Operational Materials,205,03/12/2020,2012-00348,0.00,10.22,R,ACCESS LOCKSMITHS (LEEDS) LIMITED,No
Http://opendatacommunities.org/id/metropolitan-district-council/leeds,Leeds City Council,31/12/2020,Resources and Housing,Leeds Building Services,Supplies and Services,Operational Materials,205,03/12/2020,2012-00349,0.00,10.00,R,ACCESS LOCKSMITHS (LEEDS) LIMITED,No
Http://opendatacommunities.org/id/metropolitan-district-council/leeds,Leeds City Council,31/12/2020,Resources and Housing,Leeds Building Services,Supplies and Services,Operational Materials,205,03/12/2020,2012-00350,0.00,12.50,R,ACCESS LOCKSMITHS (LEEDS) LIMITED,No
Http://opendatacommunities.org/id/metropolitan-district-council/leeds,Leeds City Council,31/12/2020,Resources and Housing,Leeds Building Services,Supplies and Services,Operational Materials,205,03/12/2020,2012-00351,0.00,66.50,R,ACCESS LOCKSMITHS (LEEDS) LIMITED,No
Http://opendatacommunities.org/id/metropolitan-district-council/leeds,Leeds City Council,31/12/2020,Resources and Housing,Leeds Building Services,Supplies and Services,Operational Materials,205,03/12/2020,2012-00352,0.00,38.75,R,ACCESS LOCKSMITHS (LEEDS) LIMITED,No
Http://opendatacommunities.org/id/metropolitan-district-council/leeds,Leeds City Council,31/12/2020,Resources and Housing,Leeds Building Services,Supplies and Services,Operational Materials,205,03/12/2020,2012-00353,0.00,26.90,R,ACCESS LOCKSMITHS (LEEDS) LIMITED,No
Http://opendatacommunities.org/id/metropolitan-district-council/leeds,Leeds City Council,31/12/2020,Resources and Housing,Leeds Building Services,Supplies and Services,Operational Materials,205,03/12/2020,2012-00354,0.00,17.50,R,ACCESS LOCKSMITHS (LEEDS) LIMITED,No
Http://opendatacommunities.org/id/metropolitan-district-council/leeds,Leeds City Council,31/12/2020,Resources and Housing,Leeds Building Services,Supplies and Services,Operational Materials,205,03/12/2020,2012-00355,0.00,30.60,R,ACCESS LOCKSMITHS (LEEDS) LIMITED,No
Http://opendatacommunities.org/id/metropolitan-district-council/leeds,Leeds City Council,31/12/2020,Resources and Housing,Leeds Building Services,Supplies and Services,Operational Materials,205,03/12/2020,2012-00356,0.00,5.20,R,ACCESS LOCKSMITHS (LEEDS) LIMITED,No
Http://opendatacommunities.org/id/metropolitan-district-council/leeds,Leeds City Council,31/12/2020,Resources and Housing,Leeds Building Services,Supplies and Services,Operational Materials,205,03/12/2020,2012-00357,0.00,18.79,R,ACCESS LOCKSMITHS (LEEDS) LIMITED,No
Http://opendatacommunities.org/id/metropolitan-district-council/leeds,Leeds City Council,31/12/2020,Resources and Housing,Leeds Building Services,Supplies and Services,Operational Materials,205,03/12/2020,2012-00358,0.00,43.36,R,ACCESS LOCKSMITHS (LEEDS) LIMITED,No
Http://opendatacommunities.org/id/metropolitan-district-council/leeds,Leeds City Council,31/12/2020,Resources and Housing,Leeds Building Services,Supplies and Services,Operational Materials,205,03/12/2020,2012-00359,0.00,72.46,R,ACCESS LOCKSMITHS (LEEDS) LIMITED,No
Http://opendatacommunities.org/id/metropolitan-district-council/leeds,Leeds City Council,31/12/2020,Resources and Housing,Leeds Building Services,Supplies and Services,Operational Materials,205,03/12/2020,2012-00360,0.00,7.80,R,ACCESS LOCKSMITHS (LEEDS) LIMITED,No
Http://opendatacommunities.org/id/metropolitan-district-council/leeds,Leeds City Council,31/12/2020,Resources and Housing,Leeds Building Services,Supplies and Services,Operational Materials,205,03/12/2020,2012-00361,0.00,38.53,R,ACCESS LOCKSMITHS (LEEDS) LIMITED,No
Http://opendatacommunities.org/id/metropolitan-district-council/leeds,Leeds City Council,31/12/2020,Communities and Environment,Waste Management,Supplies and Services,Operational Furniture And Equipment,203,11/12/2020,2012-00362,0.00,572.50,R,ACCESS LOCKSMITHS (LEEDS) LIMITED,No
Http://opendatacommunities.org/id/metropolitan-district-council/leeds,Leeds City Council,31/12/2020,Resources and Housing,HRA Housing Leeds,Capital,OTHER COSTS,7,24/12/2020,2012-00363,0.00,163.20,C,ACCESS LOCKSMITHS (LEEDS) LIMITED,No
Http://opendatacommunities.org/id/metropolitan-district-council/leeds,Leeds City Council,31/12/2020,Strategic Landlord,Housing Management,Premises,General Maintenance,104,24/12/2020,2012-00364,0.00,114.00,R,ACCESS LOCKSMITHS (LEEDS) LIMITED,No
Http://opendatacommunities.org/id/metropolitan-district-council/leeds,Leeds City Council,31/12/2020,Resources and Housing,HRA Housing Leeds,Capital,FURNITURE AND EQUIPMENT,5,24/12/2020,2012-00365,0.00,42.36,C,ACCESS LOCKSMITHS (LEEDS) LIMITED,No
Http://opendatacommunities.org/id/metropolitan-district-council/leeds,Leeds City Council,31/12/2020,Resources and Housing,HRA Housing Leeds,Capital,OTHER COSTS,7,31/12/2020,2012-00366,0.00,278.50,C,ACCESS LOCKSMITHS (LEEDS) LIMITED,No
Http://opendatacommunities.org/id/metropolitan-district-council/leeds,Leeds City Council,31/12/2020,Strategic Landlord,Property and Contracts,Premises,Maintenance Of Buildings,101,31/12/2020,2012-00367,0.00,281.25,R,ACCESS LOCKSMITHS (LEEDS) LIMITED,No
Http://opendatacommunities.org/id/metropolitan-district-council/leeds,Leeds City Council,31/12/2020,Strategic Landlord,Housing Management,Supplies and Services,Resaleable Materials,204,31/12/2020,2012-00368,0.00,387.60,R,ACCESS LOCKSMITHS (LEEDS) LIMITED,No
Http://opendatacommunities.org/id/metropolitan-district-council/leeds,Leeds City Council,31/12/2020,City Development,Libraries Arts & Heritage,Supplies and Services,Bought In Professional Services,277,21/12/2020,2012-00369,0.00,7500.00,R,ACCESS MOVING IMAGE LTD,No
Http://opendatacommunities.org/id/metropolitan-district-council/leeds,Leeds City Council,31/12/2020,Resources and Housing,Leeds Building Services,Supplies and Services,Other Hired And Contracted Services,265,11/12/2020,2012-00370,0.00,3600.00,R,Access Opening Systems,No
Http://opendatacommunities.org/id/metropolitan-district-council/leeds,Leeds City Council,31/12/2020,Resources and Housing,Leeds Building Services,Supplies and Services,Other Hired And Contracted Services,265,24/12/2020,2012-00371,0.00,360.00,R,Access Opening Systems,No
Http://opendatacommunities.org/id/metropolitan-district-council/leeds,Leeds City Council,31/12/2020,City Development,Recreation,Transport,External Hire -Occasional,304,30/12/2020,2012-00372,0.00,128.65,R,ACE CONTAINER SERVICES LIMITED,No
Http://opendatacommunities.org/id/metropolitan-district-council/leeds,Leeds City Council,31/12/2020,City Development,Libraries Arts & Heritage,Supplies and Services,Other Hired And Contracted Services,265,30/12/2020,2012-00373,0.00,46.50,R,ACE CONTAINER SERVICES LIMITED,No
Http://opendatacommunities.org/id/metropolitan-district-council/leeds,Leeds City Council,31/12/2020,Children and Families,Learning,Supplies and Services,Advertising,211,24/12/2020,2012-00374,0.00,120.00,R,Ace Leaflet Distribution & Print Ltd,No
Http://opendatacommunities.org/id/metropolitan-district-council/leeds,Leeds City Council,31/12/2020,City Development,Economic Development,Supplies and Services,Grant Related Expenditure,290,29/12/2020,2012-00375,0.00,8503.00,R,Ace Leaflet Distribution & Print Ltd,No
Http://opendatacommunities.org/id/metropolitan-district-council/leeds,Leeds City Council,31/12/2020,Children and Families,Social Care,Supplies and Services,Bought In Professional Services,277,30/12/2020,2012-00376,0.00,500.00,R,ACET UK,No
Http://opendatacommunities.org/id/metropolitan-district-council/leeds,Leeds City Council,31/12/2020,Children and Families,Partnerships & Health,Third Party Payments,SEN Placements,566,07/12/2020,2012-00377,0.00,18641.70,R,ACKWORTH SCHOOL,No
Http://opendatacommunities.org/id/metropolitan-district-council/leeds,Leeds City Council,31/12/2020,Children and Families,Partnerships & Health,Third Party Payments,SEN Placements,566,07/12/2020,2012-00378,0.00,18641.70,R,ACKWORTH SCHOOL,No
Http://opendatacommunities.org/id/metropolitan-district-council/leeds,Leeds City Council,31/12/2020,Children and Families,Partnerships & Health,Third Party Payments,SEN Placements,566,07/12/2020,2012-00379,0.00,18641.70,R,ACKWORTH SCHOOL,No
Http://opendatacommunities.org/id/metropolitan-district-council/leeds,Leeds City Council,31/12/2020,Children and Families,Partnerships & Health,Third Party Payments,SEN Placements,566,07/12/2020,2012-00380,0.00,18641.70,R,ACKWORTH SCHOOL,No
Http://opendatacommunities.org/id/metropolitan-district-council/leeds,Leeds City Council,31/12/2020,Children and Families,Partnerships & Health,Third Party Payments,SEN Placements,566,07/12/2020,2012-00381,0.00,18641.70,R,ACKWORTH SCHOOL,No
Http://opendatacommunities.org/id/metropolitan-district-council/leeds,Leeds City Council,31/12/2020,Children and Families,Partnerships & Health,Supplies and Services,Bought In Professional Services,277,07/12/2020,2012-00382,0.00,18641.70,R,ACKWORTH SCHOOL,No
Http://opendatacommunities.org/id/metropolitan-district-council/leeds,Leeds City Council,31/12/2020,Children and Families,Partnerships & Health,Third Party Payments,SEN Placements,566,07/12/2020,2012-00383,0.00,18641.70,R,ACKWORTH SCHOOL,No
Http://opendatacommunities.org/id/metropolitan-district-council/leeds,Leeds City Council,31/12/2020,Children and Families,Partnerships & Health,Supplies and Services,Bought In Professional Services,277,09/12/2020,2012-00384,0.00,25934.70,R,ACKWORTH SCHOOL,No
Http://opendatacommunities.org/id/metropolitan-district-council/leeds,Leeds City Council,31/12/2020,Children and Families,Social Care,Third Party Payments,General External Residential Placements,507,04/12/2020,2012-00385,0.00,17249.29,R,Acorn Care & Education Ltd (Sales),No
Http://opendatacommunities.org/id/metropolitan-district-council/leeds,Leeds City Council,31/12/2020,Children and Families,Social Care,Third Party Payments,General External Residential Placements,507,07/12/2020,2012-00386,0.00,15695.00,R,Acorn Care & Education Ltd (Sales),No
Http://opendatacommunities.org/id/metropolitan-district-council/leeds,Leeds City Council,31/12/2020,Children and Families,Social Care,Third Party Payments,General External Residential Placements,507,09/12/2020,2012-00387,0.00,23339.44,R,Acorn Care & Education Ltd (Sales),No
Http://opendatacommunities.org/id/metropolitan-district-council/leeds,Leeds City Council,31/12/2020,Children and Families,Social Care,Third Party Payments,General External Residential Placements,507,17/12/2020,2012-00388,0.00,15695.00,R,Acorn Care & Education Ltd (Sales),No
Http://opendatacommunities.org/id/metropolitan-district-council/leeds,Leeds City Council,31/12/2020,Children and Families,Social Care,Third Party Payments,General External Residential Placements,507,18/12/2020,2012-00389,0.00,16692.86,R,Acorn Care & Education Ltd (Sales),No
Http://opendatacommunities.org/id/metropolitan-district-council/leeds,Leeds City Council,31/12/2020,Adults and Health,Services For Older People - 65 And Over,Third Party Payments,Residential Care Dementia,571,09/12/2020,2012-00390,0.00,1589.72,R,Acorn Nursing Home,No
Http://opendatacommunities.org/id/metropolitan-district-council/leeds,Leeds City Council,31/12/2020,Adults and Health,Services For Older People - 65 And Over,Third Party Payments,Residential Care Dementia,571,30/12/2020,2012-00391,0.00,1589.72,R,Acorn Nursing Home,No
Http://opendatacommunities.org/id/metropolitan-district-council/leeds,Leeds City Council,31/12/2020,Children and Families,Social Care,Third Party Payments,Services Rendered By Other Organisations,511,02/12/2020,2012-00392,0.00,1053.36,R,ACORNS NURSERY,No
Http://opendatacommunities.org/id/metropolitan-district-council/leeds,Leeds City Council,31/12/2020,Children and Families,Social Care,Third Party Payments,Services Rendered By Other Organisations,511,04/12/2020,2012-00393,0.00,144.30,R,ACORNS NURSERY,No
Http://opendatacommunities.org/id/metropolitan-district-council/leeds,Leeds City Council,31/12/2020,Children and Families,Social Care,Third Party Payments,Services Rendered By Other Organisations,511,31/12/2020,2012-00394,0.00,12614.40,R,ACORNS NURSERY,No
Http://opendatacommunities.org/id/metropolitan-district-council/leeds,Leeds City Council,31/12/2020,Adults and Health,Services For Older People - 65 And Over,Third Party Payments,Nursing Home,570,09/12/2020,2012-00395,0.00,18714.97,R,Acre Green,No
Http://opendatacommunities.org/id/metropolitan-district-council/leeds,Leeds City Council,31/12/2020,Adults and Health,Services For Older People - 65 And Over,Third Party Payments,Residential,580,09/12/2020,2012-00396,0.00,5170.12,R,Acre Green,No
Http://opendatacommunities.org/id/metropolitan-district-council/leeds,Leeds City Council,31/12/2020,Adults and Health,Services For Older People Under 65 P/Dis,Third Party Payments,Nursing Home,570,09/12/2020,2012-00397,0.00,112.72,R,Acre Green,No
Http://opendatacommunities.org/id/metropolitan-district-council/leeds,Leeds City Council,31/12/2020,Adults and Health,Services For Older People Under 65 P/Dis,Third Party Payments,Residential,580,09/12/2020,2012-00398,0.00,1642.60,R,Acre Green,No
Http://opendatacommunities.org/id/metropolitan-district-council/leeds,Leeds City Council,31/12/2020,Adults and Health,Services For Older People - 65 And Over,Third Party Payments,Nursing Home,570,30/12/2020,2012-00399,0.00,14885.67,R,Acre Green,No
Http://opendatacommunities.org/id/metropolitan-district-council/leeds,Leeds City Council,31/12/2020,Adults and Health,Services For Older People - 65 And Over,Third Party Payments,Residential,580,30/12/2020,2012-00400,0.00,5170.12,R,Acre Green,No
Http://opendatacommunities.org/id/metropolitan-district-council/leeds,Leeds City Council,31/12/2020,Adults and Health,Services For Older People Under 65 P/Dis,Third Party Payments,Nursing Home,570,30/12/2020,2012-00401,0.00,2360.00,R,Acre Green,No
Http://opendatacommunities.org/id/metropolitan-district-council/leeds,Leeds City Council,31/12/2020,Adults and Health,Services For Older People Under 65 P/Dis,Third Party Payments,Residential,580,30/12/2020,2012-00402,0.00,1642.60,R,Acre Green,No
Http://opendatacommunities.org/id/metropolitan-district-council/leeds,Leeds City Council,31/12/2020,Children and Families,Social Care,Third Party Payments,Services Rendered By Other Organisations,511,02/12/2020,2012-00403,0.00,4229.28,R,Acre Wood Day Nursery,No
Http://opendatacommunities.org/id/metropolitan-district-council/leeds,Leeds City Council,31/12/2020,Children and Families,Social Care,Third Party Payments,Services Rendered By Other Organisations,511,04/12/2020,2012-00404,0.00,3909.15,R,Acre Wood Day Nursery,No
Http://opendatacommunities.org/id/metropolitan-district-council/leeds,Leeds City Council,31/12/2020,Children and Families,Social Care,Third Party Payments,Services Rendered By Other Organisations,511,07/12/2020,2012-00405,0.00,1194.90,R,Acre Wood Day Nursery,No
Http://opendatacommunities.org/id/metropolitan-district-council/leeds,Leeds City Council,31/12/2020,Children and Families,Social Care,Third Party Payments,Services Rendered By Other Organisations,511,07/12/2020,2012-00406,0.00,211.47,R,Acre Wood Day Nursery,No
Http://opendatacommunities.org/id/metropolitan-district-council/leeds,Leeds City Council,31/12/2020,Children and Families,Social Care,Third Party Payments,Services Rendered By Other Organisations,511,31/12/2020,2012-00407,0.00,9198.00,R,Acre Wood Day Nursery,No
Http://opendatacommunities.org/id/metropolitan-district-council/leeds,Leeds City Council,31/12/2020,Resources and Housing,Technology ,Supplies and Services,Computer Software & Equipment,214,27/11/2020,2012-00408,0.00,1455.95,R,Acs Business Supplies Lt,Yes
Http://opendatacommunities.org/id/metropolitan-district-council/leeds,Leeds City Council,31/12/2020,Children and Families,Social Care,Third Party Payments,Independent Fostering Agencies,509,04/12/2020,2012-00409,0.00,1650.00,R,Action For Children Services Ltd,No
Http://opendatacommunities.org/id/metropolitan-district-council/leeds,Leeds City Council,31/12/2020,Children and Families,Social Care,Third Party Payments,Independent Fostering Agencies,509,04/12/2020,2012-00410,0.00,5060.44,R,Action For Children Services Ltd,No
Http://opendatacommunities.org/id/metropolitan-district-council/leeds,Leeds City Council,31/12/2020,Adults and Health,Services For Older People - 65 And Over,Third Party Payments,Payments To Voluntary Organisations,561,24/12/2020,2012-00411,0.00,24336.50,R,ACTION FOR GIPTON ELDERLY,No
Http://opendatacommunities.org/id/metropolitan-district-council/leeds,Leeds City Council,31/12/2020,Adults and Health,Services For Older People - 65 And Over,Third Party Payments,Payments To Voluntary Organisations,561,31/12/2020,2012-00412,0.00,49415.82,R,ACTION FOR GIPTON ELDERLY,No
Http://opendatacommunities.org/id/metropolitan-district-council/leeds,Leeds City Council,31/12/2020,City Development,Economic Development,Supplies and Services,Grant Related Expenditure,290,21/12/2020,2012-00413,0.00,887.00,R,Action Roofing Leeds,No
Http://opendatacommunities.org/id/metropolitan-district-council/leeds,Leeds City Council,31/12/2020,Children and Families,Social Care,Supplies and Services,General Amenity For Clients/Residents,285,23/12/2020,2012-00414,0.00,445.00,R,ACTIVE HIRE (LEEDS) LTD,No
Http://opendatacommunities.org/id/metropolitan-district-council/leeds,Leeds City Council,31/12/2020,Children and Families,Social Care,Third Party Payments,Services Rendered By Other Organisations,511,02/12/2020,2012-00415,0.00,1082.40,R,ACTIVE KIDS YEADON LLP,No
Http://opendatacommunities.org/id/metropolitan-district-council/leeds,Leeds City Council,31/12/2020,Children and Families,Social Care,Third Party Payments,Services Rendered By Other Organisations,511,04/12/2020,2012-00416,0.00,535.67,R,ACTIVE KIDS YEADON LLP,No
Http://opendatacommunities.org/id/metropolitan-district-council/leeds,Leeds City Council,31/12/2020,Children and Families,Social Care,Third Party Payments,Services Rendered By Other Organisations,511,04/12/2020,2012-00417,0.00,81.45,R,ACTIVE KIDS YEADON LLP,No
Http://opendatacommunities.org/id/metropolitan-district-council/leeds,Leeds City Council,31/12/2020,Children and Families,Social Care,Third Party Payments,Services Rendered By Other Organisations,511,31/12/2020,2012-00418,0.00,11014.24,R,ACTIVE KIDS YEADON LLP,No
Http://opendatacommunities.org/id/metropolitan-district-council/leeds,Leeds City Council,31/12/2020,Adults and Health,Services For Adults Under 65 Mental/Dis,Third Party Payments,Sheltered Accommodation,569,09/12/2020,2012-00419,0.00,19093.76,R,Active Pathways,No
Http://opendatacommunities.org/id/metropolitan-district-council/leeds,Leeds City Council,31/12/2020,Adults and Health,Services For Older People Under 65 P/Dis,Third Party Payments,Sheltered Accommodation,569,09/12/2020,2012-00420,0.00,-22029.11,R,Active Pathways,No
Http://opendatacommunities.org/id/metropolitan-district-council/leeds,Leeds City Council as Accountable Body,31/12/2020,Social Services Pooled Budgets,Jcs For People With Learning Disabilitie,Third Party Payments,Sheltered Accommodation,569,09/12/2020,2012-00421,0.00,8301.68,R,Active Pathways,No
Http://opendatacommunities.org/id/metropolitan-district-council/leeds,Leeds City Council,31/12/2020,Adults and Health,Services For Adults Under 65 Mental/Dis,Third Party Payments,Sheltered Accommodation,569,30/12/2020,2012-00422,0.00,31194.75,R,Active Pathways,No
Http://opendatacommunities.org/id/metropolitan-district-council/leeds,Leeds City Council as Accountable Body,31/12/2020,Social Services Pooled Budgets,Jcs For People With Learning Disabilitie,Third Party Payments,Sheltered Accommodation,569,30/12/2020,2012-00423,0.00,8301.68,R,Active Pathways,No
Http://opendatacommunities.org/id/metropolitan-district-council/leeds,Leeds City Council,31/12/2020,Communities and Environment,Waste Management,Supplies and Services,Recycling & Reuse Charges,234,03/12/2020,2012-00424,0.00,980.08,R,Acumen Waste Services Ltd,No
Http://opendatacommunities.org/id/metropolitan-district-council/leeds,Leeds City Council,31/12/2020,Communities and Environment,Waste Management,Supplies and Services,Recycling & Reuse Charges,234,03/12/2020,2012-00425,0.00,985.05,R,Acumen Waste Services Ltd,No
Http://opendatacommunities.org/id/metropolitan-district-council/leeds,Leeds City Council,31/12/2020,Communities and Environment,Waste Management,Supplies and Services,Recycling & Reuse Charges,234,03/12/2020,2012-00426,0.00,722.27,R,Acumen Waste Services Ltd,No
Http://opendatacommunities.org/id/metropolitan-district-council/leeds,Leeds City Council,31/12/2020,Communities and Environment,Waste Management,Supplies and Services,Recycling & Reuse Charges,234,03/12/2020,2012-00427,0.00,773.41,R,Acumen Waste Services Ltd,No
Http://opendatacommunities.org/id/metropolitan-district-council/leeds,Leeds City Council,31/12/2020,Communities and Environment,Waste Management,Supplies and Services,Recycling & Reuse Charges,234,03/12/2020,2012-00428,0.00,789.03,R,Acumen Waste Services Ltd,No
Http://opendatacommunities.org/id/metropolitan-district-council/leeds,Leeds City Council,31/12/2020,Communities and Environment,Waste Management,Supplies and Services,Recycling & Reuse Charges,234,03/12/2020,2012-00429,0.00,735.77,R,Acumen Waste Services Ltd,No
Http://opendatacommunities.org/id/metropolitan-district-council/leeds,Leeds City Council,31/12/2020,Communities and Environment,Cleaner Neighbourhood Teams,Supplies and Services,Other Hired And Contracted Services,265,04/12/2020,2012-00430,0.00,116.60,R,Acumen Waste Services Ltd,No
Http://opendatacommunities.org/id/metropolitan-district-council/leeds,Leeds City Council,31/12/2020,Communities and Environment,Cleaner Neighbourhood Teams,Supplies and Services,Other Hired And Contracted Services,265,04/12/2020,2012-00431,0.00,116.60,R,Acumen Waste Services Ltd,No
Http://opendatacommunities.org/id/metropolitan-district-council/leeds,Leeds City Council,31/12/2020,Communities and Environment,Cleaner Neighbourhood Teams,Supplies and Services,Other Hired And Contracted Services,265,04/12/2020,2012-00432,0.00,116.60,R,Acumen Waste Services Ltd,No
Http://opendatacommunities.org/id/metropolitan-district-council/leeds,Leeds City Council,31/12/2020,Communities and Environment,Waste Management,Supplies and Services,Recycling & Reuse Charges,234,04/12/2020,2012-00433,0.00,770.57,R,Acumen Waste Services Ltd,No
Http://opendatacommunities.org/id/metropolitan-district-council/leeds,Leeds City Council,31/12/2020,Communities and Environment,Waste Management,Supplies and Services,Recycling & Reuse Charges,234,04/12/2020,2012-00434,0.00,716.59,R,Acumen Waste Services Ltd,No
Http://opendatacommunities.org/id/metropolitan-district-council/leeds,Leeds City Council,31/12/2020,Communities and Environment,Waste Management,Supplies and Services,Recycling & Reuse Charges,234,04/12/2020,2012-00435,0.00,868.57,R,Acumen Waste Services Ltd,No
Http://opendatacommunities.org/id/metropolitan-district-council/leeds,Leeds City Council,31/12/2020,Communities and Environment,Waste Management,Supplies and Services,Recycling & Reuse Charges,234,04/12/2020,2012-00436,0.00,832.35,R,Acumen Waste Services Ltd,No
Http://opendatacommunities.org/id/metropolitan-district-council/leeds,Leeds City Council,31/12/2020,Communities and Environment,Cleaner Neighbourhood Teams,Supplies and Services,Other Hired And Contracted Services,265,09/12/2020,2012-00437,0.00,116.60,R,Acumen Waste Services Ltd,No
Http://opendatacommunities.org/id/metropolitan-district-council/leeds,Leeds City Council,31/12/2020,Communities and Environment,Waste Management,Supplies and Services,Recycling & Reuse Charges,234,09/12/2020,2012-00438,0.00,797.55,R,Acumen Waste Services Ltd,No
Http://opendatacommunities.org/id/metropolitan-district-council/leeds,Leeds City Council,31/12/2020,Communities and Environment,Cleaner Neighbourhood Teams,Supplies and Services,Other Hired And Contracted Services,265,09/12/2020,2012-00439,0.00,116.60,R,Acumen Waste Services Ltd,No
Http://opendatacommunities.org/id/metropolitan-district-council/leeds,Leeds City Council,31/12/2020,Communities and Environment,Cleaner Neighbourhood Teams,Supplies and Services,Other Hired And Contracted Services,265,09/12/2020,2012-00440,0.00,116.60,R,Acumen Waste Services Ltd,No
Http://opendatacommunities.org/id/metropolitan-district-council/leeds,Leeds City Council,31/12/2020,Communities and Environment,Waste Management,Supplies and Services,Recycling & Reuse Charges,234,09/12/2020,2012-00441,0.00,828.09,R,Acumen Waste Services Ltd,No
Http://opendatacommunities.org/id/metropolitan-district-council/leeds,Leeds City Council,31/12/2020,Communities and Environment,Cleaner Neighbourhood Teams,Supplies and Services,Other Hired And Contracted Services,265,09/12/2020,2012-00442,0.00,116.60,R,Acumen Waste Services Ltd,No
Http://opendatacommunities.org/id/metropolitan-district-council/leeds,Leeds City Council,31/12/2020,Communities and Environment,Cleaner Neighbourhood Teams,Supplies and Services,Other Hired And Contracted Services,265,09/12/2020,2012-00443,0.00,116.60,R,Acumen Waste Services Ltd,No
Http://opendatacommunities.org/id/metropolitan-district-council/leeds,Leeds City Council,31/12/2020,Communities and Environment,Cleaner Neighbourhood Teams,Supplies and Services,Other Hired And Contracted Services,265,09/12/2020,2012-00444,0.00,116.60,R,Acumen Waste Services Ltd,No
Http://opendatacommunities.org/id/metropolitan-district-council/leeds,Leeds City Council,31/12/2020,Communities and Environment,Cleaner Neighbourhood Teams,Supplies and Services,Other Hired And Contracted Services,265,09/12/2020,2012-00445,0.00,116.60,R,Acumen Waste Services Ltd,No
Http://opendatacommunities.org/id/metropolitan-district-council/leeds,Leeds City Council,31/12/2020,Communities and Environment,Waste Management,Supplies and Services,Recycling & Reuse Charges,234,09/12/2020,2012-00446,0.00,860.76,R,Acumen Waste Services Ltd,No
Http://opendatacommunities.org/id/metropolitan-district-council/leeds,Leeds City Council,31/12/2020,Communities and Environment,Waste Management,Supplies and Services,Recycling & Reuse Charges,234,09/12/2020,2012-00447,0.00,801.11,R,Acumen Waste Services Ltd,No
Http://opendatacommunities.org/id/metropolitan-district-council/leeds,Leeds City Council,31/12/2020,Communities and Environment,Waste Management,Supplies and Services,Recycling & Reuse Charges,234,09/12/2020,2012-00448,0.00,948.83,R,Acumen Waste Services Ltd,No
Http://opendatacommunities.org/id/metropolitan-district-council/leeds,Leeds City Council,31/12/2020,Communities and Environment,Waste Management,Supplies and Services,Recycling & Reuse Charges,234,11/12/2020,2012-00449,0.00,707.36,R,Acumen Waste Services Ltd,No
Http://opendatacommunities.org/id/metropolitan-district-council/leeds,Leeds City Council,31/12/2020,Communities and Environment,Waste Management,Supplies and Services,Recycling & Reuse Charges,234,11/12/2020,2012-00450,0.00,985.76,R,Acumen Waste Services Ltd,No
Http://opendatacommunities.org/id/metropolitan-district-council/leeds,Leeds City Council,31/12/2020,Communities and Environment,Waste Management,Supplies and Services,Recycling & Reuse Charges,234,11/12/2020,2012-00451,0.00,767.73,R,Acumen Waste Services Ltd,No
Http://opendatacommunities.org/id/metropolitan-district-council/leeds,Leeds City Council,31/12/2020,Communities and Environment,Waste Management,Supplies and Services,Recycling & Reuse Charges,234,11/12/2020,2012-00452,0.00,735.77,R,Acumen Waste Services Ltd,No
Http://opendatacommunities.org/id/metropolitan-district-council/leeds,Leeds City Council,31/12/2020,Communities and Environment,Waste Management,Supplies and Services,Recycling & Reuse Charges,234,16/12/2020,2012-00453,0.00,681.08,R,Acumen Waste Services Ltd,No
Http://opendatacommunities.org/id/metropolitan-district-council/leeds,Leeds City Council,31/12/2020,Communities and Environment,Waste Management,Supplies and Services,Recycling & Reuse Charges,234,16/12/2020,2012-00454,0.00,894.14,R,Acumen Waste Services Ltd,No
Http://opendatacommunities.org/id/metropolitan-district-council/leeds,Leeds City Council,31/12/2020,Communities and Environment,Cleaner Neighbourhood Teams,Supplies and Services,Other Hired And Contracted Services,265,16/12/2020,2012-00455,0.00,119.20,R,Acumen Waste Services Ltd,No
Http://opendatacommunities.org/id/metropolitan-district-council/leeds,Leeds City Council,31/12/2020,Communities and Environment,Cleaner Neighbourhood Teams,Supplies and Services,Other Hired And Contracted Services,265,16/12/2020,2012-00456,0.00,116.60,R,Acumen Waste Services Ltd,No
Http://opendatacommunities.org/id/metropolitan-district-council/leeds,Leeds City Council,31/12/2020,Communities and Environment,Cleaner Neighbourhood Teams,Supplies and Services,Other Hired And Contracted Services,265,16/12/2020,2012-00457,0.00,116.60,R,Acumen Waste Services Ltd,No
Http://opendatacommunities.org/id/metropolitan-district-council/leeds,Leeds City Council,31/12/2020,Communities and Environment,Cleaner Neighbourhood Teams,Supplies and Services,Other Hired And Contracted Services,265,16/12/2020,2012-00458,0.00,116.60,R,Acumen Waste Services Ltd,No
Http://opendatacommunities.org/id/metropolitan-district-council/leeds,Leeds City Council,31/12/2020,Communities and Environment,Cleaner Neighbourhood Teams,Supplies and Services,Other Hired And Contracted Services,265,16/12/2020,2012-00459,0.00,116.60,R,Acumen Waste Services Ltd,No
Http://opendatacommunities.org/id/metropolitan-district-council/leeds,Leeds City Council,31/12/2020,Communities and Environment,Cleaner Neighbourhood Teams,Supplies and Services,Other Hired And Contracted Services,265,16/12/2020,2012-00460,0.00,116.60,R,Acumen Waste Services Ltd,No
Http://opendatacommunities.org/id/metropolitan-district-council/leeds,Leeds City Council,31/12/2020,Communities and Environment,Cleaner Neighbourhood Teams,Supplies and Services,Other Hired And Contracted Services,265,16/12/2020,2012-00461,0.00,116.60,R,Acumen Waste Services Ltd,No
Http://opendatacommunities.org/id/metropolitan-district-council/leeds,Leeds City Council,31/12/2020,Communities and Environment,Cleaner Neighbourhood Teams,Supplies and Services,Other Hired And Contracted Services,265,16/12/2020,2012-00462,0.00,116.60,R,Acumen Waste Services Ltd,No
Http://opendatacommunities.org/id/metropolitan-district-council/leeds,Leeds City Council,31/12/2020,Communities and Environment,Waste Management,Supplies and Services,Recycling & Reuse Charges,234,16/12/2020,2012-00463,0.00,867.86,R,Acumen Waste Services Ltd,No
Http://opendatacommunities.org/id/metropolitan-district-council/leeds,Leeds City Council,31/12/2020,Communities and Environment,Waste Management,Supplies and Services,Recycling & Reuse Charges,234,16/12/2020,2012-00464,0.00,994.99,R,Acumen Waste Services Ltd,No
Http://opendatacommunities.org/id/metropolitan-district-council/leeds,Leeds City Council,31/12/2020,Communities and Environment,Waste Management,Supplies and Services,Recycling & Reuse Charges,234,16/12/2020,2012-00465,0.00,975.10,R,Acumen Waste Services Ltd,No
Http://opendatacommunities.org/id/metropolitan-district-council/leeds,Leeds City Council,31/12/2020,Communities and Environment,Cleaner Neighbourhood Teams,Supplies and Services,Other Hired And Contracted Services,265,16/12/2020,2012-00466,0.00,116.60,R,Acumen Waste Services Ltd,No
Http://opendatacommunities.org/id/metropolitan-district-council/leeds,Leeds City Council,31/12/2020,Communities and Environment,Cleaner Neighbourhood Teams,Supplies and Services,Other Hired And Contracted Services,265,16/12/2020,2012-00467,0.00,116.60,R,Acumen Waste Services Ltd,No
Http://opendatacommunities.org/id/metropolitan-district-council/leeds,Leeds City Council,31/12/2020,Communities and Environment,Cleaner Neighbourhood Teams,Supplies and Services,Other Hired And Contracted Services,265,16/12/2020,2012-00468,0.00,116.60,R,Acumen Waste Services Ltd,No
Http://opendatacommunities.org/id/metropolitan-district-council/leeds,Leeds City Council,31/12/2020,Communities and Environment,Cleaner Neighbourhood Teams,Supplies and Services,Other Hired And Contracted Services,265,16/12/2020,2012-00469,0.00,116.60,R,Acumen Waste Services Ltd,No
Http://opendatacommunities.org/id/metropolitan-district-council/leeds,Leeds City Council,31/12/2020,Communities and Environment,Cleaner Neighbourhood Teams,Supplies and Services,Other Hired And Contracted Services,265,16/12/2020,2012-00470,0.00,116.60,R,Acumen Waste Services Ltd,No
Http://opendatacommunities.org/id/metropolitan-district-council/leeds,Leeds City Council,31/12/2020,Communities and Environment,Waste Management,Supplies and Services,Recycling & Reuse Charges,234,18/12/2020,2012-00471,0.00,811.76,R,Acumen Waste Services Ltd,No
Http://opendatacommunities.org/id/metropolitan-district-council/leeds,Leeds City Council,31/12/2020,Communities and Environment,Waste Management,Supplies and Services,Recycling & Reuse Charges,234,18/12/2020,2012-00472,0.00,762.75,R,Acumen Waste Services Ltd,No
Http://opendatacommunities.org/id/metropolitan-district-council/leeds,Leeds City Council,31/12/2020,Communities and Environment,Waste Management,Supplies and Services,Recycling & Reuse Charges,234,18/12/2020,2012-00473,0.00,727.96,R,Acumen Waste Services Ltd,No
Http://opendatacommunities.org/id/metropolitan-district-council/leeds,Leeds City Council,31/12/2020,Communities and Environment,Waste Management,Supplies and Services,Recycling & Reuse Charges,234,18/12/2020,2012-00474,0.00,885.62,R,Acumen Waste Services Ltd,No
Http://opendatacommunities.org/id/metropolitan-district-council/leeds,Leeds City Council,31/12/2020,Communities and Environment,Cleaner Neighbourhood Teams,Supplies and Services,Other Hired And Contracted Services,265,18/12/2020,2012-00475,0.00,116.60,R,Acumen Waste Services Ltd,No
Http://opendatacommunities.org/id/metropolitan-district-council/leeds,Leeds City Council,31/12/2020,Communities and Environment,Waste Management,Supplies and Services,Recycling & Reuse Charges,234,18/12/2020,2012-00476,0.00,972.97,R,Acumen Waste Services Ltd,No
Http://opendatacommunities.org/id/metropolitan-district-council/leeds,Leeds City Council,31/12/2020,Communities and Environment,Waste Management,Supplies and Services,Recycling & Reuse Charges,234,18/12/2020,2012-00477,0.00,799.69,R,Acumen Waste Services Ltd,No
Http://opendatacommunities.org/id/metropolitan-district-council/leeds,Leeds City Council,31/12/2020,Communities and Environment,Waste Management,Supplies and Services,Recycling & Reuse Charges,234,18/12/2020,2012-00478,0.00,954.51,R,Acumen Waste Services Ltd,No
Http://opendatacommunities.org/id/metropolitan-district-council/leeds,Leeds City Council,31/12/2020,Communities and Environment,Waste Management,Supplies and Services,Recycling & Reuse Charges,234,18/12/2020,2012-00479,0.00,794.00,R,Acumen Waste Services Ltd,No
Http://opendatacommunities.org/id/metropolitan-district-council/leeds,Leeds City Council,31/12/2020,Communities and Environment,Waste Management,Supplies and Services,Recycling & Reuse Charges,234,22/12/2020,2012-00480,0.00,708.07,R,Acumen Waste Services Ltd,No
Http://opendatacommunities.org/id/metropolitan-district-council/leeds,Leeds City Council,31/12/2020,Communities and Environment,Waste Management,Supplies and Services,Recycling & Reuse Charges,234,22/12/2020,2012-00481,0.00,916.87,R,Acumen Waste Services Ltd,No
Http://opendatacommunities.org/id/metropolitan-district-council/leeds,Leeds City Council,31/12/2020,Communities and Environment,Cleaner Neighbourhood Teams,Supplies and Services,Other Hired And Contracted Services,265,22/12/2020,2012-00482,0.00,116.60,R,Acumen Waste Services Ltd,No
Http://opendatacommunities.org/id/metropolitan-district-council/leeds,Leeds City Council,31/12/2020,Communities and Environment,Cleaner Neighbourhood Teams,Supplies and Services,Other Hired And Contracted Services,265,22/12/2020,2012-00483,0.00,116.60,R,Acumen Waste Services Ltd,No
Http://opendatacommunities.org/id/metropolitan-district-council/leeds,Leeds City Council,31/12/2020,Communities and Environment,Cleaner Neighbourhood Teams,Supplies and Services,Other Hired And Contracted Services,265,22/12/2020,2012-00484,0.00,116.60,R,Acumen Waste Services Ltd,No
Http://opendatacommunities.org/id/metropolitan-district-council/leeds,Leeds City Council,31/12/2020,Communities and Environment,Cleaner Neighbourhood Teams,Supplies and Services,Other Hired And Contracted Services,265,22/12/2020,2012-00485,0.00,116.60,R,Acumen Waste Services Ltd,No
Http://opendatacommunities.org/id/metropolitan-district-council/leeds,Leeds City Council,31/12/2020,Communities and Environment,Waste Management,Supplies and Services,Recycling & Reuse Charges,234,22/12/2020,2012-00486,0.00,951.67,R,Acumen Waste Services Ltd,No
Http://opendatacommunities.org/id/metropolitan-district-council/leeds,Leeds City Council,31/12/2020,Communities and Environment,Waste Management,Supplies and Services,Recycling & Reuse Charges,234,22/12/2020,2012-00487,0.00,965.87,R,Acumen Waste Services Ltd,No
Http://opendatacommunities.org/id/metropolitan-district-council/leeds,Leeds City Council,31/12/2020,Communities and Environment,Cleaner Neighbourhood Teams,Supplies and Services,Other Hired And Contracted Services,265,23/12/2020,2012-00488,0.00,116.60,R,Acumen Waste Services Ltd,No
Http://opendatacommunities.org/id/metropolitan-district-council/leeds,Leeds City Council,31/12/2020,Communities and Environment,Cleaner Neighbourhood Teams,Supplies and Services,Other Hired And Contracted Services,265,23/12/2020,2012-00489,0.00,116.60,R,Acumen Waste Services Ltd,No
Http://opendatacommunities.org/id/metropolitan-district-council/leeds,Leeds City Council,31/12/2020,Communities and Environment,Cleaner Neighbourhood Teams,Supplies and Services,Other Hired And Contracted Services,265,23/12/2020,2012-00490,0.00,116.60,R,Acumen Waste Services Ltd,No
Http://opendatacommunities.org/id/metropolitan-district-council/leeds,Leeds City Council,31/12/2020,Communities and Environment,Cleaner Neighbourhood Teams,Supplies and Services,Other Hired And Contracted Services,265,23/12/2020,2012-00491,0.00,116.60,R,Acumen Waste Services Ltd,No
Http://opendatacommunities.org/id/metropolitan-district-council/leeds,Leeds City Council,31/12/2020,Communities and Environment,Cleaner Neighbourhood Teams,Supplies and Services,Other Hired And Contracted Services,265,23/12/2020,2012-00492,0.00,116.60,R,Acumen Waste Services Ltd,No
Http://opendatacommunities.org/id/metropolitan-district-council/leeds,Leeds City Council,31/12/2020,Communities and Environment,Cleaner Neighbourhood Teams,Supplies and Services,Other Hired And Contracted Services,265,23/12/2020,2012-00493,0.00,116.60,R,Acumen Waste Services Ltd,No
Http://opendatacommunities.org/id/metropolitan-district-council/leeds,Leeds City Council,31/12/2020,Communities and Environment,Waste Management,Supplies and Services,Recycling & Reuse Charges,234,24/12/2020,2012-00494,0.00,756.36,R,Acumen Waste Services Ltd,No
Http://opendatacommunities.org/id/metropolitan-district-council/leeds,Leeds City Council,31/12/2020,Communities and Environment,Waste Management,Supplies and Services,Recycling & Reuse Charges,234,24/12/2020,2012-00495,0.00,986.47,R,Acumen Waste Services Ltd,No
Http://opendatacommunities.org/id/metropolitan-district-council/leeds,Leeds City Council,31/12/2020,Communities and Environment,Waste Management,Supplies and Services,Recycling & Reuse Charges,234,24/12/2020,2012-00496,0.00,914.03,R,Acumen Waste Services Ltd,No
Http://opendatacommunities.org/id/metropolitan-district-council/leeds,Leeds City Council,31/12/2020,Communities and Environment,Cleaner Neighbourhood Teams,Supplies and Services,Other Hired And Contracted Services,265,24/12/2020,2012-00497,0.00,116.60,R,Acumen Waste Services Ltd,No
Http://opendatacommunities.org/id/metropolitan-district-council/leeds,Leeds City Council,31/12/2020,Communities and Environment,Cleaner Neighbourhood Teams,Supplies and Services,Other Hired And Contracted Services,265,24/12/2020,2012-00498,0.00,116.60,R,Acumen Waste Services Ltd,No
Http://opendatacommunities.org/id/metropolitan-district-council/leeds,Leeds City Council,31/12/2020,Communities and Environment,Cleaner Neighbourhood Teams,Supplies and Services,Other Hired And Contracted Services,265,24/12/2020,2012-00499,0.00,116.60,R,Acumen Waste Services Ltd,No
Http://opendatacommunities.org/id/metropolitan-district-council/leeds,Leeds City Council,31/12/2020,Communities and Environment,Waste Management,Supplies and Services,Recycling & Reuse Charges,234,24/12/2020,2012-00500,0.00,876.39,R,Acumen Waste Services Ltd,No
Http://opendatacommunities.org/id/metropolitan-district-council/leeds,Leeds City Council,31/12/2020,Communities and Environment,Waste Management,Supplies and Services,Recycling & Reuse Charges,234,24/12/2020,2012-00501,0.00,805.37,R,Acumen Waste Services Ltd,No
Http://opendatacommunities.org/id/metropolitan-district-council/leeds,Leeds City Council,31/12/2020,Communities and Environment,Waste Management,Supplies and Services,Recycling & Reuse Charges,234,24/12/2020,2012-00502,0.00,794.71,R,Acumen Waste Services Ltd,No
Http://opendatacommunities.org/id/metropolitan-district-council/leeds,Leeds City Council,31/12/2020,Communities and Environment,Cleaner Neighbourhood Teams,Supplies and Services,Other Hired And Contracted Services,265,30/12/2020,2012-00503,0.00,116.60,R,Acumen Waste Services Ltd,No
Http://opendatacommunities.org/id/metropolitan-district-council/leeds,Leeds City Council,31/12/2020,Communities and Environment,Cleaner Neighbourhood Teams,Supplies and Services,Other Hired And Contracted Services,265,30/12/2020,2012-00504,0.00,116.60,R,Acumen Waste Services Ltd,No
Http://opendatacommunities.org/id/metropolitan-district-council/leeds,Leeds City Council,31/12/2020,Communities and Environment,Cleaner Neighbourhood Teams,Supplies and Services,Other Hired And Contracted Services,265,30/12/2020,2012-00505,0.00,116.60,R,Acumen Waste Services Ltd,No
Http://opendatacommunities.org/id/metropolitan-district-council/leeds,Leeds City Council,31/12/2020,Communities and Environment,Waste Management,Supplies and Services,Recycling & Reuse Charges,234,30/12/2020,2012-00506,0.00,857.21,R,Acumen Waste Services Ltd,No
Http://opendatacommunities.org/id/metropolitan-district-council/leeds,Leeds City Council,31/12/2020,Communities and Environment,Cleaner Neighbourhood Teams,Supplies and Services,Other Hired And Contracted Services,265,30/12/2020,2012-00507,0.00,116.60,R,Acumen Waste Services Ltd,No
Http://opendatacommunities.org/id/metropolitan-district-council/leeds,Leeds City Council,31/12/2020,Communities and Environment,Cleaner Neighbourhood Teams,Supplies and Services,Other Hired And Contracted Services,265,30/12/2020,2012-00508,0.00,116.60,R,Acumen Waste Services Ltd,No
Http://opendatacommunities.org/id/metropolitan-district-council/leeds,Leeds City Council,31/12/2020,Communities and Environment,Cleaner Neighbourhood Teams,Supplies and Services,Other Hired And Contracted Services,265,30/12/2020,2012-00509,0.00,116.60,R,Acumen Waste Services Ltd,No
Http://opendatacommunities.org/id/metropolitan-district-council/leeds,Leeds City Council,31/12/2020,Communities and Environment,Waste Management,Supplies and Services,Recycling & Reuse Charges,234,30/12/2020,2012-00510,0.00,813.89,R,Acumen Waste Services Ltd,No
Http://opendatacommunities.org/id/metropolitan-district-council/leeds,Leeds City Council,31/12/2020,Communities and Environment,Waste Management,Supplies and Services,Recycling & Reuse Charges,234,30/12/2020,2012-00511,0.00,963.03,R,Acumen Waste Services Ltd,No
Http://opendatacommunities.org/id/metropolitan-district-council/leeds,Leeds City Council,31/12/2020,Communities and Environment,Cleaner Neighbourhood Teams,Supplies and Services,Other Hired And Contracted Services,265,30/12/2020,2012-00512,0.00,116.60,R,Acumen Waste Services Ltd,No
Http://opendatacommunities.org/id/metropolitan-district-council/leeds,Leeds City Council,31/12/2020,Communities and Environment,Waste Management,Supplies and Services,Recycling & Reuse Charges,234,31/12/2020,2012-00513,0.00,770.57,R,Acumen Waste Services Ltd,No
Http://opendatacommunities.org/id/metropolitan-district-council/leeds,Leeds City Council,31/12/2020,Communities and Environment,Waste Management,Supplies and Services,Recycling & Reuse Charges,234,31/12/2020,2012-00514,0.00,939.59,R,Acumen Waste Services Ltd,No
Http://opendatacommunities.org/id/metropolitan-district-council/leeds,Leeds City Council,31/12/2020,Communities and Environment,Waste Management,Supplies and Services,Recycling & Reuse Charges,234,31/12/2020,2012-00515,0.00,975.10,R,Acumen Waste Services Ltd,No
Http://opendatacommunities.org/id/metropolitan-district-council/leeds,Leeds City Council,31/12/2020,Communities and Environment,Waste Management,Supplies and Services,Recycling & Reuse Charges,234,31/12/2020,2012-00516,0.00,894.85,R,Acumen Waste Services Ltd,No
Http://opendatacommunities.org/id/metropolitan-district-council/leeds,Leeds City Council,31/12/2020,Communities and Environment,Waste Management,Supplies and Services,Recycling & Reuse Charges,234,31/12/2020,2012-00517,0.00,870.00,R,Acumen Waste Services Ltd,No
Http://opendatacommunities.org/id/metropolitan-district-council/leeds,Leeds City Council,31/12/2020,Communities and Environment,Waste Management,Supplies and Services,Recycling & Reuse Charges,234,31/12/2020,2012-00518,0.00,894.14,R,Acumen Waste Services Ltd,No
Http://opendatacommunities.org/id/metropolitan-district-council/leeds,Leeds City Council,31/12/2020,City Development,Economic Development,Supplies and Services,Grant Related Expenditure,298,17/12/2020,2012-00519,0.00,500.00,R,Acute Gym Services,No
Http://opendatacommunities.org/id/metropolitan-district-council/leeds,Leeds City Council,31/12/2020,Resources and Housing,Shared Services,Supplies and Services,Other Hired And Contracted Services,265,30/12/2020,2012-00520,0.00,270.12,R,AD3 Envelope Printers Limited,No
Http://opendatacommunities.org/id/metropolitan-district-council/leeds,Leeds City Council,31/12/2020,Resources and Housing,Shared Services,Supplies and Services,Postages,212,30/12/2020,2012-00521,0.00,211.30,R,AD3 Envelope Printers Limited,No
Http://opendatacommunities.org/id/metropolitan-district-council/leeds,Leeds City Council,31/12/2020,Resources and Housing,Strategic Housing Partnership & Support,Supplies and Services,Other Hired And Contracted Services,265,08/12/2020,2012-00522,0.00,1700.00,R,Adam Isa Zack LTD,No
Http://opendatacommunities.org/id/metropolitan-district-council/leeds,Leeds City Council,31/12/2020,Communities and Environment,Elections Licensing and Registration,Income,Admissions Booking Fees & Ticket Sales,933,04/12/2020,2012-00523,0.00,135.00,R,REDACTED PERSONAL DATA,No
Http://opendatacommunities.org/id/metropolitan-district-council/leeds,Leeds City Council,31/12/2020,Children and Families,Social Care,Third Party Payments,Contact,548,03/12/2020,2012-00524,0.00,58.00,R,REDACTED PERSONAL DATA,No
Http://opendatacommunities.org/id/metropolitan-district-council/leeds,Leeds City Council,31/12/2020,Communities and Environment,Benefits Wlefare and Poverty,Supplies and Services,Grant Related Expenditure,290,02/12/2020,2012-00525,0.00,500.00,R,REDACTED PERSONAL DATA,No
Http://opendatacommunities.org/id/metropolitan-district-council/leeds,Leeds City Council,31/12/2020,Communities and Environment,Benefits Wlefare and Poverty,Supplies and Services,Grant Related Expenditure,290,02/12/2020,2012-00526,0.00,500.00,R,REDACTED PERSONAL DATA,No
Http://opendatacommunities.org/id/metropolitan-district-council/leeds,Leeds City Council,31/12/2020,City Development,Libraries Arts & Heritage,Supplies and Services,Publication And Promotion,267,16/12/2020,2012-00527,0.00,977.05,R,Adapted Pictures Ltd,No
Http://opendatacommunities.org/id/metropolitan-district-council/leeds,Leeds City Council,31/12/2020,Adults and Health,Services For Older People - 65 And Over,Third Party Payments,Nursing Home,570,09/12/2020,2012-00528,0.00,2584.00,R,Adbolton Hall,No
Http://opendatacommunities.org/id/metropolitan-district-council/leeds,Leeds City Council,31/12/2020,Adults and Health,Services For Older People - 65 And Over,Third Party Payments,Nursing Home,570,30/12/2020,2012-00529,0.00,2584.00,R,Adbolton Hall,No
Http://opendatacommunities.org/id/metropolitan-district-council/leeds,Leeds City Council,31/12/2020,Resources and Housing,Commercial Services,Transport,Road Fund Licences,323,02/12/2020,2012-00530,0.00,315.00,R,Addison Motors Limited,No
Http://opendatacommunities.org/id/metropolitan-district-council/leeds,Leeds City Council,31/12/2020,Resources and Housing,Civic Enterprise Leeds,Capital,TRANSPORT,4,02/12/2020,2012-00531,0.00,27706.71,C,Addison Motors Limited,No
Http://opendatacommunities.org/id/metropolitan-district-council/leeds,Leeds City Council,31/12/2020,City Development,Asset Management Services,Support Services,Legal Disbursements,411,02/12/2020,2012-00532,0.00,6586.74,R,Addleshaw Goddard LLP,No
Http://opendatacommunities.org/id/metropolitan-district-council/leeds,Leeds City Council,31/12/2020,Resources and Housing,Technology ,Employees,Agency Staff,8,10/11/2020,2012-00533,0.00,40717.25,R,Adecco Alfred Marks,Yes
Http://opendatacommunities.org/id/metropolitan-district-council/leeds,Leeds City Council,31/12/2020,Resources and Housing,Technology ,Employees,Agency Staff,8,27/11/2020,2012-00534,0.00,30345.72,R,Adecco Alfred Marks,Yes
Http://opendatacommunities.org/id/metropolitan-district-council/leeds,Leeds City Council,31/12/2020,Children and Families,Social Care,Third Party Payments,Services Rendered By Voluntary Sector,505,02/12/2020,2012-00535,0.00,4435.20,R,ADEL PRE SCHOOL,No
Http://opendatacommunities.org/id/metropolitan-district-council/leeds,Leeds City Council,31/12/2020,Children and Families,Social Care,Third Party Payments,Services Rendered By Voluntary Sector,505,04/12/2020,2012-00536,0.00,8142.56,R,ADEL PRE SCHOOL,No
Http://opendatacommunities.org/id/metropolitan-district-council/leeds,Leeds City Council,31/12/2020,Children and Families,Social Care,Third Party Payments,Services Rendered By Voluntary Sector,505,04/12/2020,2012-00537,0.00,615.00,R,ADEL PRE SCHOOL,No
Http://opendatacommunities.org/id/metropolitan-district-council/leeds,Leeds City Council,31/12/2020,Children and Families,Social Care,Third Party Payments,Services Rendered By Other Organisations,511,04/12/2020,2012-00538,0.00,928.05,R,ADEL PRE SCHOOL,No
Http://opendatacommunities.org/id/metropolitan-district-council/leeds,Leeds City Council,31/12/2020,Children and Families,Social Care,Third Party Payments,Services Rendered By Voluntary Sector,505,04/12/2020,2012-00539,0.00,317.21,R,ADEL PRE SCHOOL,No
Http://opendatacommunities.org/id/metropolitan-district-council/leeds,Leeds City Council,31/12/2020,Children and Families,Social Care,Third Party Payments,Services Rendered By Voluntary Sector,505,31/12/2020,2012-00540,0.00,8935.20,R,ADEL PRE SCHOOL,No
Http://opendatacommunities.org/id/metropolitan-district-council/leeds,Leeds City Council,31/12/2020,City Development,Economic Development,Supplies and Services,Grant Related Expenditure,298,11/12/2020,2012-00541,0.00,3270.00,R,Adel Sports And Social Club,No
Http://opendatacommunities.org/id/metropolitan-district-council/leeds,Leeds City Council,31/12/2020,City Development,Economic Development,Supplies and Services,Grant Related Expenditure,290,21/12/2020,2012-00542,0.00,1088.00,R,REDACTED PERSONAL DATA,No
Http://opendatacommunities.org/id/metropolitan-district-council/leeds,Leeds City Council,31/12/2020,City Development,Recreation,Supplies and Services,Bought In Professional Services,277,02/12/2020,2012-00543,0.00,290.00,R,Adele Battersby,No
Http://opendatacommunities.org/id/metropolitan-district-council/leeds,Leeds City Council,31/12/2020,Communities and Environment,Benefits Wlefare and Poverty,Supplies and Services,Grant Related Expenditure,298,16/12/2020,2012-00544,0.00,500.00,R,REDACTED PERSONAL DATA,No
Http://opendatacommunities.org/id/metropolitan-district-council/leeds,Leeds City Council,31/12/2020,Children and Families,Social Care,Third Party Payments,Services Rendered By Other Organisations,511,02/12/2020,2012-00545,0.00,1053.36,R,REDACTED PERSONAL DATA,No
Http://opendatacommunities.org/id/metropolitan-district-council/leeds,Leeds City Council,31/12/2020,Children and Families,Social Care,Third Party Payments,Services Rendered By Other Organisations,511,04/12/2020,2012-00546,0.00,284.70,R,REDACTED PERSONAL DATA,No
Http://opendatacommunities.org/id/metropolitan-district-council/leeds,Leeds City Council,31/12/2020,Children and Families,Social Care,Third Party Payments,Services Rendered By Other Organisations,511,04/12/2020,2012-00547,0.00,60.45,R,REDACTED PERSONAL DATA,No
Http://opendatacommunities.org/id/metropolitan-district-council/leeds,Leeds City Council,31/12/2020,Children and Families,Social Care,Third Party Payments,Services Rendered By Other Organisations,511,31/12/2020,2012-00548,0.00,2146.20,R,REDACTED PERSONAL DATA,No
Http://opendatacommunities.org/id/metropolitan-district-council/leeds,Leeds City Council,31/12/2020,Children and Families,Social Care,Third Party Payments,Services Rendered By Other Organisations,511,04/12/2020,2012-00549,0.00,2504.92,R,REDACTED PERSONAL DATA,No
Http://opendatacommunities.org/id/metropolitan-district-council/leeds,Leeds City Council,31/12/2020,Resources and Housing,Leeds Building Services,Supplies and Services,Operational Materials,205,03/12/2020,2012-00550,0.00,88.71,R,ADI Global,No
Http://opendatacommunities.org/id/metropolitan-district-council/leeds,Leeds City Council,31/12/2020,Resources and Housing,Leeds Building Services,Supplies and Services,Operational Materials,205,03/12/2020,2012-00551,0.00,117.28,R,ADI Global,No
Http://opendatacommunities.org/id/metropolitan-district-council/leeds,Leeds City Council,31/12/2020,Resources and Housing,Leeds Building Services,Supplies and Services,Operational Materials,205,03/12/2020,2012-00552,0.00,124.30,R,ADI Global,No
Http://opendatacommunities.org/id/metropolitan-district-council/leeds,Leeds City Council,31/12/2020,Resources and Housing,Leeds Building Services,Supplies and Services,Operational Materials,205,04/12/2020,2012-00553,0.00,72.76,R,ADI Global,No
Http://opendatacommunities.org/id/metropolitan-district-council/leeds,Leeds City Council,31/12/2020,Resources and Housing,Leeds Building Services,Supplies and Services,Operational Materials,205,23/12/2020,2012-00554,0.00,574.99,R,ADI Global,No
Http://opendatacommunities.org/id/metropolitan-district-council/leeds,Leeds City Council,31/12/2020,Communities and Environment,Community Safety ,Supplies and Services,Other Hired And Contracted Services,265,05/11/2020,2012-00555,0.00,80.89,R,Adi-Gardiner Ltd,Yes
Http://opendatacommunities.org/id/metropolitan-district-council/leeds,Leeds City Council,31/12/2020,Children and Families,Social Care ,Supplies and Services,Computer Software & Equipment,214,06/11/2020,2012-00556,0.00,56.70,R,Adi-Gardiner Ltd,Yes
Http://opendatacommunities.org/id/metropolitan-district-council/leeds,Leeds City Council,31/12/2020,Communities and Environment,Benefits Wlefare and Poverty,Supplies and Services,Grant Related Expenditure,290,15/12/2020,2012-00557,0.00,500.00,R,REDACTED PERSONAL DATA,No
Http://opendatacommunities.org/id/metropolitan-district-council/leeds,Leeds City Council,31/12/2020,City Development,Libraries Arts & Heritage ,Supplies and Services,Computer Software & Equipment,214,02/11/2020,2012-00558,0.00,25.28,R,Adobe Creative Cloud,Yes
Http://opendatacommunities.org/id/metropolitan-district-council/leeds,Leeds City Council,31/12/2020,City Development,Libraries Arts & Heritage ,Supplies and Services,Computer Software & Equipment,214,08/11/2020,2012-00559,0.00,1137.46,R,Adobe Products,Yes
Http://opendatacommunities.org/id/metropolitan-district-council/leeds,Leeds City Council,31/12/2020,Children and Families,Social Care,Third Party Payments,Independent Fostering Agencies,509,04/12/2020,2012-00560,0.00,3689.00,R,Adolescent And Childrens Trust,No
Http://opendatacommunities.org/id/metropolitan-district-council/leeds,Leeds City Council,31/12/2020,Children and Families,Social Care,Third Party Payments,Independent Fostering Agencies,509,04/12/2020,2012-00561,0.00,3503.00,R,Adolescent And Childrens Trust,No
Http://opendatacommunities.org/id/metropolitan-district-council/leeds,Leeds City Council,31/12/2020,Children and Families,Social Care,Third Party Payments,Independent Fostering Agencies,509,04/12/2020,2012-00562,0.00,3503.00,R,Adolescent And Childrens Trust,No
Http://opendatacommunities.org/id/metropolitan-district-council/leeds,Leeds City Council,31/12/2020,Children and Families,Social Care,Third Party Payments,Independent Fostering Agencies,509,04/12/2020,2012-00563,0.00,3503.00,R,Adolescent And Childrens Trust,No
Http://opendatacommunities.org/id/metropolitan-district-council/leeds,Leeds City Council,31/12/2020,Children and Families,Social Care,Third Party Payments,Independent Fostering Agencies,509,04/12/2020,2012-00564,0.00,3689.00,R,Adolescent And Childrens Trust,No
Http://opendatacommunities.org/id/metropolitan-district-council/leeds,Leeds City Council,31/12/2020,Children and Families,Social Care,Third Party Payments,Independent Fostering Agencies,509,04/12/2020,2012-00565,0.00,3689.00,R,Adolescent And Childrens Trust,No
Http://opendatacommunities.org/id/metropolitan-district-council/leeds,Leeds City Council,31/12/2020,Children and Families,Social Care,Third Party Payments,Independent Fostering Agencies,509,04/12/2020,2012-00566,0.00,3503.00,R,Adolescent And Childrens Trust,No
Http://opendatacommunities.org/id/metropolitan-district-council/leeds,Leeds City Council,31/12/2020,Children and Families,Social Care,Third Party Payments,Independent Fostering Agencies,509,04/12/2020,2012-00567,0.00,3503.00,R,Adolescent And Childrens Trust,No
Http://opendatacommunities.org/id/metropolitan-district-council/leeds,Leeds City Council,31/12/2020,Children and Families,Social Care,Third Party Payments,Independent Fostering Agencies,509,04/12/2020,2012-00568,0.00,3503.00,R,Adolescent And Childrens Trust,No
Http://opendatacommunities.org/id/metropolitan-district-council/leeds,Leeds City Council,31/12/2020,Children and Families,Social Care,Third Party Payments,Independent Fostering Agencies,509,04/12/2020,2012-00569,0.00,3689.00,R,Adolescent And Childrens Trust,No
Http://opendatacommunities.org/id/metropolitan-district-council/leeds,Leeds City Council,31/12/2020,Children and Families,Social Care,Third Party Payments,Independent Fostering Agencies,509,04/12/2020,2012-00570,0.00,3503.00,R,Adolescent And Childrens Trust,No
Http://opendatacommunities.org/id/metropolitan-district-council/leeds,Leeds City Council,31/12/2020,Children and Families,Social Care,Third Party Payments,Independent Fostering Agencies,509,04/12/2020,2012-00571,0.00,4534.99,R,Adolescent And Childrens Trust,No
Http://opendatacommunities.org/id/metropolitan-district-council/leeds,Leeds City Council,31/12/2020,Children and Families,Social Care,Third Party Payments,Independent Fostering Agencies,509,04/12/2020,2012-00572,0.00,3689.00,R,Adolescent And Childrens Trust,No
Http://opendatacommunities.org/id/metropolitan-district-council/leeds,Leeds City Council,31/12/2020,Children and Families,Social Care,Third Party Payments,Independent Fostering Agencies,509,04/12/2020,2012-00573,0.00,3689.00,R,Adolescent And Childrens Trust,No
Http://opendatacommunities.org/id/metropolitan-district-council/leeds,Leeds City Council,31/12/2020,Children and Families,Social Care,Third Party Payments,Independent Fostering Agencies,509,31/12/2020,2012-00574,0.00,3570.00,R,Adolescent And Childrens Trust,No
Http://opendatacommunities.org/id/metropolitan-district-council/leeds,Leeds City Council,31/12/2020,Children and Families,Social Care,Third Party Payments,Independent Fostering Agencies,509,31/12/2020,2012-00575,0.00,3390.00,R,Adolescent And Childrens Trust,No
Http://opendatacommunities.org/id/metropolitan-district-council/leeds,Leeds City Council,31/12/2020,Children and Families,Social Care,Third Party Payments,Independent Fostering Agencies,509,31/12/2020,2012-00576,0.00,3390.00,R,Adolescent And Childrens Trust,No
Http://opendatacommunities.org/id/metropolitan-district-council/leeds,Leeds City Council,31/12/2020,Children and Families,Social Care,Third Party Payments,Independent Fostering Agencies,509,31/12/2020,2012-00577,0.00,3390.00,R,Adolescent And Childrens Trust,No
Http://opendatacommunities.org/id/metropolitan-district-council/leeds,Leeds City Council,31/12/2020,Children and Families,Social Care,Third Party Payments,Independent Fostering Agencies,509,31/12/2020,2012-00578,0.00,3570.00,R,Adolescent And Childrens Trust,No
Http://opendatacommunities.org/id/metropolitan-district-council/leeds,Leeds City Council,31/12/2020,Children and Families,Social Care,Third Party Payments,Independent Fostering Agencies,509,31/12/2020,2012-00579,0.00,3570.00,R,Adolescent And Childrens Trust,No
Http://opendatacommunities.org/id/metropolitan-district-council/leeds,Leeds City Council,31/12/2020,Children and Families,Social Care,Third Party Payments,Independent Fostering Agencies,509,31/12/2020,2012-00580,0.00,3390.00,R,Adolescent And Childrens Trust,No
Http://opendatacommunities.org/id/metropolitan-district-council/leeds,Leeds City Council,31/12/2020,Children and Families,Social Care,Third Party Payments,Independent Fostering Agencies,509,31/12/2020,2012-00581,0.00,3390.00,R,Adolescent And Childrens Trust,No
Http://opendatacommunities.org/id/metropolitan-district-council/leeds,Leeds City Council,31/12/2020,Children and Families,Social Care,Third Party Payments,Independent Fostering Agencies,509,31/12/2020,2012-00582,0.00,3390.00,R,Adolescent And Childrens Trust,No
Http://opendatacommunities.org/id/metropolitan-district-council/leeds,Leeds City Council,31/12/2020,Children and Families,Social Care,Third Party Payments,Independent Fostering Agencies,509,31/12/2020,2012-00583,0.00,3570.00,R,Adolescent And Childrens Trust,No
Http://opendatacommunities.org/id/metropolitan-district-council/leeds,Leeds City Council,31/12/2020,Children and Families,Social Care,Third Party Payments,Independent Fostering Agencies,509,31/12/2020,2012-00584,0.00,3390.00,R,Adolescent And Childrens Trust,No
Http://opendatacommunities.org/id/metropolitan-district-council/leeds,Leeds City Council,31/12/2020,Children and Families,Social Care,Third Party Payments,Independent Fostering Agencies,509,31/12/2020,2012-00585,0.00,4388.70,R,Adolescent And Childrens Trust,No
Http://opendatacommunities.org/id/metropolitan-district-council/leeds,Leeds City Council,31/12/2020,Children and Families,Social Care,Third Party Payments,Independent Fostering Agencies,509,31/12/2020,2012-00586,0.00,3570.00,R,Adolescent And Childrens Trust,No
Http://opendatacommunities.org/id/metropolitan-district-council/leeds,Leeds City Council,31/12/2020,Children and Families,Social Care,Third Party Payments,Independent Fostering Agencies,509,31/12/2020,2012-00587,0.00,3570.00,R,Adolescent And Childrens Trust,No
Http://opendatacommunities.org/id/metropolitan-district-council/leeds,Leeds City Council as Accountable Body,31/12/2020,Social Services Pooled Budgets,Jcs For People With Learning Disabilitie,Third Party Payments,Residential,580,09/12/2020,2012-00588,0.00,2609.36,R,ADRIAN HOUSE,No
Http://opendatacommunities.org/id/metropolitan-district-council/leeds,Leeds City Council,31/12/2020,Communities and Environment,Benefits Wlefare and Poverty,Supplies and Services,Grant Related Expenditure,298,29/12/2020,2012-00589,0.00,500.00,R,REDACTED PERSONAL DATA,No
Http://opendatacommunities.org/id/metropolitan-district-council/leeds,Leeds City Council,31/12/2020,Children and Families,Social Care,Third Party Payments,Contact,548,04/12/2020,2012-00590,0.00,66.75,R,REDACTED PERSONAL DATA,No
Http://opendatacommunities.org/id/metropolitan-district-council/leeds,Leeds City Council,31/12/2020,Children and Families,Social Care,Third Party Payments,Placement Support,550,11/12/2020,2012-00591,0.00,60.00,R,REDACTED PERSONAL DATA,No
Http://opendatacommunities.org/id/metropolitan-district-council/leeds,Leeds City Council,31/12/2020,Children and Families,Social Care,Third Party Payments,Placement Support,550,18/12/2020,2012-00592,0.00,60.00,R,REDACTED PERSONAL DATA,No
Http://opendatacommunities.org/id/metropolitan-district-council/leeds,Leeds City Council,31/12/2020,Children and Families,Social Care,Third Party Payments,Placement Support,550,24/12/2020,2012-00593,0.00,60.00,R,REDACTED PERSONAL DATA,No
Http://opendatacommunities.org/id/metropolitan-district-council/leeds,Leeds City Council,31/12/2020,Children and Families,Social Care,Third Party Payments,Placement Support,550,31/12/2020,2012-00594,0.00,60.00,R,REDACTED PERSONAL DATA,No
Http://opendatacommunities.org/id/metropolitan-district-council/leeds,Leeds City Council,31/12/2020,Children and Families,Social Care,Third Party Payments,Section 17,551,04/12/2020,2012-00595,0.00,142.86,R,REDACTED PERSONAL DATA,No
Http://opendatacommunities.org/id/metropolitan-district-council/leeds,Leeds City Council,31/12/2020,Children and Families,Social Care,Third Party Payments,Section 17,551,11/12/2020,2012-00596,0.00,142.86,R,REDACTED PERSONAL DATA,No
Http://opendatacommunities.org/id/metropolitan-district-council/leeds,Leeds City Council,31/12/2020,Children and Families,Social Care,Third Party Payments,Section 17,551,18/12/2020,2012-00597,0.00,142.86,R,REDACTED PERSONAL DATA,No
Http://opendatacommunities.org/id/metropolitan-district-council/leeds,Leeds City Council,31/12/2020,Children and Families,Social Care,Third Party Payments,Section 17,551,24/12/2020,2012-00598,0.00,142.86,R,REDACTED PERSONAL DATA,No
Http://opendatacommunities.org/id/metropolitan-district-council/leeds,Leeds City Council,31/12/2020,Children and Families,Social Care,Third Party Payments,Section 17,551,31/12/2020,2012-00599,0.00,142.86,R,REDACTED PERSONAL DATA,No
Http://opendatacommunities.org/id/metropolitan-district-council/leeds,Leeds City Council as Accountable Body,31/12/2020,Social Services Pooled Budgets,Jcs For People With Learning Disabilitie,Third Party Payments,Home Care,568,24/12/2020,2012-00600,0.00,1332.24,R,Adult Placement Services,No
Http://opendatacommunities.org/id/metropolitan-district-council/leeds,Leeds City Council as Accountable Body,31/12/2020,Social Services Pooled Budgets,Jcs For People With Learning Disabilitie,Third Party Payments,Home Care,568,24/12/2020,2012-00601,0.00,1332.24,R,Adult Placement Services,No
Http://opendatacommunities.org/id/metropolitan-district-council/leeds,Leeds City Council,31/12/2020,Resources and Housing,Leeds Building Services,Supplies and Services,Other Hired And Contracted Services,265,17/12/2020,2012-00602,0.00,10064.25,R,Advanced Diesel Engineering,No
Http://opendatacommunities.org/id/metropolitan-district-council/leeds,Leeds City Council,31/12/2020,Resources and Housing,Leeds Building Services,Supplies and Services,Operational Materials,205,17/12/2020,2012-00603,0.00,200.00,R,ADVANCED LABELLING LIMITED,No
Http://opendatacommunities.org/id/metropolitan-district-council/leeds,Leeds City Council,31/12/2020,City Development,Libraries Arts & Heritage,Support Services,Internal Incometo City  Development,891,21/12/2020,2012-00604,0.00,7.36,R,Advanced Travel Partners Uk Ltd,No
Http://opendatacommunities.org/id/metropolitan-district-council/leeds,Leeds City Council,31/12/2020,Resources and Housing,HRA Council Housing Growth Programme,Capital,LAND,1,15/12/2020,2012-00605,0.00,10291.00,C,Advantage Property Lawyers,No
Http://opendatacommunities.org/id/metropolitan-district-council/leeds,Leeds City Council,31/12/2020,Resources and Housing,HRA Council Housing Growth Programme,Capital,LAND,1,18/12/2020,2012-00606,0.00,92375.00,C,Advantage Property Lawyers,No
Http://opendatacommunities.org/id/metropolitan-district-council/leeds,Leeds City Council as Accountable Body,31/12/2020,Social Services Pooled Budgets,Jcs For People With Learning Disabilitie,Third Party Payments,Residential,580,09/12/2020,2012-00607,0.00,17134.76,R,ADVITAM LTD,No
Http://opendatacommunities.org/id/metropolitan-district-council/leeds,Leeds City Council as Accountable Body,31/12/2020,Social Services Pooled Budgets,Jcs For People With Learning Disabilitie,Third Party Payments,Residential,580,30/12/2020,2012-00608,0.00,17134.76,R,ADVITAM LTD,No
Http://opendatacommunities.org/id/metropolitan-district-council/leeds,Leeds City Council as Accountable Body,31/12/2020,Social Services Pooled Budgets,Jcs For People With Learning Disabilitie,Supplies and Services,Other Hired And Contracted Services,265,16/12/2020,2012-00609,0.00,92.40,R,Advonet,No
Http://opendatacommunities.org/id/metropolitan-district-council/leeds,Leeds City Council,31/12/2020,Adults and Health,Services For Adults Under 65 Mental/Dis,Third Party Payments,Fees - Level 4,520,04/12/2020,2012-00610,0.00,198.00,R,AE BIA Assessments Limited,No
Http://opendatacommunities.org/id/metropolitan-district-council/leeds,Leeds City Council,31/12/2020,Adults and Health,Services For Adults Under 65 Mental/Dis,Third Party Payments,Fees - Level 4,520,09/12/2020,2012-00611,0.00,198.00,R,AE BIA Assessments Limited,No
Http://opendatacommunities.org/id/metropolitan-district-council/leeds,Leeds City Council,31/12/2020,Adults and Health,Services For Adults Under 65 Mental/Dis,Third Party Payments,Fees - Level 4,520,09/12/2020,2012-00612,0.00,198.00,R,AE BIA Assessments Limited,No
Http://opendatacommunities.org/id/metropolitan-district-council/leeds,Leeds City Council,31/12/2020,Adults and Health,Services For Adults Under 65 Mental/Dis,Third Party Payments,Fees - Level 4,520,10/12/2020,2012-00613,0.00,198.00,R,AE BIA Assessments Limited,No
Http://opendatacommunities.org/id/metropolitan-district-council/leeds,Leeds City Council,31/12/2020,Adults and Health,Services For Adults Under 65 Mental/Dis,Third Party Payments,Fees - Level 4,520,21/12/2020,2012-00614,0.00,198.00,R,AE BIA Assessments Limited,No
Http://opendatacommunities.org/id/metropolitan-district-council/leeds,Leeds City Council,31/12/2020,Adults and Health,Services For Adults Under 65 Mental/Dis,Third Party Payments,Fees - Level 4,520,24/12/2020,2012-00615,0.00,198.00,R,AE BIA Assessments Limited,No
Http://opendatacommunities.org/id/metropolitan-district-council/leeds,Leeds City Council,31/12/2020,Adults and Health,Services For Adults Under 65 Mental/Dis,Third Party Payments,Fees - Level 4,520,29/12/2020,2012-00616,0.00,198.00,R,AE BIA Assessments Limited,No
Http://opendatacommunities.org/id/metropolitan-district-council/leeds,Leeds City Council,31/12/2020,City Development,Highways,Capital,OTHER COSTS,7,08/12/2020,2012-00617,0.00,54082.70,C,Aecom Limited,No
Http://opendatacommunities.org/id/metropolitan-district-council/leeds,Leeds City Council,31/12/2020,City Development,Asset Management,Capital,OTHER COSTS,7,14/12/2020,2012-00618,0.00,10016.56,C,Aecom Limited,No
Http://opendatacommunities.org/id/metropolitan-district-council/leeds,Leeds City Council,31/12/2020,City Development,Highways,Capital,OTHER COSTS,7,14/12/2020,2012-00619,0.00,116130.00,C,Aecom Limited,No
Http://opendatacommunities.org/id/metropolitan-district-council/leeds,Leeds City Council,31/12/2020,Adults and Health,Services For Adults Under 65 Mental/Dis,Third Party Payments,Home Care,568,01/12/2020,2012-00620,0.00,1540.40,R,Aegis Care Solutions Ltd,No
Http://opendatacommunities.org/id/metropolitan-district-council/leeds,Leeds City Council,31/12/2020,Adults and Health,Services For Adults Under 65 Mental/Dis,Third Party Payments,Home Care,568,01/12/2020,2012-00621,0.00,1273.30,R,Aegis Care Solutions Ltd,No
Http://opendatacommunities.org/id/metropolitan-district-council/leeds,Leeds City Council,31/12/2020,Adults and Health,Services For Adults Under 65 Mental/Dis,Third Party Payments,Home Care,568,01/12/2020,2012-00622,0.00,1371.00,R,Aegis Care Solutions Ltd,No
Http://opendatacommunities.org/id/metropolitan-district-council/leeds,Leeds City Council,31/12/2020,Adults and Health,Services For Adults Under 65 Mental/Dis,Third Party Payments,Home Care,568,01/12/2020,2012-00623,0.00,480.60,R,Aegis Care Solutions Ltd,No
Http://opendatacommunities.org/id/metropolitan-district-council/leeds,Leeds City Council,31/12/2020,Adults and Health,Services For Adults Under 65 Mental/Dis,Third Party Payments,Home Care,568,01/12/2020,2012-00624,0.00,2006.14,R,Aegis Care Solutions Ltd,No
Http://opendatacommunities.org/id/metropolitan-district-council/leeds,Leeds City Council,31/12/2020,Adults and Health,Services For Adults Under 65 Mental/Dis,Third Party Payments,Home Care,568,01/12/2020,2012-00625,0.00,1139.60,R,Aegis Care Solutions Ltd,No
Http://opendatacommunities.org/id/metropolitan-district-council/leeds,Leeds City Council,31/12/2020,Adults and Health,Services For Adults Under 65 Mental/Dis,Third Party Payments,Home Care,568,01/12/2020,2012-00626,0.00,712.00,R,Aegis Care Solutions Ltd,No
Http://opendatacommunities.org/id/metropolitan-district-council/leeds,Leeds City Council,31/12/2020,Adults and Health,Services For Adults Under 65 Mental/Dis,Third Party Payments,Home Care,568,01/12/2020,2012-00627,0.00,4238.40,R,Aegis Care Solutions Ltd,No
Http://opendatacommunities.org/id/metropolitan-district-council/leeds,Leeds City Council,31/12/2020,Adults and Health,Services For Older People - 65 And Over,Third Party Payments,Home Care,568,02/12/2020,2012-00628,0.00,21261.28,R,Aegis Care Solutions Ltd,No
Http://opendatacommunities.org/id/metropolitan-district-council/leeds,Leeds City Council,31/12/2020,Adults and Health,Services For Older People - 65 And Over,Third Party Payments,HCAIT Other,577,02/12/2020,2012-00629,0.00,459.60,R,Aegis Care Solutions Ltd,No
Http://opendatacommunities.org/id/metropolitan-district-council/leeds,Leeds City Council,31/12/2020,Adults and Health,Services For Older People Under 65 P/Dis,Third Party Payments,Home Care,568,02/12/2020,2012-00630,0.00,4950.01,R,Aegis Care Solutions Ltd,No
Http://opendatacommunities.org/id/metropolitan-district-council/leeds,Leeds City Council as Accountable Body,31/12/2020,Social Services Pooled Budgets,Jcs For People With Learning Disabilitie,Third Party Payments,Home Care,568,02/12/2020,2012-00631,0.00,2314.20,R,Aegis Care Solutions Ltd,No
Http://opendatacommunities.org/id/metropolitan-district-council/leeds,Leeds City Council,31/12/2020,Adults and Health,Services For Older People - 65 And Over,Third Party Payments,Home Care,568,09/12/2020,2012-00632,0.00,15770.05,R,Aegis Care Solutions Ltd,No
Http://opendatacommunities.org/id/metropolitan-district-council/leeds,Leeds City Council,31/12/2020,Adults and Health,Services For Older People - 65 And Over,Third Party Payments,HCAIT Other,577,09/12/2020,2012-00633,0.00,383.00,R,Aegis Care Solutions Ltd,No
Http://opendatacommunities.org/id/metropolitan-district-council/leeds,Leeds City Council,31/12/2020,Adults and Health,Services For Older People Under 65 P/Dis,Third Party Payments,Home Care,568,09/12/2020,2012-00634,0.00,5003.24,R,Aegis Care Solutions Ltd,No
Http://opendatacommunities.org/id/metropolitan-district-council/leeds,Leeds City Council as Accountable Body,31/12/2020,Social Services Pooled Budgets,Jcs For People With Learning Disabilitie,Third Party Payments,Home Care,568,09/12/2020,2012-00635,0.00,2436.00,R,Aegis Care Solutions Ltd,No
Http://opendatacommunities.org/id/metropolitan-district-council/leeds,Leeds City Council,31/12/2020,Adults and Health,Services For Older People - 65 And Over,Third Party Payments,Home Care,568,30/12/2020,2012-00636,0.00,23819.82,R,Aegis Care Solutions Ltd,No
Http://opendatacommunities.org/id/metropolitan-district-council/leeds,Leeds City Council,31/12/2020,Adults and Health,Services For Older People - 65 And Over,Third Party Payments,HCAIT Other,577,30/12/2020,2012-00637,0.00,459.60,R,Aegis Care Solutions Ltd,No
Http://opendatacommunities.org/id/metropolitan-district-council/leeds,Leeds City Council,31/12/2020,Adults and Health,Services For Older People Under 65 P/Dis,Third Party Payments,Home Care,568,30/12/2020,2012-00638,0.00,4873.40,R,Aegis Care Solutions Ltd,No
Http://opendatacommunities.org/id/metropolitan-district-council/leeds,Leeds City Council as Accountable Body,31/12/2020,Social Services Pooled Budgets,Jcs For People With Learning Disabilitie,Third Party Payments,Home Care,568,30/12/2020,2012-00639,0.00,1948.80,R,Aegis Care Solutions Ltd,No
Http://opendatacommunities.org/id/metropolitan-district-council/leeds,Leeds City Council,31/12/2020,Adults and Health,Services For Adults Under 65 Mental/Dis,Third Party Payments,Home Care,568,31/12/2020,2012-00640,0.00,1259.80,R,Aegis Care Solutions Ltd,No
Http://opendatacommunities.org/id/metropolitan-district-council/leeds,Leeds City Council,31/12/2020,Adults and Health,Services For Adults Under 65 Mental/Dis,Third Party Payments,Home Care,568,31/12/2020,2012-00641,0.00,356.00,R,Aegis Care Solutions Ltd,No
Http://opendatacommunities.org/id/metropolitan-district-council/leeds,Leeds City Council,31/12/2020,Adults and Health,Services For Adults Under 65 Mental/Dis,Third Party Payments,Home Care,568,31/12/2020,2012-00642,0.00,1317.60,R,Aegis Care Solutions Ltd,No
Http://opendatacommunities.org/id/metropolitan-district-council/leeds,Leeds City Council,31/12/2020,Adults and Health,Services For Adults Under 65 Mental/Dis,Third Party Payments,Home Care,568,31/12/2020,2012-00643,0.00,1500.20,R,Aegis Care Solutions Ltd,No
Http://opendatacommunities.org/id/metropolitan-district-council/leeds,Leeds City Council,31/12/2020,Adults and Health,Services For Adults Under 65 Mental/Dis,Third Party Payments,Home Care,568,31/12/2020,2012-00644,0.00,694.20,R,Aegis Care Solutions Ltd,No
Http://opendatacommunities.org/id/metropolitan-district-council/leeds,Leeds City Council,31/12/2020,Adults and Health,Services For Adults Under 65 Mental/Dis,Third Party Payments,Home Care,568,31/12/2020,2012-00645,0.00,1876.71,R,Aegis Care Solutions Ltd,No
Http://opendatacommunities.org/id/metropolitan-district-council/leeds,Leeds City Council,31/12/2020,Adults and Health,Services For Adults Under 65 Mental/Dis,Third Party Payments,Home Care,568,31/12/2020,2012-00646,0.00,1104.00,R,Aegis Care Solutions Ltd,No
Http://opendatacommunities.org/id/metropolitan-district-council/leeds,Leeds City Council,31/12/2020,Adults and Health,Services For Adults Under 65 Mental/Dis,Third Party Payments,Home Care,568,31/12/2020,2012-00647,0.00,623.00,R,Aegis Care Solutions Ltd,No
Http://opendatacommunities.org/id/metropolitan-district-council/leeds,Leeds City Council,31/12/2020,Adults and Health,Services For Adults Under 65 Mental/Dis,Third Party Payments,Home Care,568,31/12/2020,2012-00648,0.00,4104.00,R,Aegis Care Solutions Ltd,No
Http://opendatacommunities.org/id/metropolitan-district-council/leeds,Leeds City Council,31/12/2020,City Development,Recreation ,Supplies and Services,Books & Audio-Visual Materials,206,25/11/2020,2012-00649,0.00,20.83,R,Aesthetica,Yes
Http://opendatacommunities.org/id/metropolitan-district-council/leeds,Leeds City Council,31/12/2020,Adults and Health,Services For Older People Under 65 P/Dis,Third Party Payments,Day Centre,564,01/12/2020,2012-00650,0.00,537.32,R,Affinity Trust,No
Http://opendatacommunities.org/id/metropolitan-district-council/leeds,Leeds City Council,31/12/2020,Adults and Health,Other Adult Services,Third Party Payments,Residential,580,02/12/2020,2012-00651,0.00,9438.13,R,Affinity Trust,No
Http://opendatacommunities.org/id/metropolitan-district-council/leeds,Leeds City Council,31/12/2020,Adults and Health,Services For Adults Under 65 Mental/Dis,Third Party Payments,Home Care,568,03/12/2020,2012-00652,0.00,343.57,R,Affinity Trust,No
Http://opendatacommunities.org/id/metropolitan-district-council/leeds,Leeds City Council,31/12/2020,Adults and Health,Services For Older People Under 65 P/Dis,Third Party Payments,Home Care,568,03/12/2020,2012-00653,0.00,1328.78,R,Affinity Trust,No
Http://opendatacommunities.org/id/metropolitan-district-council/leeds,Leeds City Council,31/12/2020,Adults and Health,Services For Older People Under 65 P/Dis,Third Party Payments,Home Care,568,03/12/2020,2012-00654,0.00,605.52,R,Affinity Trust,No
Http://opendatacommunities.org/id/metropolitan-district-council/leeds,Leeds City Council,31/12/2020,Adults and Health,Services For Older People Under 65 P/Dis,Third Party Payments,Home Care,568,03/12/2020,2012-00655,0.00,615.23,R,Affinity Trust,No
Http://opendatacommunities.org/id/metropolitan-district-council/leeds,Leeds City Council as Accountable Body,31/12/2020,Social Services Pooled Budgets,Jcs For People With Learning Disabilitie,Third Party Payments,Home Care,568,04/12/2020,2012-00656,0.00,1476.75,R,Affinity Trust,No
Http://opendatacommunities.org/id/metropolitan-district-council/leeds,Leeds City Council as Accountable Body,31/12/2020,Social Services Pooled Budgets,Jcs For People With Learning Disabilitie,Third Party Payments,Day Centre,564,16/12/2020,2012-00657,0.00,1440.00,R,Affinity Trust,No
Http://opendatacommunities.org/id/metropolitan-district-council/leeds,Leeds City Council as Accountable Body,31/12/2020,Social Services Pooled Budgets,Jcs For People With Learning Disabilitie,Third Party Payments,Home Care,568,16/12/2020,2012-00658,0.00,1080.00,R,Affinity Trust,No
Http://opendatacommunities.org/id/metropolitan-district-council/leeds,Leeds City Council as Accountable Body,31/12/2020,Social Services Pooled Budgets,Jcs For People With Learning Disabilitie,Third Party Payments,Home Care,568,16/12/2020,2012-00659,0.00,1080.00,R,Affinity Trust,No
Http://opendatacommunities.org/id/metropolitan-district-council/leeds,Leeds City Council as Accountable Body,31/12/2020,Social Services Pooled Budgets,Jcs For People With Learning Disabilitie,Third Party Payments,Home Care,568,16/12/2020,2012-00660,0.00,1980.00,R,Affinity Trust,No
Http://opendatacommunities.org/id/metropolitan-district-council/leeds,Leeds City Council as Accountable Body,31/12/2020,Social Services Pooled Budgets,Jcs For People With Learning Disabilitie,Third Party Payments,Day Centre,564,16/12/2020,2012-00661,0.00,1080.00,R,Affinity Trust,No
Http://opendatacommunities.org/id/metropolitan-district-council/leeds,Leeds City Council as Accountable Body,31/12/2020,Social Services Pooled Budgets,Jcs For People With Learning Disabilitie,Third Party Payments,Day Centre,564,16/12/2020,2012-00662,0.00,2031.48,R,Affinity Trust,No
Http://opendatacommunities.org/id/metropolitan-district-council/leeds,Leeds City Council as Accountable Body,31/12/2020,Social Services Pooled Budgets,Jcs For People With Learning Disabilitie,Third Party Payments,Home Care,568,16/12/2020,2012-00663,0.00,804.48,R,Affinity Trust,No
Http://opendatacommunities.org/id/metropolitan-district-council/leeds,Leeds City Council as Accountable Body,31/12/2020,Social Services Pooled Budgets,Jcs For People With Learning Disabilitie,Third Party Payments,Home Care,568,16/12/2020,2012-00664,0.00,1504.72,R,Affinity Trust,No
Http://opendatacommunities.org/id/metropolitan-district-council/leeds,Leeds City Council as Accountable Body,31/12/2020,Social Services Pooled Budgets,Jcs For People With Learning Disabilitie,Third Party Payments,Home Care,568,16/12/2020,2012-00665,0.00,1800.00,R,Affinity Trust,No
Http://opendatacommunities.org/id/metropolitan-district-council/leeds,Leeds City Council as Accountable Body,31/12/2020,Social Services Pooled Budgets,Jcs For People With Learning Disabilitie,Third Party Payments,Day Centre,564,16/12/2020,2012-00666,0.00,1440.00,R,Affinity Trust,No
Http://opendatacommunities.org/id/metropolitan-district-council/leeds,Leeds City Council as Accountable Body,31/12/2020,Social Services Pooled Budgets,Jcs For People With Learning Disabilitie,Third Party Payments,Day Centre,564,16/12/2020,2012-00667,0.00,15207.00,R,Affinity Trust,No
Http://opendatacommunities.org/id/metropolitan-district-council/leeds,Leeds City Council as Accountable Body,31/12/2020,Social Services Pooled Budgets,Jcs For People With Learning Disabilitie,Third Party Payments,Day Centre,564,17/12/2020,2012-00668,0.00,720.00,R,Affinity Trust,No
Http://opendatacommunities.org/id/metropolitan-district-council/leeds,Leeds City Council as Accountable Body,31/12/2020,Social Services Pooled Budgets,Jcs For People With Learning Disabilitie,Third Party Payments,Home Care,568,17/12/2020,2012-00669,0.00,1560.00,R,Affinity Trust,No
Http://opendatacommunities.org/id/metropolitan-district-council/leeds,Leeds City Council as Accountable Body,31/12/2020,Social Services Pooled Budgets,Jcs For People With Learning Disabilitie,Third Party Payments,Home Care,568,17/12/2020,2012-00670,0.00,2640.00,R,Affinity Trust,No
Http://opendatacommunities.org/id/metropolitan-district-council/leeds,Leeds City Council as Accountable Body,31/12/2020,Social Services Pooled Budgets,Jcs For People With Learning Disabilitie,Third Party Payments,Home Care,568,17/12/2020,2012-00671,0.00,2011.20,R,Affinity Trust,No
Http://opendatacommunities.org/id/metropolitan-district-council/leeds,Leeds City Council as Accountable Body,31/12/2020,Social Services Pooled Budgets,Jcs For People With Learning Disabilitie,Third Party Payments,Home Care,568,17/12/2020,2012-00672,0.00,770.96,R,Affinity Trust,No
Http://opendatacommunities.org/id/metropolitan-district-council/leeds,Leeds City Council as Accountable Body,31/12/2020,Social Services Pooled Budgets,Jcs For People With Learning Disabilitie,Third Party Payments,Day Centre,564,17/12/2020,2012-00673,0.00,525.72,R,Affinity Trust,No
Http://opendatacommunities.org/id/metropolitan-district-council/leeds,Leeds City Council as Accountable Body,31/12/2020,Social Services Pooled Budgets,Jcs For People With Learning Disabilitie,Third Party Payments,Home Care,568,17/12/2020,2012-00674,0.00,1005.60,R,Affinity Trust,No
Http://opendatacommunities.org/id/metropolitan-district-council/leeds,Leeds City Council as Accountable Body,31/12/2020,Social Services Pooled Budgets,Jcs For People With Learning Disabilitie,Third Party Payments,Home Care,568,17/12/2020,2012-00675,0.00,360.00,R,Affinity Trust,No
Http://opendatacommunities.org/id/metropolitan-district-council/leeds,Leeds City Council as Accountable Body,31/12/2020,Social Services Pooled Budgets,Jcs For People With Learning Disabilitie,Third Party Payments,Day Centre,564,17/12/2020,2012-00676,0.00,714.78,R,Affinity Trust,No
Http://opendatacommunities.org/id/metropolitan-district-council/leeds,Leeds City Council as Accountable Body,31/12/2020,Social Services Pooled Budgets,Jcs For People With Learning Disabilitie,Third Party Payments,Home Care,568,17/12/2020,2012-00677,0.00,2346.40,R,Affinity Trust,No
Http://opendatacommunities.org/id/metropolitan-district-council/leeds,Leeds City Council as Accountable Body,31/12/2020,Social Services Pooled Budgets,Jcs For People With Learning Disabilitie,Third Party Payments,Day Centre,564,17/12/2020,2012-00678,0.00,9142.77,R,Affinity Trust,No
Http://opendatacommunities.org/id/metropolitan-district-council/leeds,Leeds City Council as Accountable Body,31/12/2020,Social Services Pooled Budgets,Jcs For People With Learning Disabilitie,Third Party Payments,Home Care,568,17/12/2020,2012-00679,0.00,1342.32,R,Affinity Trust,No
Http://opendatacommunities.org/id/metropolitan-district-council/leeds,Leeds City Council as Accountable Body,31/12/2020,Social Services Pooled Budgets,Jcs For People With Learning Disabilitie,Third Party Payments,Home Care,568,17/12/2020,2012-00680,0.00,127.84,R,Affinity Trust,No
Http://opendatacommunities.org/id/metropolitan-district-council/leeds,Leeds City Council as Accountable Body,31/12/2020,Social Services Pooled Budgets,Jcs For People With Learning Disabilitie,Third Party Payments,Home Care,568,17/12/2020,2012-00681,0.00,990.76,R,Affinity Trust,No
Http://opendatacommunities.org/id/metropolitan-district-council/leeds,Leeds City Council as Accountable Body,31/12/2020,Social Services Pooled Budgets,Jcs For People With Learning Disabilitie,Third Party Payments,Day Centre,564,17/12/2020,2012-00682,0.00,416.64,R,Affinity Trust,No
Http://opendatacommunities.org/id/metropolitan-district-council/leeds,Leeds City Council as Accountable Body,31/12/2020,Social Services Pooled Budgets,Jcs For People With Learning Disabilitie,Third Party Payments,Home Care,568,17/12/2020,2012-00683,0.00,1501.50,R,Affinity Trust,No
Http://opendatacommunities.org/id/metropolitan-district-council/leeds,Leeds City Council as Accountable Body,31/12/2020,Social Services Pooled Budgets,Jcs For People With Learning Disabilitie,Third Party Payments,Home Care,568,17/12/2020,2012-00684,0.00,1211.04,R,Affinity Trust,No
Http://opendatacommunities.org/id/metropolitan-district-council/leeds,Leeds City Council as Accountable Body,31/12/2020,Social Services Pooled Budgets,Jcs For People With Learning Disabilitie,Third Party Payments,Home Care,568,17/12/2020,2012-00685,0.00,647.19,R,Affinity Trust,No
Http://opendatacommunities.org/id/metropolitan-district-council/leeds,Leeds City Council as Accountable Body,31/12/2020,Social Services Pooled Budgets,Jcs For People With Learning Disabilitie,Third Party Payments,Day Centre,564,17/12/2020,2012-00686,0.00,247.69,R,Affinity Trust,No
Http://opendatacommunities.org/id/metropolitan-district-council/leeds,Leeds City Council as Accountable Body,31/12/2020,Social Services Pooled Budgets,Jcs For People With Learning Disabilitie,Third Party Payments,Home Care,568,17/12/2020,2012-00687,0.00,408.00,R,Affinity Trust,No
Http://opendatacommunities.org/id/metropolitan-district-council/leeds,Leeds City Council as Accountable Body,31/12/2020,Social Services Pooled Budgets,Jcs For People With Learning Disabilitie,Third Party Payments,Home Care,568,17/12/2020,2012-00688,0.00,663.17,R,Affinity Trust,No
Http://opendatacommunities.org/id/metropolitan-district-council/leeds,Leeds City Council as Accountable Body,31/12/2020,Social Services Pooled Budgets,Jcs For People With Learning Disabilitie,Third Party Payments,Home Care,568,17/12/2020,2012-00689,0.00,3755.30,R,Affinity Trust,No
Http://opendatacommunities.org/id/metropolitan-district-council/leeds,Leeds City Council as Accountable Body,31/12/2020,Social Services Pooled Budgets,Jcs For People With Learning Disabilitie,Third Party Payments,Home Care,568,17/12/2020,2012-00690,0.00,408.64,R,Affinity Trust,No
Http://opendatacommunities.org/id/metropolitan-district-council/leeds,Leeds City Council as Accountable Body,31/12/2020,Social Services Pooled Budgets,Jcs For People With Learning Disabilitie,Third Party Payments,Home Care,568,17/12/2020,2012-00691,0.00,538.24,R,Affinity Trust,No
Http://opendatacommunities.org/id/metropolitan-district-council/leeds,Leeds City Council as Accountable Body,31/12/2020,Social Services Pooled Budgets,Jcs For People With Learning Disabilitie,Third Party Payments,Home Care,568,17/12/2020,2012-00692,0.00,958.80,R,Affinity Trust,No
Http://opendatacommunities.org/id/metropolitan-district-council/leeds,Leeds City Council as Accountable Body,31/12/2020,Social Services Pooled Budgets,Jcs For People With Learning Disabilitie,Third Party Payments,Home Care,568,17/12/2020,2012-00693,0.00,479.40,R,Affinity Trust,No
Http://opendatacommunities.org/id/metropolitan-district-council/leeds,Leeds City Council as Accountable Body,31/12/2020,Social Services Pooled Budgets,Jcs For People With Learning Disabilitie,Third Party Payments,Home Care,568,17/12/2020,2012-00694,0.00,111.86,R,Affinity Trust,No
Http://opendatacommunities.org/id/metropolitan-district-council/leeds,Leeds City Council as Accountable Body,31/12/2020,Social Services Pooled Budgets,Jcs For People With Learning Disabilitie,Third Party Payments,Home Care,568,17/12/2020,2012-00695,0.00,191.76,R,Affinity Trust,No
Http://opendatacommunities.org/id/metropolitan-district-council/leeds,Leeds City Council as Accountable Body,31/12/2020,Social Services Pooled Budgets,Jcs For People With Learning Disabilitie,Third Party Payments,Home Care,568,17/12/2020,2012-00696,0.00,420.00,R,Affinity Trust,No
Http://opendatacommunities.org/id/metropolitan-district-council/leeds,Leeds City Council as Accountable Body,31/12/2020,Social Services Pooled Budgets,Jcs For People With Learning Disabilitie,Third Party Payments,Home Care,568,23/12/2020,2012-00697,0.00,319.60,R,Affinity Trust,No
Http://opendatacommunities.org/id/metropolitan-district-council/leeds,Leeds City Council,31/12/2020,Adults and Health,Services For Adults Under 65 Mental/Dis,Third Party Payments,HCAIT Community Support,575,23/12/2020,2012-00698,0.00,336.40,R,Affinity Trust,No
Http://opendatacommunities.org/id/metropolitan-district-council/leeds,Leeds City Council as Accountable Body,31/12/2020,Social Services Pooled Budgets,Jcs For People With Learning Disabilitie,Third Party Payments,Home Care,568,29/12/2020,2012-00699,0.00,3463.56,R,Affinity Trust,No
Http://opendatacommunities.org/id/metropolitan-district-council/leeds,Leeds City Council as Accountable Body,31/12/2020,Social Services Pooled Budgets,Jcs For People With Learning Disabilitie,Third Party Payments,Day Centre,564,29/12/2020,2012-00700,0.00,9142.77,R,Affinity Trust,No
Http://opendatacommunities.org/id/metropolitan-district-council/leeds,Leeds City Council as Accountable Body,31/12/2020,Social Services Pooled Budgets,Jcs For People With Learning Disabilitie,Third Party Payments,Home Care,568,29/12/2020,2012-00701,0.00,3446.80,R,Affinity Trust,No
Http://opendatacommunities.org/id/metropolitan-district-council/leeds,Leeds City Council as Accountable Body,31/12/2020,Social Services Pooled Budgets,Jcs For People With Learning Disabilitie,Third Party Payments,Home Care,568,29/12/2020,2012-00702,0.00,3446.80,R,Affinity Trust,No
Http://opendatacommunities.org/id/metropolitan-district-council/leeds,Leeds City Council as Accountable Body,31/12/2020,Social Services Pooled Budgets,Jcs For People With Learning Disabilitie,Third Party Payments,Day Centre,564,29/12/2020,2012-00703,0.00,15207.00,R,Affinity Trust,No
Http://opendatacommunities.org/id/metropolitan-district-council/leeds,Leeds City Council as Accountable Body,31/12/2020,Social Services Pooled Budgets,Jcs For People With Learning Disabilitie,Third Party Payments,Day Centre,564,29/12/2020,2012-00704,0.00,9142.77,R,Affinity Trust,No
Http://opendatacommunities.org/id/metropolitan-district-council/leeds,Leeds City Council as Accountable Body,31/12/2020,Social Services Pooled Budgets,Jcs For People With Learning Disabilitie,Third Party Payments,Home Care,568,29/12/2020,2012-00705,0.00,3446.80,R,Affinity Trust,No
Http://opendatacommunities.org/id/metropolitan-district-council/leeds,Leeds City Council,31/12/2020,Adults and Health,Services For Adults Under 65 Mental/Dis,Third Party Payments,Home Care,568,29/12/2020,2012-00706,0.00,391.51,R,Affinity Trust,No
Http://opendatacommunities.org/id/metropolitan-district-council/leeds,Leeds City Council,31/12/2020,Adults and Health,Services For Older People Under 65 P/Dis,Third Party Payments,Home Care,568,29/12/2020,2012-00707,0.00,1572.67,R,Affinity Trust,No
Http://opendatacommunities.org/id/metropolitan-district-council/leeds,Leeds City Council,31/12/2020,Adults and Health,Services For Older People Under 65 P/Dis,Third Party Payments,Home Care,568,29/12/2020,2012-00708,0.00,605.52,R,Affinity Trust,No
Http://opendatacommunities.org/id/metropolitan-district-council/leeds,Leeds City Council,31/12/2020,Adults and Health,Services For Older People - 65 And Over,Third Party Payments,Home Care,568,29/12/2020,2012-00709,0.00,327.59,R,Affinity Trust,No
Http://opendatacommunities.org/id/metropolitan-district-council/leeds,Leeds City Council,31/12/2020,Adults and Health,Services For Older People Under 65 P/Dis,Third Party Payments,Home Care,568,29/12/2020,2012-00710,0.00,607.24,R,Affinity Trust,No
Http://opendatacommunities.org/id/metropolitan-district-council/leeds,Leeds City Council as Accountable Body,31/12/2020,Social Services Pooled Budgets,Jcs For People With Learning Disabilitie,Third Party Payments,Home Care,568,29/12/2020,2012-00711,0.00,3446.80,R,Affinity Trust,No
Http://opendatacommunities.org/id/metropolitan-district-council/leeds,Leeds City Council,31/12/2020,Adults and Health,Services For Older People Under 65 P/Dis,Third Party Payments,Day Centre,564,29/12/2020,2012-00712,0.00,537.32,R,Affinity Trust,No
Http://opendatacommunities.org/id/metropolitan-district-council/leeds,Leeds City Council as Accountable Body,31/12/2020,Social Services Pooled Budgets,Jcs For People With Learning Disabilitie,Third Party Payments,Home Care,568,29/12/2020,2012-00713,0.00,2500.54,R,Affinity Trust,No
Http://opendatacommunities.org/id/metropolitan-district-council/leeds,Leeds City Council,31/12/2020,Adults and Health,Services For Older People Under 65 P/Dis,Third Party Payments,Sheltered Accommodation,569,09/12/2020,2012-00714,0.00,8290.80,R,Affinity Trust North Divisional Office,No
Http://opendatacommunities.org/id/metropolitan-district-council/leeds,Leeds City Council as Accountable Body,31/12/2020,Social Services Pooled Budgets,Jcs For People With Learning Disabilitie,Third Party Payments,Sheltered Accommodation,569,09/12/2020,2012-00715,0.00,138801.96,R,Affinity Trust North Divisional Office,No
Http://opendatacommunities.org/id/metropolitan-district-council/leeds,Leeds City Council,31/12/2020,Adults and Health,Services For Older People Under 65 P/Dis,Third Party Payments,Sheltered Accommodation,569,30/12/2020,2012-00716,0.00,8290.80,R,Affinity Trust North Divisional Office,No
Http://opendatacommunities.org/id/metropolitan-district-council/leeds,Leeds City Council as Accountable Body,31/12/2020,Social Services Pooled Budgets,Jcs For People With Learning Disabilitie,Third Party Payments,Sheltered Accommodation,569,30/12/2020,2012-00717,0.00,123150.96,R,Affinity Trust North Divisional Office,No
Http://opendatacommunities.org/id/metropolitan-district-council/leeds,Leeds City Council,31/12/2020,Communities and Environment,Parks and Countryside ,Transport,External Hire -Occasional,304,16/11/2020,2012-00718,0.00,950.00,R,Afi Uplift,Yes
Http://opendatacommunities.org/id/metropolitan-district-council/leeds,Leeds City Council,31/12/2020,Communities and Environment,Parks and Countryside ,Transport,External Hire -Occasional,304,16/11/2020,2012-00719,0.00,950.00,R,Afi Uplift,Yes
Http://opendatacommunities.org/id/metropolitan-district-council/leeds,Leeds City Council,31/12/2020,Communities and Environment,Parks and Countryside ,Transport,External Hire -Occasional,304,16/11/2020,2012-00720,0.00,950.00,R,Afi Uplift,Yes
Http://opendatacommunities.org/id/metropolitan-district-council/leeds,Leeds City Council,31/12/2020,Communities and Environment,Parks and Countryside ,Transport,External Hire -Occasional,304,16/11/2020,2012-00721,0.00,950.00,R,Afi Uplift,Yes
Http://opendatacommunities.org/id/metropolitan-district-council/leeds,Leeds City Council,31/12/2020,Communities and Environment,Parks and Countryside ,Transport,External Hire -Occasional,304,16/11/2020,2012-00722,0.00,950.00,R,Afi Uplift,Yes
Http://opendatacommunities.org/id/metropolitan-district-council/leeds,Leeds City Council,31/12/2020,Communities and Environment,Benefits Wlefare and Poverty,Supplies and Services,Grant Related Expenditure,290,03/12/2020,2012-00723,0.00,500.00,R,REDACTED PERSONAL DATA,No
Http://opendatacommunities.org/id/metropolitan-district-council/leeds,Leeds City Council,31/12/2020,Communities and Environment,Benefits Wlefare and Poverty,Supplies and Services,Grant Related Expenditure,298,11/12/2020,2012-00724,0.00,500.00,R,REDACTED PERSONAL DATA,No
Http://opendatacommunities.org/id/metropolitan-district-council/leeds,Leeds City Council,31/12/2020,Communities and Environment,Benefits Wlefare and Poverty,Supplies and Services,Grant Related Expenditure,290,08/12/2020,2012-00725,0.00,500.00,R,REDACTED PERSONAL DATA,No
Http://opendatacommunities.org/id/metropolitan-district-council/leeds,Leeds City Council,31/12/2020,Communities and Environment,Customer Access,Income,Income from Hire Of Rooms & Equipment,956,24/12/2020,2012-00726,0.00,12000.00,R,Age Uk Croydon,No
Http://opendatacommunities.org/id/metropolitan-district-council/leeds,Leeds City Council,31/12/2020,Adults and Health,Services For Older People - 65 And Over,Third Party Payments,Payments To Voluntary Organisations,561,31/12/2020,2012-00727,0.00,10599.75,R,Age Uk Leeds,No
Http://opendatacommunities.org/id/metropolitan-district-council/leeds,Leeds City Council,31/12/2020,City Development,Libraries Arts & Heritage,Supplies and Services,Other Hired And Contracted Services,265,09/12/2020,2012-00728,0.00,150.00,R,Agency For Good Ltd,No
Http://opendatacommunities.org/id/metropolitan-district-council/leeds,Leeds City Council,31/12/2020,Communities and Environment,Customer Access,Supplies and Services,Other Hired And Contracted Services,265,15/12/2020,2012-00729,0.00,600.00,R,Agency For Good Ltd,No
Http://opendatacommunities.org/id/metropolitan-district-council/leeds,Leeds City Council,31/12/2020,City Development,Highways,Supplies and Services,Operational Materials,205,24/12/2020,2012-00730,0.00,1538.76,R,AGGREGATE INDUSTRIES UK LTD,No
Http://opendatacommunities.org/id/metropolitan-district-council/leeds,Leeds City Council,31/12/2020,Children and Families,Social Care,Transfer Payments,Leaving Care Allowances,634,18/12/2020,2012-00731,0.00,80.00,R,REDACTED PERSONAL DATA,No
Http://opendatacommunities.org/id/metropolitan-district-council/leeds,Leeds City Council,31/12/2020,Communities and Environment,Benefits Wlefare and Poverty,Supplies and Services,Grant Related Expenditure,290,16/12/2020,2012-00732,0.00,500.00,R,REDACTED PERSONAL DATA,No
Http://opendatacommunities.org/id/metropolitan-district-council/leeds,Leeds City Council,31/12/2020,Communities and Environment,Benefits Wlefare and Poverty,Supplies and Services,Grant Related Expenditure,290,03/12/2020,2012-00733,0.00,500.00,R,REDACTED PERSONAL DATA,No
Http://opendatacommunities.org/id/metropolitan-district-council/leeds,Leeds City Council,31/12/2020,Communities and Environment,Parks and Countryside,Supplies and Services,Operational Materials,205,04/12/2020,2012-00734,0.00,540.15,R,Agrovista UK Ltd,No
Http://opendatacommunities.org/id/metropolitan-district-council/leeds,Leeds City Council,31/12/2020,Communities and Environment,Elections Licensing and Registration,Income,Admissions Booking Fees & Ticket Sales,933,04/12/2020,2012-00735,0.00,135.00,R,Ahmed Ali,No
Http://opendatacommunities.org/id/metropolitan-district-council/leeds,Leeds City Council,31/12/2020,Communities and Environment,Customer Access,Supplies and Services,Bought In Professional Services,277,23/12/2020,2012-00736,0.00,18.00,R,Ahmed Moustafa Moustafa Mousa,No
Http://opendatacommunities.org/id/metropolitan-district-council/leeds,Leeds City Council,31/12/2020,Children and Families,Learning,Supplies and Services,Teaching Materials,202,23/12/2020,2012-00737,0.00,48.59,R,Aid Training & Operations Ltd,No
Http://opendatacommunities.org/id/metropolitan-district-council/leeds,Leeds City Council as Accountable Body,31/12/2020,Social Services Pooled Budgets,Leeds Community Equip Store Pooled Budgt,Supplies and Services,Other Equipment,203,02/12/2020,2012-00738,0.00,357.50,R,AIDAPT BATHROOMS LTD,No
Http://opendatacommunities.org/id/metropolitan-district-council/leeds,Leeds City Council as Accountable Body,31/12/2020,Social Services Pooled Budgets,Leeds Community Equip Store Pooled Budgt,Supplies and Services,Other Equipment,203,03/12/2020,2012-00739,0.00,55.00,R,AIDAPT BATHROOMS LTD,No
Http://opendatacommunities.org/id/metropolitan-district-council/leeds,Leeds City Council as Accountable Body,31/12/2020,Social Services Pooled Budgets,Leeds Community Equip Store Pooled Budgt,Supplies and Services,Other Equipment,203,10/12/2020,2012-00740,0.00,773.70,R,AIDAPT BATHROOMS LTD,No
Http://opendatacommunities.org/id/metropolitan-district-council/leeds,Leeds City Council as Accountable Body,31/12/2020,Social Services Pooled Budgets,Leeds Community Equip Store Pooled Budgt,Supplies and Services,Other Equipment,203,18/12/2020,2012-00741,0.00,3263.00,R,AIDAPT BATHROOMS LTD,No
Http://opendatacommunities.org/id/metropolitan-district-council/leeds,Leeds City Council as Accountable Body,31/12/2020,Social Services Pooled Budgets,Leeds Community Equip Store Pooled Budgt,Supplies and Services,Other Equipment,203,23/12/2020,2012-00742,0.00,438.70,R,AIDAPT BATHROOMS LTD,No
Http://opendatacommunities.org/id/metropolitan-district-council/leeds,Leeds City Council as Accountable Body,31/12/2020,Social Services Pooled Budgets,Leeds Community Equip Store Pooled Budgt,Supplies and Services,Other Equipment,203,23/12/2020,2012-00743,0.00,473.20,R,AIDAPT BATHROOMS LTD,No
Http://opendatacommunities.org/id/metropolitan-district-council/leeds,Leeds City Council as Accountable Body,31/12/2020,Social Services Pooled Budgets,Leeds Community Equip Store Pooled Budgt,Supplies and Services,Other Equipment,203,23/12/2020,2012-00744,0.00,1870.00,R,AIDAPT BATHROOMS LTD,No
Http://opendatacommunities.org/id/metropolitan-district-council/leeds,Leeds City Council as Accountable Body,31/12/2020,Social Services Pooled Budgets,Leeds Community Equip Store Pooled Budgt,Supplies and Services,Other Equipment,203,23/12/2020,2012-00745,0.00,399.80,R,AIDAPT BATHROOMS LTD,No
Http://opendatacommunities.org/id/metropolitan-district-council/leeds,Leeds City Council as Accountable Body,31/12/2020,Social Services Pooled Budgets,Leeds Community Equip Store Pooled Budgt,Supplies and Services,Other Equipment,203,29/12/2020,2012-00746,0.00,-119.94,R,AIDAPT BATHROOMS LTD,No
Http://opendatacommunities.org/id/metropolitan-district-council/leeds,Leeds City Council as Accountable Body,31/12/2020,Social Services Pooled Budgets,Leeds Community Equip Store Pooled Budgt,Supplies and Services,Other Equipment,203,29/12/2020,2012-00747,0.00,389.00,R,AIDAPT BATHROOMS LTD,No
Http://opendatacommunities.org/id/metropolitan-district-council/leeds,Leeds City Council as Accountable Body,31/12/2020,Social Services Pooled Budgets,Leeds Community Equip Store Pooled Budgt,Supplies and Services,Other Equipment,203,29/12/2020,2012-00748,0.00,4017.45,R,AIDAPT BATHROOMS LTD,No
Http://opendatacommunities.org/id/metropolitan-district-council/leeds,Leeds City Council as Accountable Body,31/12/2020,Social Services Pooled Budgets,Leeds Community Equip Store Pooled Budgt,Supplies and Services,Other Equipment,203,29/12/2020,2012-00749,0.00,302.00,R,AIDAPT BATHROOMS LTD,No
Http://opendatacommunities.org/id/metropolitan-district-council/leeds,Leeds City Council as Accountable Body,31/12/2020,Social Services Pooled Budgets,Leeds Community Equip Store Pooled Budgt,Supplies and Services,Other Equipment,203,29/12/2020,2012-00750,0.00,4500.00,R,AIDAPT BATHROOMS LTD,No
Http://opendatacommunities.org/id/metropolitan-district-council/leeds,Leeds City Council as Accountable Body,31/12/2020,Social Services Pooled Budgets,Leeds Community Equip Store Pooled Budgt,Supplies and Services,Other Equipment,203,29/12/2020,2012-00751,0.00,1595.00,R,AIDAPT BATHROOMS LTD,No
Http://opendatacommunities.org/id/metropolitan-district-council/leeds,Leeds City Council as Accountable Body,31/12/2020,Social Services Pooled Budgets,Leeds Community Equip Store Pooled Budgt,Supplies and Services,Other Equipment,203,29/12/2020,2012-00752,0.00,1875.30,R,AIDAPT BATHROOMS LTD,No
Http://opendatacommunities.org/id/metropolitan-district-council/leeds,Leeds City Council as Accountable Body,31/12/2020,Social Services Pooled Budgets,Leeds Community Equip Store Pooled Budgt,Supplies and Services,Other Equipment,203,31/12/2020,2012-00753,0.00,171.20,R,AIDAPT BATHROOMS LTD,No
Http://opendatacommunities.org/id/metropolitan-district-council/leeds,Leeds City Council as Accountable Body,31/12/2020,Social Services Pooled Budgets,Leeds Community Equip Store Pooled Budgt,Supplies and Services,Other Equipment,203,31/12/2020,2012-00754,0.00,1166.00,R,AIDAPT BATHROOMS LTD,No
Http://opendatacommunities.org/id/metropolitan-district-council/leeds,Leeds City Council,31/12/2020,Adults and Health,Services For Adults Under 65 Learn/Dis,Supplies and Services,Other Hired And Contracted Services,265,11/12/2020,2012-00755,0.00,219.00,R,REDACTED PERSONAL DATA,No
